Directorate,Department,Expenditure Type,Ref.Doc.1,Vendor Name,Expenditure Amount (exc VAT),Payment Date
Assurance,Assurance,Advertising,60056692,ADMEDIA LTD,"6,500.00",23/06/2016
Assurance,Assurance,Advertising,60056612,LONDON WEEKLY NEWSPAPERS LTD,650,13/06/2016
Assurance,Assurance,Advertising,60055762,NEWSQUEST (LONDON) LIMITED,805,17/06/2016
Assurance,Assurance,Advertising,60056145,NEWSQUEST (LONDON) LIMITED,805,29/06/2016
Assurance,Assurance,Equipment and Materials Purcha,60054085,CITY FURNITURE HIRE LIMITED,475.54,01/06/2016
Assurance,Assurance,Equipment and Materials Purcha,60054989,LONDON SITE SERVICES LTD,"11,422.25",02/06/2016
Assurance,Assurance,Equipment and Materials Purcha,60055347,LONDON SITE SERVICES LTD,"11,060.70",02/06/2016
Assurance,Assurance,General Office Expenses,40001506,OFFICE DEPOT UK LTD,3.98,02/06/2016
Assurance,Assurance,General Office Expenses,40001547,OFFICE DEPOT UK LTD,0.98,02/06/2016
Assurance,Assurance,Miscellaneous Expenses,80004275,TRAINING SHIP BROADSWORD,260,21/06/2016
Assurance,Assurance,Other Indirect Employee Expens,80004367,LONDON MAYORS' ASSOCIATION,20,21/06/2016
Assurance,Assurance,Other Indirect Employee Expens,80004446,REDACTED - PERSONAL DATA,248,28/06/2016
Assurance,Assurance,Other Indirect Employee Expens,80004453,REDACTED - PERSONAL DATA,169,28/06/2016
Assurance,Assurance,Other Indirect Employee Expens,80004456,REDACTED - PERSONAL DATA,115,28/06/2016
Assurance,Assurance,Other Indirect Employee Expens,80004194,THE LONDON MAYORS' ASSOCIATION,120,14/06/2016
Assurance,Assurance,Other Services,80003841,LEWISHAM COUNCIL,"6,500.00",16/06/2016
Assurance,Assurance,Postage,60054993,ROYAL MAIL GROUP LIMITED,790.34,21/06/2016
Assurance,Assurance,Postage,60055001,ROYAL MAIL GROUP LIMITED,"10,290.60",13/06/2016
Assurance,Assurance,Postage,60056712,ROYAL MAIL GROUP LIMITED,0.45,13/06/2016
Assurance,Assurance,Postage,60056760,ROYAL MAIL GROUP LIMITED,763.23,13/06/2016
Assurance,Assurance,Printing-Contract,60056099,BARNARD &  WESTWOOD LTD,75,07/06/2016
Assurance,Assurance,Printing-Contract,40001519,OFFICE DEPOT UK LTD,19.06,02/06/2016
Assurance,Assurance,Printing-Contract,40001548,OFFICE DEPOT UK LTD,37.23,02/06/2016
Assurance,Assurance,Printing-Contract,40001607,OFFICE DEPOT UK LTD,174.52,02/06/2016
Assurance,Assurance,Printing-Contract,40001614,OFFICE DEPOT UK LTD,174.52,02/06/2016
Assurance,Assurance,Printing-Contract,40001641,OFFICE DEPOT UK LTD,11.18,14/06/2016
Assurance,Assurance,Printing-Contract,40001644,OFFICE DEPOT UK LTD,22.92,16/06/2016
Assurance,Assurance,Printing-Contract,40001649,OFFICE DEPOT UK LTD,45.84,21/06/2016
Assurance,Assurance,Professional Services,60055033,ELECTORAL REFORM SERVICES,"2,246.39",21/06/2016
Assurance,Assurance,Professional Services,60056620,ELECTORAL REFORM SERVICES,"5,982.59",29/06/2016
Assurance,Assurance,Professional Services,60054983,PRICEWATERHOUSE COOPERS,"18,000.00",02/06/2016
Assurance,Assurance,Publications,60056382,REDACTED - PERSONAL DATA,375,16/06/2016
Assurance,Assurance,Publications,60056384,REDACTED - PERSONAL DATA,300,16/06/2016
Assurance,Assurance,Publications,60057431,REDACTED - PERSONAL DATA,150,22/06/2016
Assurance,Assurance,Rents,80004525,15TH FINCHLEY SCOUT GROUP,400,28/06/2016
Assurance,Assurance,Rents,80004523,ARKLEY CLUB,550,28/06/2016
Assurance,Assurance,Rents,60055865,BARNET BROOKSIDE METHODIST CHURCH,450,07/06/2016
Assurance,Assurance,Rents,80004529,FINCHLEY BAPTIST CHURCH,625,28/06/2016
Assurance,Assurance,Rents,80004521,FINCHLEY METHODIST CHURCH,500,28/06/2016
Assurance,Assurance,Rents,60054998,FRIERN BARNET HUT MANAGEMENT COMMIT,750,10/06/2016
Assurance,Assurance,Rents,60056268,HOPE CORNER COMMUNITY CENTRE,500,08/06/2016
Assurance,Assurance,Rents,60057545,HOPE CORNER COMMUNITY CENTRE,240,23/06/2016
Assurance,Assurance,Rents,60055783,LETTERBOX DISTRIBUTION.COM,"9,828.00",03/06/2016
Assurance,Assurance,Rents,80004524,NEW BEVAN BAPTIST CHURCH,300,28/06/2016
Assurance,Assurance,Rents,60055005,PORTAKABIN LTD,"13,260.00",13/06/2016
Assurance,Assurance,Rents,60055007,PORTAKABIN LTD,187,15/06/2016
Assurance,Assurance,Rents,80004527,RAILWAY TERRACES ALLOTMENT SOCIETY,200,28/06/2016
Assurance,Assurance,Rents,60055020,ROYAL MAIL GROUP LIMITED,463.82,21/06/2016
Assurance,Assurance,Rents,80004526,ST EDWARD THE CONFESSOR CHURCH,700,28/06/2016
Assurance,Assurance,Rents,80004530,ST PAUL'S CHURCH,490,28/06/2016
Assurance,Assurance,Rents,80004528,ST PHILIP THE APOSTLE,300,28/06/2016
Assurance,Assurance,Rents,60056602,THE HYDE EF ACADEMY,150,13/06/2016
Assurance,Assurance,Rents,80004522,TOTTERIDGE TENNIS CLUB,670,28/06/2016
Assurance,Assurance,Software Licences & Support,60054741,INTEC FOR BUSINESS LIMITED,198,02/06/2016
Assurance,Assurance,Stationery,40001594,OFFICE DEPOT UK LTD,35,02/06/2016
Assurance,Assurance,Stationery,40001617,OFFICE DEPOT UK LTD,328.7,02/06/2016
Assurance,Assurance,Subscriptions,60056628,CIPFA BUSINESS LIMITED,295,13/06/2016
Assurance,Assurance,Subscriptions,60056706,CIPFA BUSINESS LIMITED,295,13/06/2016
Assurance,Assurance,Subscriptions,60056199,CONFABULATE LTD,650,07/06/2016
Assurance,Assurance,Training,60055605,ASSOCIATION OF DEMOCRATIC SERVICES OFFIC,190,23/06/2016
Assurance,Assurance,Training,60057471,CIPFA BUSINESS LIMITED,"2,540.00",23/06/2016
Assurance,Assurance,Translation Exp / Interpret,60057101,PRIME PRODUCTION LTD,92,17/06/2016
Assurance,Assurance,Translation Exp / Interpret,60054692,REDACTED - PERSONAL DATA,290,07/06/2016
Assurance,Assurance,Ttl IT & Comms,60056917,HAMILTON RENTALS LTD,"1,933.00",29/06/2016
Assurance,Assurance,Ttl IT & Comms,60056193,J.C.APPLICATIONS DEVELOPMENT,"3,695.00",07/06/2016
Central Expenses,Central Expenses,Insurance Claims,80004399,AYB LAW SOLICITORS,"1,883.00",24/06/2016
Central Expenses,Central Expenses,Insurance Claims,80004192,BELL HOUSE MEDICAL CENTRE,30,14/06/2016
Central Expenses,Central Expenses,Insurance Claims,80004350,CENTRALLONDON COMMUNITY HEALTH,10,21/06/2016
Central Expenses,Central Expenses,Insurance Claims,80003947,CHARLES DUKES ASSESSORS,150,07/06/2016
Central Expenses,Central Expenses,Insurance Claims,80004172,CLARKE BARNES SOLICITORS,"16,501.16",14/06/2016
Central Expenses,Central Expenses,Insurance Claims,80004174,CLARKE BARNES SOLICITORS,"3,454.30",14/06/2016
Central Expenses,Central Expenses,Insurance Claims,80004396,DIRECT LINE MOTOR CLAIMS,"1,824.34",24/06/2016
Central Expenses,Central Expenses,Insurance Claims,80003973,DLG LEGAL SERVICES LIMITED,"1,296.00",07/06/2016
Central Expenses,Central Expenses,Insurance Claims,80003974,DLG LEGAL SERVICES LIMITED,"3,910.00",07/06/2016
Central Expenses,Central Expenses,Insurance Claims,80004305,DWF LLP,"1,490.30",17/06/2016
Central Expenses,Central Expenses,Insurance Claims,80004013,DWP COMPENSATION RECOVERY UNIT,647,09/06/2016
Central Expenses,Central Expenses,Insurance Claims,80004080,DWP COMPENSATION RECOVERY UNIT,816,09/06/2016
Central Expenses,Central Expenses,Insurance Claims,80004175,DWP COMPENSATION RECOVERY UNIT,627,14/06/2016
Central Expenses,Central Expenses,Insurance Claims,80004181,DWP COMPENSATION RECOVERY UNIT,627,14/06/2016
Central Expenses,Central Expenses,Insurance Claims,80004400,DWP COMPENSATION RECOVERY UNIT,637,24/06/2016
Central Expenses,Central Expenses,Insurance Claims,80004416,DWP COMPENSATION RECOVERY UNIT,647,24/06/2016
Central Expenses,Central Expenses,Insurance Claims,80004379,ENTERPRISE RENT- A- CAR,928.64,23/06/2016
Central Expenses,Central Expenses,Insurance Claims,80004380,FIRST CENTRAL INSURANCE,"1,147.04",24/06/2016
Central Expenses,Central Expenses,Insurance Claims,60056083,JOHNSON AUSTIN PARTNERSHIP LLP,900,28/06/2016
Central Expenses,Central Expenses,Insurance Claims,60056801,LEGAL COSTS NEGOTIATORS,773.15,23/06/2016
Central Expenses,Central Expenses,Insurance Claims,80004373,LV=,"1,870.34",23/06/2016
Central Expenses,Central Expenses,Insurance Claims,80004377,LV=,"1,819.78",23/06/2016
Central Expenses,Central Expenses,Insurance Claims,80004156,MUNICIPAL MUTUAL INSURANCE LTD,"118,733.00",09/06/2016
Central Expenses,Central Expenses,Insurance Claims,80003948,P DUTSON ASSOCIATES LTD,350,08/06/2016
Central Expenses,Central Expenses,Insurance Claims,80004404,PENTAGON PAINT & BODY LTD,"1,151.29",24/06/2016
Central Expenses,Central Expenses,Insurance Claims,80003899,PLEXUS LAW LTD LEEDS CLIENT AC,"7,500.00",09/06/2016
Central Expenses,Central Expenses,Insurance Claims,80004034,PLEXUS LAW LTD LEEDS CLIENT AC,"8,850.00",09/06/2016
Central Expenses,Central Expenses,Insurance Claims,80004372,PRINCIPIA LAW LTD,"1,627.04",24/06/2016
Central Expenses,Central Expenses,Insurance Claims,80004079,ROMAIN COLEMAN SOLICITORS,"3,250.00",07/06/2016
Central Expenses,Central Expenses,Insurance Claims,80004303,SCOTT REES & CO SOLICITORS,"3,865.00",17/06/2016
Central Expenses,Central Expenses,Insurance Claims,80004419,SCOTT REES & CO SOLICITORS,"2,473.66",24/06/2016
Central Expenses,Central Expenses,Insurance Claims,80004402,SCOTT REES & CO. SOLICITORS,"10,850.00",24/06/2016
Central Expenses,Central Expenses,Insurance Claims,80004162,SLATER & GORDON (UK) LLP CLIEN,"6,371.20",10/06/2016
Central Expenses,Central Expenses,Insurance Claims,80004395,SLATER & GORDON SOLICITORS,810,24/06/2016
Central Expenses,Central Expenses,Insurance Claims,80004225,SLATER & GORDON UK LLP,"15,000.00",16/06/2016
Central Expenses,Central Expenses,Insurance Claims,80003980,SLATER GORDON SOLUTIONS MOTOR,691.2,07/06/2016
Central Expenses,Central Expenses,Insurance Claims,60048820,THE BARNETGROUP LIMITED,"38,808.55",08/06/2016
Central Expenses,Central Expenses,Insurance Claims,60056107,THE BARNETGROUP LIMITED,"9,076.52",23/06/2016
Central Expenses,Central Expenses,Insurance Claims,80003969,THE CLINIC,50,08/06/2016
Central Expenses,Central Expenses,Insurance Claims,80004191,THOMPSONS SOLICITORS,"13,500.00",14/06/2016
Central Expenses,Central Expenses,Insurance Claims,80003975,UK INSURANCE LIMITED,874,07/06/2016
Central Expenses,Central Expenses,Insurance Claims,80003955,WARDELL ARMSTRONG LLP,685,07/06/2016
Central Expenses,Central Expenses,Other Establishments - Third P,EBX0121969,ENVIRONMENT AGENCY,"153,799.50",24/06/2016
Central Expenses,Central Expenses,Other Establishments - Third P,EBX0120778,LEE VALLEY REGIONAL PARK AUTH.,"32,219.58",16/06/2016
Central Expenses,Central Expenses,Other Establishments - Third P,EBX0122208,LONDON PENSIONS FUND AUTHORITY,"49,627.80",28/06/2016
Central Expenses,Central Expenses,Other Establishments - Third P,EBX0118834,TRANSPORT TRADING LIMITED,"3,866,953.00",01/06/2016
Commercial,Customer Support Group,Books-CDs-Audio-Video,60056109,SM ELECTRICAL SERVICES,600,21/06/2016
Commercial,Customer Support Group,Books-CDs-Audio-Video,60056181,SM ELECTRICAL SERVICES,470,22/06/2016
Commercial,Customer Support Group,Books-CDs-Audio-Video,60057900,SM ELECTRICAL SERVICES,270,28/06/2016
Commercial,Customer Support Group,Building Repairs & Maintenance,60057028,AFFINITY WATER LIMITED,23.93,16/06/2016
Commercial,Customer Support Group,Building Repairs & Maintenance,60057037,AFFINITY WATER LIMITED,45.24,16/06/2016
Commercial,Customer Support Group,Building Repairs & Maintenance,60052435,AJS LTD,8.25,08/06/2016
Commercial,Customer Support Group,Building Repairs & Maintenance,60052542,AJS LTD,82.5,01/06/2016
Commercial,Customer Support Group,Building Repairs & Maintenance,60057046,AJS LTD,54.88,21/06/2016
Commercial,Customer Support Group,Building Repairs & Maintenance,60057092,AJS LTD,70.56,21/06/2016
Commercial,Customer Support Group,Building Repairs & Maintenance,60057117,AJS LTD,62.72,21/06/2016
Commercial,Customer Support Group,Building Repairs & Maintenance,60057137,AJS LTD,39.2,21/06/2016
Commercial,Customer Support Group,Building Repairs & Maintenance,60054991,APT CONTROLS LTD,519,21/06/2016
Commercial,Customer Support Group,Building Repairs & Maintenance,60029579,ASBESTOS CONSULTANTS EUROPE LTD T/A ACE,"1,495.00",28/06/2016
Commercial,Customer Support Group,Building Repairs & Maintenance,60056848,AUDITEL SYSTEMS,"1,750.00",14/06/2016
Commercial,Customer Support Group,Building Repairs & Maintenance,60057607,BLUE 9 SECURITY LIMITED,60.44,24/06/2016
Commercial,Customer Support Group,Building Repairs & Maintenance,60056101,DAY PLANT HIRE CO LIMITED,217.2,08/06/2016
Commercial,Customer Support Group,Building Repairs & Maintenance,60055124,DORMA UK LTD,242.55,14/06/2016
Commercial,Customer Support Group,Building Repairs & Maintenance,60055200,DORMA UK LTD,661.43,14/06/2016
Commercial,Customer Support Group,Building Repairs & Maintenance,60048995,HERTEL (UK) LTD,40.83,23/06/2016
Commercial,Customer Support Group,Building Repairs & Maintenance,60053138,HERTEL (UK) LTD,65,01/06/2016
Commercial,Customer Support Group,Building Repairs & Maintenance,60057905,HERTEL (UK) LTD,40.83,29/06/2016
Commercial,Customer Support Group,Building Repairs & Maintenance,60057906,HERTEL (UK) LTD,40.83,29/06/2016
Commercial,Customer Support Group,Building Repairs & Maintenance,60057907,HERTEL (UK) LTD,40.83,29/06/2016
Commercial,Customer Support Group,Building Repairs & Maintenance,60057908,HERTEL (UK) LTD,40.83,29/06/2016
Commercial,Customer Support Group,Building Repairs & Maintenance,60057910,HERTEL (UK) LTD,40.83,29/06/2016
Commercial,Customer Support Group,Building Repairs & Maintenance,60057916,HERTEL (UK) LTD,40.83,29/06/2016
Commercial,Customer Support Group,Building Repairs & Maintenance,60057917,HERTEL (UK) LTD,40.83,29/06/2016
Commercial,Customer Support Group,Building Repairs & Maintenance,60057922,HERTEL (UK) LTD,40.83,29/06/2016
Commercial,Customer Support Group,Building Repairs & Maintenance,60057927,HERTEL (UK) LTD,40.83,29/06/2016
Commercial,Customer Support Group,Building Repairs & Maintenance,60057928,HERTEL (UK) LTD,40.83,29/06/2016
Commercial,Customer Support Group,Building Repairs & Maintenance,60057932,HERTEL (UK) LTD,40.83,29/06/2016
Commercial,Customer Support Group,Building Repairs & Maintenance,60057936,HERTEL (UK) LTD,40.83,29/06/2016
Commercial,Customer Support Group,Building Repairs & Maintenance,60057938,HERTEL (UK) LTD,40.83,29/06/2016
Commercial,Customer Support Group,Building Repairs & Maintenance,60057939,HERTEL (UK) LTD,40.83,29/06/2016
Commercial,Customer Support Group,Building Repairs & Maintenance,60057942,HERTEL (UK) LTD,40.83,29/06/2016
Commercial,Customer Support Group,Building Repairs & Maintenance,60057944,HERTEL (UK) LTD,40.83,29/06/2016
Commercial,Customer Support Group,Building Repairs & Maintenance,60057946,HERTEL (UK) LTD,38.79,29/06/2016
Commercial,Customer Support Group,Building Repairs & Maintenance,60057952,HERTEL (UK) LTD,40.83,29/06/2016
Commercial,Customer Support Group,Building Repairs & Maintenance,60057957,HERTEL (UK) LTD,40.83,29/06/2016
Commercial,Customer Support Group,Building Repairs & Maintenance,60057966,HERTEL (UK) LTD,40.83,29/06/2016
Commercial,Customer Support Group,Building Repairs & Maintenance,60057969,HERTEL (UK) LTD,40.83,29/06/2016
Commercial,Customer Support Group,Building Repairs & Maintenance,60057970,HERTEL (UK) LTD,40.83,29/06/2016
Commercial,Customer Support Group,Building Repairs & Maintenance,60057974,HERTEL (UK) LTD,40.83,29/06/2016
Commercial,Customer Support Group,Building Repairs & Maintenance,60057975,HERTEL (UK) LTD,40.83,29/06/2016
Commercial,Customer Support Group,Building Repairs & Maintenance,60057976,HERTEL (UK) LTD,40.83,29/06/2016
Commercial,Customer Support Group,Building Repairs & Maintenance,60057977,HERTEL (UK) LTD,40.83,29/06/2016
Commercial,Customer Support Group,Building Repairs & Maintenance,60057980,HERTEL (UK) LTD,40.83,29/06/2016
Commercial,Customer Support Group,Building Repairs & Maintenance,60057982,HERTEL (UK) LTD,40.83,29/06/2016
Commercial,Customer Support Group,Building Repairs & Maintenance,60057985,HERTEL (UK) LTD,40.83,29/06/2016
Commercial,Customer Support Group,Building Repairs & Maintenance,60057987,HERTEL (UK) LTD,38.79,29/06/2016
Commercial,Customer Support Group,Building Repairs & Maintenance,60057990,HERTEL (UK) LTD,40.83,29/06/2016
Commercial,Customer Support Group,Building Repairs & Maintenance,60057991,HERTEL (UK) LTD,38.79,29/06/2016
Commercial,Customer Support Group,Building Repairs & Maintenance,60057995,HERTEL (UK) LTD,40.83,29/06/2016
Commercial,Customer Support Group,Building Repairs & Maintenance,60058001,HERTEL (UK) LTD,40.83,29/06/2016
Commercial,Customer Support Group,Building Repairs & Maintenance,60058003,HERTEL (UK) LTD,40.83,29/06/2016
Commercial,Customer Support Group,Building Repairs & Maintenance,60058004,HERTEL (UK) LTD,40.83,29/06/2016
Commercial,Customer Support Group,Building Repairs & Maintenance,60058007,HERTEL (UK) LTD,40.83,29/06/2016
Commercial,Customer Support Group,Building Repairs & Maintenance,60058010,HERTEL (UK) LTD,40.83,29/06/2016
Commercial,Customer Support Group,Building Repairs & Maintenance,60058011,HERTEL (UK) LTD,40.83,29/06/2016
Commercial,Customer Support Group,Building Repairs & Maintenance,60058013,HERTEL (UK) LTD,40.83,29/06/2016
Commercial,Customer Support Group,Building Repairs & Maintenance,60058014,HERTEL (UK) LTD,40.83,29/06/2016
Commercial,Customer Support Group,Building Repairs & Maintenance,60058015,HERTEL (UK) LTD,40.83,29/06/2016
Commercial,Customer Support Group,Building Repairs & Maintenance,60058016,HERTEL (UK) LTD,40.83,29/06/2016
Commercial,Customer Support Group,Building Repairs & Maintenance,60058018,HERTEL (UK) LTD,40.83,29/06/2016
Commercial,Customer Support Group,Building Repairs & Maintenance,60058019,HERTEL (UK) LTD,40.83,29/06/2016
Commercial,Customer Support Group,Building Repairs & Maintenance,60058020,HERTEL (UK) LTD,40.83,29/06/2016
Commercial,Customer Support Group,Building Repairs & Maintenance,60058021,HERTEL (UK) LTD,40.83,29/06/2016
Commercial,Customer Support Group,Building Repairs & Maintenance,60058023,HERTEL (UK) LTD,40.83,29/06/2016
Commercial,Customer Support Group,Building Repairs & Maintenance,60058025,HERTEL (UK) LTD,40.83,29/06/2016
Commercial,Customer Support Group,Building Repairs & Maintenance,60058026,HERTEL (UK) LTD,38.79,29/06/2016
Commercial,Customer Support Group,Building Repairs & Maintenance,60058031,HERTEL (UK) LTD,40.83,29/06/2016
Commercial,Customer Support Group,Building Repairs & Maintenance,60058032,HERTEL (UK) LTD,40.83,29/06/2016
Commercial,Customer Support Group,Building Repairs & Maintenance,60051185,KENT COUNTY COUNCIL (KCS),70.96,06/06/2016
Commercial,Customer Support Group,Building Repairs & Maintenance,60053117,KENT COUNTY COUNCIL (KCS),353.46,09/06/2016
Commercial,Customer Support Group,Building Repairs & Maintenance,60055775,LEE SECURITY LONDON LIMITED,84.38,21/06/2016
Commercial,Customer Support Group,Building Repairs & Maintenance,60056263,LEE SECURITY LONDON LIMITED,82,23/06/2016
Commercial,Customer Support Group,Building Repairs & Maintenance,60057279,LEE SECURITY LONDON LIMITED,2.8,20/06/2016
Commercial,Customer Support Group,Building Repairs & Maintenance,60057568,LEE SECURITY LONDON LIMITED,"1,656.00",24/06/2016
Commercial,Customer Support Group,Building Repairs & Maintenance,60057623,LEE SECURITY LONDON LIMITED,87.46,24/06/2016
Commercial,Customer Support Group,Building Repairs & Maintenance,60057629,LEE SECURITY LONDON LIMITED,82,24/06/2016
Commercial,Customer Support Group,Building Repairs & Maintenance,60057672,LEE SECURITY LONDON LIMITED,781,24/06/2016
Commercial,Customer Support Group,Building Repairs & Maintenance,80003809,MCET SERVICE,132.5,16/06/2016
Commercial,Customer Support Group,Building Repairs & Maintenance,60048137,OAKRAY LIMITED,290.18,27/06/2016
Commercial,Customer Support Group,Building Repairs & Maintenance,60050089,OAKRAY LIMITED,198.75,06/06/2016
Commercial,Customer Support Group,Building Repairs & Maintenance,60055518,OAKRAY LIMITED,233.45,24/06/2016
Commercial,Customer Support Group,Building Repairs & Maintenance,60055520,OAKRAY LIMITED,268.61,24/06/2016
Commercial,Customer Support Group,Building Repairs & Maintenance,60055521,OAKRAY LIMITED,208,21/06/2016
Commercial,Customer Support Group,Building Repairs & Maintenance,60055525,OAKRAY LIMITED,96,24/06/2016
Commercial,Customer Support Group,Building Repairs & Maintenance,60055526,OAKRAY LIMITED,571.57,24/06/2016
Commercial,Customer Support Group,Building Repairs & Maintenance,60055527,OAKRAY LIMITED,162,24/06/2016
Commercial,Customer Support Group,Building Repairs & Maintenance,60055531,OAKRAY LIMITED,56,24/06/2016
Commercial,Customer Support Group,Building Repairs & Maintenance,60055534,OAKRAY LIMITED,64,24/06/2016
Commercial,Customer Support Group,Building Repairs & Maintenance,60055535,OAKRAY LIMITED,64,24/06/2016
Commercial,Customer Support Group,Building Repairs & Maintenance,60055536,OAKRAY LIMITED,88,24/06/2016
Commercial,Customer Support Group,Building Repairs & Maintenance,60055537,OAKRAY LIMITED,64,24/06/2016
Commercial,Customer Support Group,Building Repairs & Maintenance,60055544,OAKRAY LIMITED,128,21/06/2016
Commercial,Customer Support Group,Building Repairs & Maintenance,60055545,OAKRAY LIMITED,64,24/06/2016
Commercial,Customer Support Group,Building Repairs & Maintenance,60055546,OAKRAY LIMITED,113.85,24/06/2016
Commercial,Customer Support Group,Building Repairs & Maintenance,60055547,OAKRAY LIMITED,96,24/06/2016
Commercial,Customer Support Group,Building Repairs & Maintenance,60055548,OAKRAY LIMITED,64,24/06/2016
Commercial,Customer Support Group,Building Repairs & Maintenance,60055549,OAKRAY LIMITED,128,24/06/2016
Commercial,Customer Support Group,Building Repairs & Maintenance,60055555,OAKRAY LIMITED,338.52,09/06/2016
Commercial,Customer Support Group,Building Repairs & Maintenance,60055557,OAKRAY LIMITED,64,24/06/2016
Commercial,Customer Support Group,Building Repairs & Maintenance,60055568,OAKRAY LIMITED,112,24/06/2016
Commercial,Customer Support Group,Building Repairs & Maintenance,60055570,OAKRAY LIMITED,"2,083.26",27/06/2016
Commercial,Customer Support Group,Building Repairs & Maintenance,60055571,OAKRAY LIMITED,96,24/06/2016
Commercial,Customer Support Group,Building Repairs & Maintenance,60055575,OAKRAY LIMITED,64,24/06/2016
Commercial,Customer Support Group,Building Repairs & Maintenance,60055578,OAKRAY LIMITED,223.01,27/06/2016
Commercial,Customer Support Group,Building Repairs & Maintenance,60055579,OAKRAY LIMITED,72,27/06/2016
Commercial,Customer Support Group,Building Repairs & Maintenance,60055581,OAKRAY LIMITED,96,27/06/2016
Commercial,Customer Support Group,Building Repairs & Maintenance,60055588,OAKRAY LIMITED,80,27/06/2016
Commercial,Customer Support Group,Building Repairs & Maintenance,60055589,OAKRAY LIMITED,479.72,27/06/2016
Commercial,Customer Support Group,Building Repairs & Maintenance,60055496,ONLITECH,"2,190.00",15/06/2016
Commercial,Customer Support Group,Building Repairs & Maintenance,60057411,ONLITECH,190.84,24/06/2016
Commercial,Customer Support Group,Building Repairs & Maintenance,60055868,PUBLIC CLOCKS LTD,46.35,24/06/2016
Commercial,Customer Support Group,Building Repairs & Maintenance,60055795,REDHILL ANALYSTS LTD,611.25,27/06/2016
Commercial,Customer Support Group,Building Repairs & Maintenance,60048491,RGE SERVICES,135.38,16/06/2016
Commercial,Customer Support Group,Building Repairs & Maintenance,60051777,RGE SERVICES,77.17,07/06/2016
Commercial,Customer Support Group,Building Repairs & Maintenance,60056071,RGE SERVICES,162.45,23/06/2016
Commercial,Customer Support Group,Building Repairs & Maintenance,60056073,RGE SERVICES,143.96,07/06/2016
Commercial,Customer Support Group,Building Repairs & Maintenance,60056118,RGE SERVICES,155.65,07/06/2016
Commercial,Customer Support Group,Building Repairs & Maintenance,60056121,RGE SERVICES,121.84,23/06/2016
Commercial,Customer Support Group,Building Repairs & Maintenance,60056152,RGE SERVICES,86.9,24/06/2016
Commercial,Customer Support Group,Building Repairs & Maintenance,60056171,RGE SERVICES,241.08,23/06/2016
Commercial,Customer Support Group,Building Repairs & Maintenance,60056207,RGE SERVICES,62,07/06/2016
Commercial,Customer Support Group,Building Repairs & Maintenance,60056211,RGE SERVICES,121.84,23/06/2016
Commercial,Customer Support Group,Building Repairs & Maintenance,60056221,RGE SERVICES,155,07/06/2016
Commercial,Customer Support Group,Building Repairs & Maintenance,60056224,RGE SERVICES,244.09,23/06/2016
Commercial,Customer Support Group,Building Repairs & Maintenance,60056630,RGE SERVICES,173.6,13/06/2016
Commercial,Customer Support Group,Building Repairs & Maintenance,60056642,RGE SERVICES,93.02,13/06/2016
Commercial,Customer Support Group,Building Repairs & Maintenance,60056678,RGE SERVICES,93,13/06/2016
Commercial,Customer Support Group,Building Repairs & Maintenance,60056697,RGE SERVICES,75.72,13/06/2016
Commercial,Customer Support Group,Building Repairs & Maintenance,60056961,RGE SERVICES,360.08,16/06/2016
Commercial,Customer Support Group,Building Repairs & Maintenance,60056993,RGE SERVICES,67.87,16/06/2016
Commercial,Customer Support Group,Building Repairs & Maintenance,60057006,RGE SERVICES,139.89,16/06/2016
Commercial,Customer Support Group,Building Repairs & Maintenance,60057019,RGE SERVICES,99.28,16/06/2016
Commercial,Customer Support Group,Building Repairs & Maintenance,60057173,RGE SERVICES,61.01,17/06/2016
Commercial,Customer Support Group,Building Repairs & Maintenance,60057707,RGE SERVICES,600.93,27/06/2016
Commercial,Customer Support Group,Building Repairs & Maintenance,60057713,RGE SERVICES,62,27/06/2016
Commercial,Customer Support Group,Building Repairs & Maintenance,60057723,RGE SERVICES,123.01,27/06/2016
Commercial,Customer Support Group,Building Repairs & Maintenance,60057724,RGE SERVICES,346.95,27/06/2016
Commercial,Customer Support Group,Building Repairs & Maintenance,60057727,RGE SERVICES,189.48,27/06/2016
Commercial,Customer Support Group,Building Repairs & Maintenance,60057728,RGE SERVICES,936.45,27/06/2016
Commercial,Customer Support Group,Building Repairs & Maintenance,60057730,RGE SERVICES,151.77,27/06/2016
Commercial,Customer Support Group,Building Repairs & Maintenance,60057732,RGE SERVICES,376.88,27/06/2016
Commercial,Customer Support Group,Building Repairs & Maintenance,60057736,RGE SERVICES,220.97,27/06/2016
Commercial,Customer Support Group,Building Repairs & Maintenance,60057748,RGE SERVICES,79.4,27/06/2016
Commercial,Customer Support Group,Building Repairs & Maintenance,60057765,RGE SERVICES,82.08,27/06/2016
Commercial,Customer Support Group,Building Repairs & Maintenance,60052083,S W BRUCE & CO LTD,248.28,21/06/2016
Commercial,Customer Support Group,Building Repairs & Maintenance,60052532,S W BRUCE & CO LTD,86.96,01/06/2016
Commercial,Customer Support Group,Building Repairs & Maintenance,60054878,S W BRUCE & CO LTD,57.34,09/06/2016
Commercial,Customer Support Group,Building Repairs & Maintenance,60054879,S W BRUCE & CO LTD,225.01,09/06/2016
Commercial,Customer Support Group,Building Repairs & Maintenance,60054882,S W BRUCE & CO LTD,66.56,09/06/2016
Commercial,Customer Support Group,Building Repairs & Maintenance,60054896,S W BRUCE & CO LTD,488.75,09/06/2016
Commercial,Customer Support Group,Building Repairs & Maintenance,60054897,S W BRUCE & CO LTD,76.65,09/06/2016
Commercial,Customer Support Group,Building Repairs & Maintenance,60054901,S W BRUCE & CO LTD,425.58,09/06/2016
Commercial,Customer Support Group,Building Repairs & Maintenance,60054902,S W BRUCE & CO LTD,96.51,09/06/2016
Commercial,Customer Support Group,Building Repairs & Maintenance,60054904,S W BRUCE & CO LTD,57,09/06/2016
Commercial,Customer Support Group,Building Repairs & Maintenance,60054907,S W BRUCE & CO LTD,57,09/06/2016
Commercial,Customer Support Group,Building Repairs & Maintenance,60054908,S W BRUCE & CO LTD,60.6,09/06/2016
Commercial,Customer Support Group,Building Repairs & Maintenance,60054910,S W BRUCE & CO LTD,66.56,09/06/2016
Commercial,Customer Support Group,Building Repairs & Maintenance,60054914,S W BRUCE & CO LTD,147.95,09/06/2016
Commercial,Customer Support Group,Building Repairs & Maintenance,60054921,S W BRUCE & CO LTD,114.32,09/06/2016
Commercial,Customer Support Group,Building Repairs & Maintenance,60054923,S W BRUCE & CO LTD,112.42,09/06/2016
Commercial,Customer Support Group,Building Repairs & Maintenance,60054931,S W BRUCE & CO LTD,101.44,09/06/2016
Commercial,Customer Support Group,Building Repairs & Maintenance,60054933,S W BRUCE & CO LTD,133.13,09/06/2016
Commercial,Customer Support Group,Building Repairs & Maintenance,60054940,S W BRUCE & CO LTD,128.25,09/06/2016
Commercial,Customer Support Group,Building Repairs & Maintenance,60054949,S W BRUCE & CO LTD,90.85,09/06/2016
Commercial,Customer Support Group,Building Repairs & Maintenance,60054952,S W BRUCE & CO LTD,296,09/06/2016
Commercial,Customer Support Group,Building Repairs & Maintenance,60054954,S W BRUCE & CO LTD,28.5,09/06/2016
Commercial,Customer Support Group,Building Repairs & Maintenance,60054955,S W BRUCE & CO LTD,221.93,09/06/2016
Commercial,Customer Support Group,Building Repairs & Maintenance,60054959,S W BRUCE & CO LTD,34,09/06/2016
Commercial,Customer Support Group,Building Repairs & Maintenance,60054960,S W BRUCE & CO LTD,85.5,09/06/2016
Commercial,Customer Support Group,Building Repairs & Maintenance,60054965,S W BRUCE & CO LTD,28.5,09/06/2016
Commercial,Customer Support Group,Building Repairs & Maintenance,60054966,S W BRUCE & CO LTD,28.5,09/06/2016
Commercial,Customer Support Group,Building Repairs & Maintenance,60054969,S W BRUCE & CO LTD,292.18,09/06/2016
Commercial,Customer Support Group,Building Repairs & Maintenance,60054970,S W BRUCE & CO LTD,28.5,09/06/2016
Commercial,Customer Support Group,Building Repairs & Maintenance,60054973,S W BRUCE & CO LTD,202.88,09/06/2016
Commercial,Customer Support Group,Building Repairs & Maintenance,60054977,S W BRUCE & CO LTD,77.33,09/06/2016
Commercial,Customer Support Group,Building Repairs & Maintenance,60054979,S W BRUCE & CO LTD,67.63,09/06/2016
Commercial,Customer Support Group,Building Repairs & Maintenance,60054981,S W BRUCE & CO LTD,234.49,09/06/2016
Commercial,Customer Support Group,Building Repairs & Maintenance,60054985,S W BRUCE & CO LTD,"1,350.00",09/06/2016
Commercial,Customer Support Group,Building Repairs & Maintenance,60055132,S W BRUCE & CO LTD,28.5,15/06/2016
Commercial,Customer Support Group,Building Repairs & Maintenance,60055133,S W BRUCE & CO LTD,181.76,14/06/2016
Commercial,Customer Support Group,Building Repairs & Maintenance,60055134,S W BRUCE & CO LTD,95.27,14/06/2016
Commercial,Customer Support Group,Building Repairs & Maintenance,60055144,S W BRUCE & CO LTD,67.63,14/06/2016
Commercial,Customer Support Group,Building Repairs & Maintenance,60055149,S W BRUCE & CO LTD,136.37,14/06/2016
Commercial,Customer Support Group,Building Repairs & Maintenance,60055152,S W BRUCE & CO LTD,224.6,14/06/2016
Commercial,Customer Support Group,Building Repairs & Maintenance,60055153,S W BRUCE & CO LTD,91.71,14/06/2016
Commercial,Customer Support Group,Building Repairs & Maintenance,60055158,S W BRUCE & CO LTD,85.58,14/06/2016
Commercial,Customer Support Group,Building Repairs & Maintenance,60055160,S W BRUCE & CO LTD,148.99,14/06/2016
Commercial,Customer Support Group,Building Repairs & Maintenance,60055173,S W BRUCE & CO LTD,138.78,14/06/2016
Commercial,Customer Support Group,Building Repairs & Maintenance,60055176,S W BRUCE & CO LTD,95.67,14/06/2016
Commercial,Customer Support Group,Building Repairs & Maintenance,60055201,S W BRUCE & CO LTD,92.99,15/06/2016
Commercial,Customer Support Group,Building Repairs & Maintenance,60055202,S W BRUCE & CO LTD,71.03,14/06/2016
Commercial,Customer Support Group,Building Repairs & Maintenance,60055211,S W BRUCE & CO LTD,64.72,14/06/2016
Commercial,Customer Support Group,Building Repairs & Maintenance,60055216,S W BRUCE & CO LTD,57.34,14/06/2016
Commercial,Customer Support Group,Building Repairs & Maintenance,60055222,S W BRUCE & CO LTD,118.63,14/06/2016
Commercial,Customer Support Group,Building Repairs & Maintenance,60055224,S W BRUCE & CO LTD,312,14/06/2016
Commercial,Customer Support Group,Building Repairs & Maintenance,60055245,S W BRUCE & CO LTD,224.6,15/06/2016
Commercial,Customer Support Group,Building Repairs & Maintenance,60055259,S W BRUCE & CO LTD,87.1,14/06/2016
Commercial,Customer Support Group,Building Repairs & Maintenance,60055263,S W BRUCE & CO LTD,127.33,14/06/2016
Commercial,Customer Support Group,Building Repairs & Maintenance,60055384,S W BRUCE & CO LTD,66.56,21/06/2016
Commercial,Customer Support Group,Building Repairs & Maintenance,60055401,S W BRUCE & CO LTD,85.5,21/06/2016
Commercial,Customer Support Group,Building Repairs & Maintenance,60055438,S W BRUCE & CO LTD,46.49,21/06/2016
Commercial,Customer Support Group,Building Repairs & Maintenance,60055281,TECHNICAL SURFACES LTD,415,17/06/2016
Commercial,Customer Support Group,Building Repairs & Maintenance,60057127,UNITED FORKTRUCKS (1992) LTD,128,16/06/2016
Commercial,Customer Support Group,Carbon Reduction Commitment,10013275,DEPARTMENT OF ENERGY & CLIMATE CHAN,"169,050.00",14/06/2016
Commercial,Customer Support Group,Cleaning and domestic material,60054240,CHURCHILL CONTRACT SERVICES,53.78,09/06/2016
Commercial,Customer Support Group,Cleaning and domestic material,60056629,CHURCHILL CONTRACT SERVICES,270.21,13/06/2016
Commercial,Customer Support Group,Cleaning and domestic material,60056784,HERTFORDSHIRE SUPPLIES   COUNTY CO,472.8,14/06/2016
Commercial,Customer Support Group,Cleaning and domestic material,60056818,HERTFORDSHIRE SUPPLIES   COUNTY CO,24.76,14/06/2016
Commercial,Customer Support Group,Cleaning and domestic material,60056841,HERTFORDSHIRE SUPPLIES   COUNTY CO,829.6,14/06/2016
Commercial,Customer Support Group,Cleaning and domestic material,60056847,HERTFORDSHIRE SUPPLIES   COUNTY CO,27.5,14/06/2016
Commercial,Customer Support Group,Cleaning and domestic material,60056861,HERTFORDSHIRE SUPPLIES   COUNTY CO,95.52,14/06/2016
Commercial,Customer Support Group,CSG Services Contract Payment,10013304,CAPITA BUSINESS SERVICES LTD,606.81,29/06/2016
Commercial,Customer Support Group,CSG Services Contract Payment,10013305,CAPITA BUSINESS SERVICES LTD,"80,301.42",29/06/2016
Commercial,Customer Support Group,CSG Services Contract Payment,10013344,CAPITA BUSINESS SERVICES LTD,"-26,987.00",28/06/2016
Commercial,Customer Support Group,CSG Services Contract Payment,10013345,CAPITA BUSINESS SERVICES LTD,"-3,270.50",28/06/2016
Commercial,Customer Support Group,CSG Services Contract Payment,10013346,CAPITA BUSINESS SERVICES LTD,-576.62,29/06/2016
Commercial,Customer Support Group,CSG Services Contract Payment,60055529,CAPITA BUSINESS SERVICES LTD,"130,262.00",02/06/2016
Commercial,Customer Support Group,CSG Services Contract Payment,60055898,CAPITA BUSINESS SERVICES LTD,"19,082.80",14/06/2016
Commercial,Customer Support Group,CSG Services Contract Payment,60056005,CAPITA BUSINESS SERVICES LTD,"7,879,241.83",06/06/2016
Commercial,Customer Support Group,CSG Services Contract Payment,60056555,CAPITA BUSINESS SERVICES LTD,"232,941.00",21/06/2016
Commercial,Customer Support Group,CSG Services Contract Payment,60056776,CAPITA BUSINESS SERVICES LTD,"1,079,467.05",23/06/2016
Commercial,Customer Support Group,CSG Services Contract Payment,60056857,CAPITA BUSINESS SERVICES LTD,"10,429.90",23/06/2016
Commercial,Customer Support Group,CSG Services Contract Payment,60056901,CAPITA BUSINESS SERVICES LTD,"118,846.25",23/06/2016
Commercial,Customer Support Group,CSG Services Contract Payment,60057058,CAPITA BUSINESS SERVICES LTD,"41,978.08",28/06/2016
Commercial,Customer Support Group,CSG Services Contract Payment,60057110,CAPITA BUSINESS SERVICES LTD,"6,981.76",28/06/2016
Commercial,Customer Support Group,CSG Services Contract Payment,60057140,CAPITA BUSINESS SERVICES LTD,"140,660.00",29/06/2016
Commercial,Customer Support Group,CSG Services Contract Payment,60057649,CAPITA BUSINESS SERVICES LTD,"357,701.51",29/06/2016
Commercial,Customer Support Group,CSG Services Contract Payment,60057659,CAPITA BUSINESS SERVICES LTD,"96,757.70",28/06/2016
Commercial,Customer Support Group,Electricity,60057754,E-ON ENERGY,9.8,28/06/2016
Commercial,Customer Support Group,Electricity,60050918,KENT COUNTY COUNCIL (KCS),"1,099.67",06/06/2016
Commercial,Customer Support Group,Electricity,60051034,KENT COUNTY COUNCIL (KCS),606.38,06/06/2016
Commercial,Customer Support Group,Electricity,60054663,KENT COUNTY COUNCIL (KCS),227.45,09/06/2016
Commercial,Customer Support Group,Electricity,60055414,KENT COUNTY COUNCIL (KCS),3.28,23/06/2016
Commercial,Customer Support Group,Electricity,60055465,KENT COUNTY COUNCIL (KCS),"1,804.80",06/06/2016
Commercial,Customer Support Group,Electricity,60056222,KENT COUNTY COUNCIL (KCS),426.62,07/06/2016
Commercial,Customer Support Group,Electricity,60055516,OPUS ENERGY LTD,234.26,24/06/2016
Commercial,Customer Support Group,Equipment and Materials Purcha,60056633,DOORWAY-MAINTENANCE CO.,190,20/06/2016
Commercial,Customer Support Group,Equipment and Materials Purcha,60057904,HERTEL (UK) LTD,40.83,29/06/2016
Commercial,Customer Support Group,Equipment and Materials Purcha,60058009,HERTEL (UK) LTD,40.83,29/06/2016
Commercial,Customer Support Group,Equipment and Materials Purcha,60054936,S W BRUCE & CO LTD,161.69,09/06/2016
Commercial,Customer Support Group,Equipment and Materials Repair,80004420,MORGANA SYSTEMS LTD,932.16,23/06/2016
Commercial,Customer Support Group,Equipment and Materials Repair,80004417,REDACTED - PERSONAL DATA,522,23/06/2016
Commercial,Customer Support Group,Fixtures and fittings,60054579,LYCO DIRECT LTD,204.1,01/06/2016
Commercial,Customer Support Group,Furniture-Purchase-Repair,60056644,WAGSTAFF INTERIORS GROUP,802.5,13/06/2016
Commercial,Customer Support Group,Gas,60053889,CALOR GAS LIMITED,122.95,10/06/2016
Commercial,Customer Support Group,Gas,60055282,KENT COUNTY COUNCIL (KCS),405.22,21/06/2016
Commercial,Customer Support Group,Gas,60055294,KENT COUNTY COUNCIL (KCS),"4,811.61",21/06/2016
Commercial,Customer Support Group,Gas,60055313,KENT COUNTY COUNCIL (KCS),806,21/06/2016
Commercial,Customer Support Group,Gas,60055369,KENT COUNTY COUNCIL (KCS),"11,791.13",02/06/2016
Commercial,Customer Support Group,Gas,60057557,KENT COUNTY COUNCIL (KCS),185.12,24/06/2016
Commercial,Customer Support Group,Gas,10013280,TOTAL GAS & POWER LTD,"2,174.08",16/06/2016
Commercial,Customer Support Group,Gas,60053556,TOTAL GAS & POWER LTD,58.33,08/06/2016
Commercial,Customer Support Group,Gas,60056094,TOTAL GAS & POWER LTD,291.67,22/06/2016
Commercial,Customer Support Group,Grounds maintenance,60054179,RIBBEX UK LTD,764.75,15/06/2016
Commercial,Customer Support Group,Grounds maintenance,60057068,RIBBEX UK LTD,695,29/06/2016
Commercial,Customer Support Group,Operational Leases - Equipment,60057225,XEROX (UK) LTD,176.73,20/06/2016
Commercial,Customer Support Group,Operational Leases - Equipment,60057233,XEROX (UK) LTD,272.98,20/06/2016
Commercial,Customer Support Group,Other Energy,60056090,EDF ENERGY CUSTOMER FIELD SERVICES,143.8,07/06/2016
Commercial,Customer Support Group,Other Energy,60056102,EDF ENERGY CUSTOMER FIELD SERVICES,143.8,07/06/2016
Commercial,Customer Support Group,Other Energy,60056203,EDF ENERGY CUSTOMER FIELD SERVICES,143.8,07/06/2016
Commercial,Customer Support Group,Other Services,10013282,BLUE 9 SECURITY LIMITED,"2,142.64",17/06/2016
Commercial,Customer Support Group,Other Services,60056097,BLUE 9 SECURITY LIMITED,"11,584.08",09/06/2016
Commercial,Customer Support Group,Other Services,60056114,BLUE 9 SECURITY LIMITED,"1,788.21",09/06/2016
Commercial,Customer Support Group,Other Services,60056135,BLUE 9 SECURITY LIMITED,864.15,09/06/2016
Commercial,Customer Support Group,Other Services,60056151,BLUE 9 SECURITY LIMITED,"20,452.59",09/06/2016
Commercial,Customer Support Group,Other Services,60056166,BLUE 9 SECURITY LIMITED,"22,773.84",09/06/2016
Commercial,Customer Support Group,Other Services,60056780,BLUE 9 SECURITY LIMITED,53.72,14/06/2016
Commercial,Customer Support Group,Other Services,60056827,BLUE 9 SECURITY LIMITED,214.88,14/06/2016
Commercial,Customer Support Group,Other Services,60056883,BLUE 9 SECURITY LIMITED,40.29,14/06/2016
Commercial,Customer Support Group,Other Services,60057231,BLUE 9 SECURITY LIMITED,14.5,20/06/2016
Commercial,Customer Support Group,Other Services,60057232,BLUE 9 SECURITY LIMITED,53.72,20/06/2016
Commercial,Customer Support Group,Other Services,60057244,BLUE 9 SECURITY LIMITED,254.13,21/06/2016
Commercial,Customer Support Group,Other Services,60057256,BLUE 9 SECURITY LIMITED,53.72,20/06/2016
Commercial,Customer Support Group,Other Services,60057267,BLUE 9 SECURITY LIMITED,124.56,20/06/2016
Commercial,Customer Support Group,Other Services,60057269,BLUE 9 SECURITY LIMITED,58,21/06/2016
Commercial,Customer Support Group,Other Services,60057278,BLUE 9 SECURITY LIMITED,188.02,20/06/2016
Commercial,Customer Support Group,Other Services,60057283,BLUE 9 SECURITY LIMITED,124.56,20/06/2016
Commercial,Customer Support Group,Other Services,60048901,LEASING PROGRAMMES LIMITED,"1,235.00",28/06/2016
Commercial,Customer Support Group,Other Services,20030725,LOOMIS UK LIMITED,385,24/06/2016
Commercial,Customer Support Group,Other Services,20030726,LOOMIS UK LIMITED,"1,658.82",24/06/2016
Commercial,Customer Support Group,Other Services,20030727,LOOMIS UK LIMITED,837.62,24/06/2016
Commercial,Customer Support Group,Other Services,20030728,LOOMIS UK LIMITED,158,24/06/2016
Commercial,Customer Support Group,Other Services,20030729,LOOMIS UK LIMITED,837.62,24/06/2016
Commercial,Customer Support Group,Other Services,20030730,LOOMIS UK LIMITED,837.62,24/06/2016
Commercial,Customer Support Group,Other Services,20030731,LOOMIS UK LIMITED,837.62,24/06/2016
Commercial,Customer Support Group,Other Services,20030732,LOOMIS UK LIMITED,"1,675.25",24/06/2016
Commercial,Customer Support Group,Other Services,20030733,LOOMIS UK LIMITED,"1,675.25",24/06/2016
Commercial,Customer Support Group,Other Services,20030734,LOOMIS UK LIMITED,"1,675.25",24/06/2016
Commercial,Customer Support Group,Other Services,20030735,LOOMIS UK LIMITED,"1,675.25",24/06/2016
Commercial,Customer Support Group,Other Services,20030736,LOOMIS UK LIMITED,837.62,24/06/2016
Commercial,Customer Support Group,Other Services,20030737,LOOMIS UK LIMITED,871.14,24/06/2016
Commercial,Customer Support Group,Other Services,20030738,LOOMIS UK LIMITED,871.14,24/06/2016
Commercial,Customer Support Group,Other Services,20030739,LOOMIS UK LIMITED,871.14,24/06/2016
Commercial,Customer Support Group,Postage,60055782,ROYAL MAIL GROUP LIMITED,"4,423.55",02/06/2016
Commercial,Customer Support Group,Postage,60056018,ROYAL MAIL GROUP LIMITED,"5,081.82",23/06/2016
Commercial,Customer Support Group,Postage,60057248,ROYAL MAIL GROUP LIMITED,141.26,20/06/2016
Commercial,Customer Support Group,Postage,60057594,ROYAL MAIL GROUP LIMITED,178.68,24/06/2016
Commercial,Customer Support Group,Postage,60057652,ROYAL MAIL GROUP LIMITED,207.16,24/06/2016
Commercial,Customer Support Group,Postage,60055143,XEROX (UK) LTD,894.75,01/06/2016
Commercial,Customer Support Group,Postage,60055938,XEROX (UK) LTD,176.73,20/06/2016
Commercial,Customer Support Group,Postage,60057260,XEROX (UK) LTD,263.75,20/06/2016
Commercial,Customer Support Group,Postage,60057776,XEROX (UK) LTD,45.66,28/06/2016
Commercial,Customer Support Group,Postage,60057791,XEROX (UK) LTD,12.55,28/06/2016
Commercial,Customer Support Group,Postage,60057795,XEROX (UK) LTD,12.55,28/06/2016
Commercial,Customer Support Group,Postage,60057796,XEROX (UK) LTD,12.55,28/06/2016
Commercial,Customer Support Group,Postage,60057804,XEROX (UK) LTD,12.66,28/06/2016
Commercial,Customer Support Group,Postage,60057805,XEROX (UK) LTD,16.21,28/06/2016
Commercial,Customer Support Group,Postage,60057808,XEROX (UK) LTD,222.78,28/06/2016
Commercial,Customer Support Group,Postage,60057822,XEROX (UK) LTD,53.33,28/06/2016
Commercial,Customer Support Group,Postage,60057836,XEROX (UK) LTD,12.55,28/06/2016
Commercial,Customer Support Group,Postage,60057875,XEROX (UK) LTD,43.5,28/06/2016
Commercial,Customer Support Group,Postage,60057288,XEROX FINANCE LTD,"3,219.02",20/06/2016
Commercial,Customer Support Group,Publications,60057502,SPECTRUM SIGNWRITING LTD,200,23/06/2016
Commercial,Customer Support Group,Publications,60057328,TV LICENSING,145.5,24/06/2016
Commercial,Customer Support Group,Publications,60057373,TV LICENSING,145.5,29/06/2016
Commercial,Customer Support Group,Rents,60056886,CANAL & RIVER TRUST,"2,000.00",21/06/2016
Commercial,Customer Support Group,Rents,60056723,DANCASTLE ASSOCIATES LIMITED,"186,250.00",13/06/2016
Commercial,Customer Support Group,Rents,60057416,RIDGELAND PROPERTIES LTD,"33,750.00",22/06/2016
Commercial,Customer Support Group,Rubbish Collection,10013301,PEARCE RECYCLING CO. LTD,39,20/06/2016
Commercial,Customer Support Group,Rubbish Collection,60056804,PREMIER SHREDDING,54,14/06/2016
Commercial,Customer Support Group,Rubbish Collection,60056832,PREMIER SHREDDING,73,14/06/2016
Commercial,Customer Support Group,Water Services,60052272,AFFINITY WATER LIMITED,689,08/06/2016
Commercial,Customer Support Group,Water Services,60056879,ANGEL SPRINGS LTD,128,29/06/2016
Commercial,Customer Support Group,Water Services,60056880,ANGEL SPRINGS LTD,142,29/06/2016
Commercial,Customer Support Group,Water Services,60056887,ANGEL SPRINGS LTD,150,29/06/2016
Commercial,Customer Support Group,Water Services,60057632,THAMES WATER UTILITIES LIMITED,618.73,29/06/2016
Commercial,HB LAW,Legal and Court Fees,60055336,LONDON BOROUGH OF HARROW,"210,420.20",22/06/2016
Commercial,HB LAW,Legal Disbursements,60056483,LONDON BOROUGH OF HARROW,"164,796.83",28/06/2016
Commercial,HB LAW,Legal Disbursements,60056498,LONDON BOROUGH OF HARROW,"166,933.29",28/06/2016
Commercial,HB LAW,Legal Disbursements,60056885,LONDON BOROUGH OF HARROW,"115,910.22",23/06/2016
Commercial,HB LAW,Legal Disbursements,60057495,LONDON BOROUGH OF HARROW,"138,585.98",28/06/2016
Commercial,Housing Needs Resources,Private Contractors - Third Pa,60053703,THE BARNETGROUP LIMITED,"32,300.00",08/06/2016
Commercial,HRA,Advertising,60056105,TMP (UK) LTD,79.2,07/06/2016
Commercial,HRA,Agency/Interim Non Hays,60056270,CHILD'S HILL BAPTIST CHURCH,200,14/06/2016
Commercial,HRA,Consultants Fees,60056147,COPPING JOYCE SURVEYORS LIMITED,"1,240.00",07/06/2016
Commercial,HRA,Consultants Fees,60056833,P P C R ASSOCIATES LTD,432.68,14/06/2016
Commercial,HRA,Consultants Fees,60049843,PRIORITY ESTATES PROJECT LTD,"2,654.30",03/06/2016
Commercial,HRA,Consultants Fees,60054700,PRIORITY ESTATES PROJECT LTD,"3,073.40",08/06/2016
Commercial,HRA,Training,60056835,POLICY FORUM FOR LONDON,210,14/06/2016
Commercial,Parking & Infrastructure,Electricity,60055016,LIGHTING REALITY LIMITED,440,22/06/2016
Commercial,Parking & Infrastructure,Equipment and Materials Purcha,60056134,ALLEN CONCRETE LTD,900,23/06/2016
Commercial,Parking & Infrastructure,Equipment and Materials Purcha,60054911,GREENHAM TRADING LIMITED,595.03,09/06/2016
Commercial,Parking & Infrastructure,Equipment and Materials Purcha,60054953,GREENHAM TRADING LIMITED,287.85,09/06/2016
Commercial,Parking & Infrastructure,Equipment and Materials Purcha,60055081,GREENHAM TRADING LIMITED,479.83,14/06/2016
Commercial,Parking & Infrastructure,Equipment and Materials Purcha,60055877,GREENHAM TRADING LIMITED,476.88,29/06/2016
Commercial,Parking & Infrastructure,Equipment and Materials Purcha,60056457,HENROB DIRECT LTD,410,16/06/2016
Commercial,Parking & Infrastructure,Equipment and Materials Purcha,60057318,KLOECKNER METALS UK,"7,431.60",22/06/2016
Commercial,Parking & Infrastructure,Equipment and Materials Purcha,60057345,KLOECKNER METALS UK,312.75,22/06/2016
Commercial,Parking & Infrastructure,Equipment and Materials Purcha,60056460,LAFARGE TARMAC TRADING LIMITED,365.83,23/06/2016
Commercial,Parking & Infrastructure,Equipment and Materials Purcha,60056471,LAFARGE TARMAC TRADING LIMITED,92.85,21/06/2016
Commercial,Parking & Infrastructure,Equipment and Materials Purcha,60056478,LAFARGE TARMAC TRADING LIMITED,236.77,13/06/2016
Commercial,Parking & Infrastructure,Equipment and Materials Purcha,60056488,LAFARGE TARMAC TRADING LIMITED,118.85,13/06/2016
Commercial,Parking & Infrastructure,Equipment and Materials Purcha,60056491,LAFARGE TARMAC TRADING LIMITED,94.71,13/06/2016
Commercial,Parking & Infrastructure,Equipment and Materials Purcha,60056513,LAFARGE TARMAC TRADING LIMITED,100.28,13/06/2016
Commercial,Parking & Infrastructure,Equipment and Materials Purcha,60056519,LAFARGE TARMAC TRADING LIMITED,116.06,13/06/2016
Commercial,Parking & Infrastructure,Equipment and Materials Purcha,60056522,LAFARGE TARMAC TRADING LIMITED,126.28,16/06/2016
Commercial,Parking & Infrastructure,Equipment and Materials Purcha,60056549,LAFARGE TARMAC TRADING LIMITED,120.71,16/06/2016
Commercial,Parking & Infrastructure,Equipment and Materials Purcha,60056552,LAFARGE TARMAC TRADING LIMITED,116.99,14/06/2016
Commercial,Parking & Infrastructure,Equipment and Materials Purcha,60056577,LAFARGE TARMAC TRADING LIMITED,128.13,28/06/2016
Commercial,Parking & Infrastructure,Equipment and Materials Purcha,60056589,LAFARGE TARMAC TRADING LIMITED,98.42,13/06/2016
Commercial,Parking & Infrastructure,Equipment and Materials Purcha,60056596,LAFARGE TARMAC TRADING LIMITED,111.42,16/06/2016
Commercial,Parking & Infrastructure,Equipment and Materials Purcha,60056597,LAFARGE TARMAC TRADING LIMITED,120.71,14/06/2016
Commercial,Parking & Infrastructure,Equipment and Materials Purcha,60056599,LAFARGE TARMAC TRADING LIMITED,118.85,13/06/2016
Commercial,Parking & Infrastructure,Equipment and Materials Purcha,60054302,NSL LTD,"4,687.88",21/06/2016
Commercial,Parking & Infrastructure,Equipment and Materials Purcha,10013260,RENNICK UK LTD,220.02,07/06/2016
Commercial,Parking & Infrastructure,Equipment and Materials Purcha,10013261,RENNICK UK LTD,474,07/06/2016
Commercial,Parking & Infrastructure,Equipment and Materials Purcha,60056173,RENNICK UK LTD,515,16/06/2016
Commercial,Parking & Infrastructure,Equipment and Materials Purcha,60056187,RENNICK UK LTD,293.36,16/06/2016
Commercial,Parking & Infrastructure,Equipment and Materials Purcha,60056202,RENNICK UK LTD,146.68,23/06/2016
Commercial,Parking & Infrastructure,Equipment and Materials Purcha,60057336,TRUEFORM,790,21/06/2016
Commercial,Parking & Infrastructure,Equipment and Materials Purcha,60056453,W. FAYERS & SONS,766.8,10/06/2016
Commercial,Parking & Infrastructure,Equipment and Materials Purcha,60056929,WM SMITH & SONS LIMITED,325.25,16/06/2016
Commercial,Parking & Infrastructure,Equipment and Materials Purcha,60057012,WM SMITH & SONS LIMITED,110.75,16/06/2016
Commercial,Parking & Infrastructure,Equipment and Materials Purcha,60057041,WM SMITH & SONS LIMITED,414.3,16/06/2016
Commercial,Parking & Infrastructure,Equipment and Materials Purcha,60057253,WM SMITH & SONS LIMITED,481.9,29/06/2016
Commercial,Parking & Infrastructure,Miscellaneous Expenses,60057186,PARKEON LIMITED,"7,375.00",21/06/2016
Commercial,Parking & Infrastructure,Other Services,60051197,LONDON COUNCILS,"38,019.32",07/06/2016
Commercial,Parking & Infrastructure,Other Services,60055487,NSL LTD,"1,707.45",02/06/2016
Commercial,Parking & Infrastructure,Printing-Contract,40001540,OFFICE DEPOT UK LTD,12.4,02/06/2016
Commercial,Parking & Infrastructure,Printing-Contract,40001632,OFFICE DEPOT UK LTD,16.05,09/06/2016
Commercial,Parking & Infrastructure,Professional Services,60054653,BUCHANAN COMPUTING LTD,750,02/06/2016
Commercial,Parking & Infrastructure,Professional Services,60054024,NSL LTD,"74,516.76",09/06/2016
Commercial,Parking & Infrastructure,Professional Services,60054775,NSL LTD,33,09/06/2016
Commercial,Parking & Infrastructure,Professional Services,60055455,NSL LTD,"40,289.39",02/06/2016
Commercial,Parking & Infrastructure,Professional Services,60055460,NSL LTD,"218,032.31",02/06/2016
Commercial,Parking & Infrastructure,Professional Services,60055464,NSL LTD,"55,636.75",02/06/2016
Commercial,Parking & Infrastructure,Professional Services,60055483,NSL LTD,"218,032.31",02/06/2016
Commercial,Parking & Infrastructure,Professional Services,60055485,NSL LTD,"4,589.89",02/06/2016
Commercial,Parking & Infrastructure,Professional Services,60055721,NSL LTD,33,13/06/2016
Commercial,Parking & Infrastructure,Professional Services,60057150,NSL LTD,"4,589.89",27/06/2016
Commercial,Parking & Infrastructure,Professional Services,60057160,NSL LTD,"40,289.39",27/06/2016
Commercial,Parking & Infrastructure,Software Licences & Support,60054808,NSL LTD,800,09/06/2016
Commercial,Parking & Infrastructure,Software Licences & Support,60055556,NSL LTD,"33,502.52",02/06/2016
Commercial,Parking & Infrastructure,Software Licences & Support,60056731,NSL LTD,"5,151.84",13/06/2016
Commercial,Parking & Infrastructure,Stationery,40001634,OFFICE DEPOT UK LTD,0.18,09/06/2016
Commercial,Parking & Infrastructure,Water Services,60056463,ANGEL SPRINGS LTD,47.5,29/06/2016
Commercial,Regional Enterprise,Advertising,60049156,TMP (UK) LTD,112.08,08/06/2016
Commercial,Regional Enterprise,Advertising,60049963,TMP (UK) LTD,32.08,08/06/2016
Commercial,Regional Enterprise,Advertising,60052786,TMP (UK) LTD,108.51,02/06/2016
Commercial,Regional Enterprise,Advertising,60052862,TMP (UK) LTD,119.2,01/06/2016
Commercial,Regional Enterprise,Advertising,60053197,TMP (UK) LTD,112.08,08/06/2016
Commercial,Regional Enterprise,Advertising,60053201,TMP (UK) LTD,28.51,01/06/2016
Commercial,Regional Enterprise,Advertising,60053220,TMP (UK) LTD,39.2,02/06/2016
Commercial,Regional Enterprise,Advertising,60053562,TMP (UK) LTD,401.57,01/06/2016
Commercial,Regional Enterprise,Advertising,60053636,TMP (UK) LTD,422.96,01/06/2016
Commercial,Regional Enterprise,Advertising,60053662,TMP (UK) LTD,32.08,01/06/2016
Commercial,Regional Enterprise,Agency/Interim Non Hays,60055271,WE MADE THAT LLP,"12,432.80",07/06/2016
Commercial,Regional Enterprise,Agency/Interim Non Hays,60055283,WE MADE THAT LLP,300.87,09/06/2016
Commercial,Regional Enterprise,Agency/Interim Non Hays,60055472,WE MADE THAT LLP,"25,125.00",16/06/2016
Commercial,Regional Enterprise,Agency/Interim Non Hays,60055500,WE MADE THAT LLP,"16,167.80",16/06/2016
Commercial,Regional Enterprise,Audit Fee,60051805,31TEN CONSULTING LIMITED,"9,950.00",07/06/2016
Commercial,Regional Enterprise,Building Repairs & Maintenance,60056730,CAPITAL  LOCKSMITHS,140,14/06/2016
Commercial,Regional Enterprise,Consultants Fees,60055648,AECOM INFRASTRUCTURE & ENVIRONMENT UK LT,"5,800.00",20/06/2016
Commercial,Regional Enterprise,Consultants Fees,60056529,BNP PARIBUS REAL ESTATE,"6,750.00",13/06/2016
Commercial,Regional Enterprise,Consultants Fees,60055964,EVERSHEDS LLP,"73,454.33",13/06/2016
Commercial,Regional Enterprise,Consultants Fees,60055977,EVERSHEDS LLP,"27,283.30",13/06/2016
Commercial,Regional Enterprise,Consultants Fees,60056003,EVERSHEDS LLP,"138,412.43",13/06/2016
Commercial,Regional Enterprise,Consultants Fees,60057298,EVERSHEDS LLP,"6,446.00",21/06/2016
Commercial,Regional Enterprise,Consultants Fees,60057321,EVERSHEDS LLP,"3,000.00",24/06/2016
Commercial,Regional Enterprise,Consultants Fees,60057338,EVERSHEDS LLP,"3,136.55",21/06/2016
Commercial,Regional Enterprise,Consultants Fees,10013276,KPMG FEES ACCOUNT,"2,500.00",10/06/2016
Commercial,Regional Enterprise,Consultants Fees,60047257,NETWORK RAIL INFRASTRUCTURE LTD,"109,271.56",10/06/2016
Commercial,Regional Enterprise,Consultants Fees,60054304,RAILFREIGHT CONSULTING LTD,"2,887.50",09/06/2016
Commercial,Regional Enterprise,Consultants Fees,60056238,RAILFREIGHT CONSULTING LTD,"1,237.50",23/06/2016
Commercial,Regional Enterprise,Consultants Fees,10013313,RE (REGIONAL ENTERPRISE) LIMITED,-900.2,27/06/2016
Commercial,Regional Enterprise,Consultants Fees,60055971,SAPIENS CONSULTANCY,780,24/06/2016
Commercial,Regional Enterprise,Consultants Fees,60051039,THE BARNETGROUP LIMITED,"72,120.00",07/06/2016
Commercial,Regional Enterprise,Grant Payments,20030424,AMWELL CONSTRUCTION LTD,"4,108.82",09/06/2016
Commercial,Regional Enterprise,Grant Payments,80004462,AMWELL CONSTRUCTION LTD,"1,100.00",27/06/2016
Commercial,Regional Enterprise,Grant Payments,80004465,AMWELL CONSTRUCTION LTD,"5,186.00",27/06/2016
Commercial,Regional Enterprise,Grant Payments,20030439,ARTHUR J. FERRYMAN ASSOCIATES,"1,060.80",09/06/2016
Commercial,Regional Enterprise,Grant Payments,20030441,ARTHUR J. FERRYMAN ASSOCIATES,480,09/06/2016
Commercial,Regional Enterprise,Grant Payments,20030635,BELLAMWOOD LTD,"5,010.00",17/06/2016
Commercial,Regional Enterprise,Grant Payments,20030636,BELLAMWOOD LTD,"5,010.00",17/06/2016
Commercial,Regional Enterprise,Grant Payments,20030637,BELLAMWOOD LTD,"5,010.00",17/06/2016
Commercial,Regional Enterprise,Grant Payments,20030638,BELLAMWOOD LTD,"5,010.00",17/06/2016
Commercial,Regional Enterprise,Grant Payments,20030639,BELLAMWOOD LTD,"6,680.00",17/06/2016
Commercial,Regional Enterprise,Grant Payments,80004028,CAPITAL  LOCKSMITHS,293.8,08/06/2016
Commercial,Regional Enterprise,Grant Payments,80004127,CAPITAL  LOCKSMITHS,80,09/06/2016
Commercial,Regional Enterprise,Grant Payments,80004130,CAPITAL  LOCKSMITHS,243,09/06/2016
Commercial,Regional Enterprise,Grant Payments,80004133,CAPITAL  LOCKSMITHS,187.5,09/06/2016
Commercial,Regional Enterprise,Grant Payments,80004134,CAPITAL  LOCKSMITHS,80,09/06/2016
Commercial,Regional Enterprise,Grant Payments,80004136,CAPITAL  LOCKSMITHS,228.5,09/06/2016
Commercial,Regional Enterprise,Grant Payments,80004158,CAPITAL  LOCKSMITHS,242.5,10/06/2016
Commercial,Regional Enterprise,Grant Payments,80004159,CAPITAL  LOCKSMITHS,132.8,23/06/2016
Commercial,Regional Enterprise,Grant Payments,80004285,CAPITAL  LOCKSMITHS,80,23/06/2016
Commercial,Regional Enterprise,Grant Payments,80004287,CAPITAL  LOCKSMITHS,299,23/06/2016
Commercial,Regional Enterprise,Grant Payments,80004288,CAPITAL  LOCKSMITHS,300,23/06/2016
Commercial,Regional Enterprise,Grant Payments,80004291,CAPITAL  LOCKSMITHS,80,23/06/2016
Commercial,Regional Enterprise,Grant Payments,80004292,CAPITAL  LOCKSMITHS,80,23/06/2016
Commercial,Regional Enterprise,Grant Payments,20030434,DEREK LOFTY & ASSOCIATES,570,10/06/2016
Commercial,Regional Enterprise,Grant Payments,20030433,DOLPHIN MOBILITY LTD.,"7,550.00",09/06/2016
Commercial,Regional Enterprise,Grant Payments,80002772,DOLPHIN MOBILITY LTD.,"3,215.00",06/06/2016
Commercial,Regional Enterprise,Grant Payments,20030432,DOMESTIC LIFT SERVICES LTD,"5,735.00",10/06/2016
Commercial,Regional Enterprise,Grant Payments,20030430,DP BUILDERS DISABLED ADAPTATIONS,"4,754.00",15/06/2016
Commercial,Regional Enterprise,Grant Payments,20030431,DP BUILDERS DISABLED ADAPTATIONS,"3,484.00",15/06/2016
Commercial,Regional Enterprise,Grant Payments,20030435,DP BUILDERS DISABLED ADAPTATIONS,"5,051.00",15/06/2016
Commercial,Regional Enterprise,Grant Payments,20030440,DP BUILDERS DISABLED ADAPTATIONS,"1,670.00",15/06/2016
Commercial,Regional Enterprise,Grant Payments,80004147,DP BUILDERS DISABLED ADAPTATIONS,"4,171.00",16/06/2016
Commercial,Regional Enterprise,Grant Payments,20030436,GHYLLSIDE,"1,891.00",10/06/2016
Commercial,Regional Enterprise,Grant Payments,20030425,H D PROPERTY SERVICES LTD,"4,975.00",09/06/2016
Commercial,Regional Enterprise,Grant Payments,20030426,H D PROPERTY SERVICES LTD,"11,415.00",09/06/2016
Commercial,Regional Enterprise,Grant Payments,20030427,H D PROPERTY SERVICES LTD,"5,059.00",09/06/2016
Commercial,Regional Enterprise,Grant Payments,20030428,H D PROPERTY SERVICES LTD,"5,951.00",09/06/2016
Commercial,Regional Enterprise,Grant Payments,20030603,H D PROPERTY SERVICES LTD,"6,038.00",17/06/2016
Commercial,Regional Enterprise,Grant Payments,80004173,H D PROPERTY SERVICES LTD,"4,687.00",22/06/2016
Commercial,Regional Enterprise,Grant Payments,20030640,MCP PROPERTY SERVICES LTD,"3,039.75",22/06/2016
Commercial,Regional Enterprise,Grant Payments,20030423,REDACTED - PERSONAL DATA,"4,121.34",10/06/2016
Commercial,Regional Enterprise,Grant Payments,20030429,REDACTED - PERSONAL DATA,"4,999.00",10/06/2016
Commercial,Regional Enterprise,Grant Payments,20030437,REDACTED - PERSONAL DATA,"1,517.41",09/06/2016
Commercial,Regional Enterprise,Grant Payments,20030438,REDACTED - PERSONAL DATA,"7,230.00",09/06/2016
Commercial,Regional Enterprise,Grant Payments,20030442,REDACTED - PERSONAL DATA,128.5,10/06/2016
Commercial,Regional Enterprise,Grant Payments,80004508,REDACTED - PERSONAL DATA,"5,960.00",29/06/2016
Commercial,Regional Enterprise,Grant Payments,20030412,SOUTH HERTFORDSHIRE,"7,108.00",09/06/2016
Commercial,Regional Enterprise,Grant Payments,20030413,SOUTH HERTFORDSHIRE,"2,150.07",09/06/2016
Commercial,Regional Enterprise,Grant Payments,20030422,SOUTH HERTFORDSHIRE,"6,036.00",09/06/2016
Commercial,Regional Enterprise,Grant Payments,80004506,SOUTH HERTFORDSHIRE,"8,850.00",29/06/2016
Commercial,Regional Enterprise,Grant Payments,20030409,STANNAH STAIRLIFTS LTD,"4,507.00",09/06/2016
Commercial,Regional Enterprise,Grant Payments,20030410,STANNAH STAIRLIFTS LTD,"4,394.00",09/06/2016
Commercial,Regional Enterprise,Grant Payments,20030411,STANNAH STAIRLIFTS LTD,"2,419.00",09/06/2016
Commercial,Regional Enterprise,Grant Payments,20030414,STANNAH STAIRLIFTS LTD,"4,552.00",09/06/2016
Commercial,Regional Enterprise,Grant Payments,20030415,STANNAH STAIRLIFTS LTD,"4,503.00",09/06/2016
Commercial,Regional Enterprise,Grant Payments,20030416,STANNAH STAIRLIFTS LTD,"4,982.00",09/06/2016
Commercial,Regional Enterprise,Grant Payments,80004148,STANNAH STAIRLIFTS LTD,"4,722.00",09/06/2016
Commercial,Regional Enterprise,Grant Payments,80004151,STANNAH STAIRLIFTS LTD,"2,670.00",09/06/2016
Commercial,Regional Enterprise,Grounds maintenance,60050067,BARTLETT TREE EXPERTS,"20,000.00",14/06/2016
Commercial,Regional Enterprise,Other Services,60056611,AMWELL CONSTRUCTION LTD,491,23/06/2016
Commercial,Regional Enterprise,Other Services,10013258,CITY OF LONDON,"8,021.00",01/06/2016
Commercial,Regional Enterprise,Other Services,60049582,CONWAY AECOM LTD,"13,775.95",28/06/2016
Commercial,Regional Enterprise,Other Services,60052284,CONWAY AECOM LTD,"30,392.21",21/06/2016
Commercial,Regional Enterprise,Other Services,60052434,CONWAY AECOM LTD,"6,744.53",08/06/2016
Commercial,Regional Enterprise,Other Services,60052465,CONWAY AECOM LTD,"203,737.36",27/06/2016
Commercial,Regional Enterprise,Other Services,60052513,CONWAY AECOM LTD,"41,927.54",01/06/2016
Commercial,Regional Enterprise,Other Services,60052544,CONWAY AECOM LTD,"112,657.54",01/06/2016
Commercial,Regional Enterprise,Other Services,60052551,CONWAY AECOM LTD,"79,804.68",01/06/2016
Commercial,Regional Enterprise,Other Services,60052563,CONWAY AECOM LTD,"56,139.34",01/06/2016
Commercial,Regional Enterprise,Other Services,60052657,CONWAY AECOM LTD,"111,352.64",01/06/2016
Commercial,Regional Enterprise,Other Services,60052697,CONWAY AECOM LTD,15.66,01/06/2016
Commercial,Regional Enterprise,Other Services,60053851,CONWAY AECOM LTD,"1,672.53",23/06/2016
Commercial,Regional Enterprise,Other Services,60053856,CONWAY AECOM LTD,295.15,07/06/2016
Commercial,Regional Enterprise,Other Services,60053976,CONWAY AECOM LTD,"23,500.00",01/06/2016
Commercial,Regional Enterprise,Other Services,60054005,CONWAY AECOM LTD,827.49,21/06/2016
Commercial,Regional Enterprise,Other Services,60054485,CONWAY AECOM LTD,"5,000.00",07/06/2016
Commercial,Regional Enterprise,Other Services,60054504,CONWAY AECOM LTD,"20,000.00",07/06/2016
Commercial,Regional Enterprise,Other Services,60054507,CONWAY AECOM LTD,"10,000.00",07/06/2016
Commercial,Regional Enterprise,Other Services,60054523,CONWAY AECOM LTD,0.12,07/06/2016
Commercial,Regional Enterprise,Other Services,60054577,CONWAY AECOM LTD,"5,000.00",23/06/2016
Commercial,Regional Enterprise,Other Services,60054619,CONWAY AECOM LTD,"35,660.00",15/06/2016
Commercial,Regional Enterprise,Other Services,60054623,CONWAY AECOM LTD,"10,000.00",07/06/2016
Commercial,Regional Enterprise,Other Services,60054836,CONWAY AECOM LTD,"228,038.94",28/06/2016
Commercial,Regional Enterprise,Other Services,60055083,CONWAY AECOM LTD,"50,000.00",14/06/2016
Commercial,Regional Enterprise,Other Services,60055092,CONWAY AECOM LTD,"40,000.00",14/06/2016
Commercial,Regional Enterprise,Other Services,60055373,CONWAY AECOM LTD,"65,835.71",16/06/2016
Commercial,Regional Enterprise,Other Services,60055630,CONWAY AECOM LTD,"5,738.18",21/06/2016
Commercial,Regional Enterprise,Other Services,60055787,CONWAY AECOM LTD,"1,011.66",23/06/2016
Commercial,Regional Enterprise,Other Services,60055793,CONWAY AECOM LTD,272.37,23/06/2016
Commercial,Regional Enterprise,Other Services,60055806,CONWAY AECOM LTD,"2,323.02",23/06/2016
Commercial,Regional Enterprise,Other Services,60055811,CONWAY AECOM LTD,181.73,23/06/2016
Commercial,Regional Enterprise,Other Services,60055834,CONWAY AECOM LTD,126.1,23/06/2016
Commercial,Regional Enterprise,Other Services,60055862,CONWAY AECOM LTD,52.99,23/06/2016
Commercial,Regional Enterprise,Other Services,60055875,CONWAY AECOM LTD,484.7,23/06/2016
Commercial,Regional Enterprise,Other Services,60055931,CONWAY AECOM LTD,"23,500.00",29/06/2016
Commercial,Regional Enterprise,Other Services,60057085,GEOPLACE LLP,450,20/06/2016
Commercial,Regional Enterprise,Other Services,60040942,LETTERBOX DISTRIBUTION.COM,"2,370.18",09/06/2016
Commercial,Regional Enterprise,Other Services,10013264,LIBERTY SERVICES,"3,332.43",07/06/2016
Commercial,Regional Enterprise,Other Services,60056595,LIBERTY SERVICES,"1,820.69",21/06/2016
Commercial,Regional Enterprise,Other Services,60056598,LIBERTY SERVICES,"2,025.61",14/06/2016
Commercial,Regional Enterprise,Other Services,60055506,ROYAL MAIL GROUP LIMITED,7.04,07/06/2016
Commercial,Regional Enterprise,Other Services,60057466,SARG ENGINEERING (UK) LIMITED,"2,500.00",24/06/2016
Commercial,Regional Enterprise,Other Services,60052755,TRAFFIC SURVEY PARTNERS (TSP) LTD,300,01/06/2016
Commercial,Regional Enterprise,Professional Services,60056688,NSL LTD,"5,000.00",13/06/2016
Commercial,Regional Enterprise,Professional Services,60057207,NSL LTD,"1,470.00",27/06/2016
Commercial,Regional Enterprise,Professional Services,60054689,OPENVIEW SECURITY SOLUTIONS LTD,"43,082.44",21/06/2016
Commercial,Regional Enterprise,Professional Services,60056182,RE (REGIONAL ENTERPRISE) LIMITED,"590,000.00",29/06/2016
Commercial,Regional Enterprise,Professional Services,60054774,WATES LIVING SPACE,"1,889.69",01/06/2016
Commercial,Regional Enterprise,Proj Consultancy Pep Recharge,10013142,OPINION RESEARCH SERVICES,"17,262.50",21/06/2016
Commercial,Regional Enterprise,RE Services Contract Payment,10013311,RE (REGIONAL ENTERPRISE) LIMITED,"358,933.34",27/06/2016
Commercial,Regional Enterprise,RE Services Contract Payment,10013312,RE (REGIONAL ENTERPRISE) LIMITED,"-8,504.09",27/06/2016
Commercial,Regional Enterprise,RE Services Contract Payment,60055172,RE (REGIONAL ENTERPRISE) LIMITED,"367,088.67",07/06/2016
Commercial,Regional Enterprise,RE Services Contract Payment,60055208,RE (REGIONAL ENTERPRISE) LIMITED,"132,911.33",07/06/2016
Commercial,Regional Enterprise,RE Services Contract Payment,60055820,RE (REGIONAL ENTERPRISE) LIMITED,"1,356,165.38",03/06/2016
Commercial,Regional Enterprise,RE Services Contract Payment,60055884,RE (REGIONAL ENTERPRISE) LIMITED,"10,000.00",09/06/2016
Commercial,Regional Enterprise,RE Services Contract Payment,60056020,RE (REGIONAL ENTERPRISE) LIMITED,"129,688.00",09/06/2016
Commercial,Regional Enterprise,RE Services Contract Payment,60056278,RE (REGIONAL ENTERPRISE) LIMITED,"4,028,990.00",15/06/2016
Commercial,Regional Enterprise,RE Services Contract Payment,60057663,RE (REGIONAL ENTERPRISE) LIMITED,"332,071.51",29/06/2016
Commercial,Regional Enterprise,RE Services Contract Payment,60057877,RE (REGIONAL ENTERPRISE) LIMITED,"64,844.00",29/06/2016
Commercial,Regional Enterprise,Rents,60054592,INTERNATIONAL GOSPEL CHURCH,180,17/06/2016
Commercial,Regional Enterprise,Subscriptions,60055291,LONDON FIRST,450,21/06/2016
Commercial,Regional Enterprise,Ttl IT & Comms,60055693,THE BARNETGROUP LIMITED,172.08,02/06/2016
Commissioning,Commissioning,Building Repairs & Maintenance,60056148,LETTERBOX DISTRIBUTION.COM,945.39,07/06/2016
Commissioning,Commissioning,Consultants Fees,60055754,AFFINITY WATER LIMITED,"5,765.86",24/06/2016
Commissioning,Commissioning,Consultants Fees,60056782,COPPER CONSULTING LTD,"4,405.00",14/06/2016
Commissioning,Commissioning,Consultants Fees,60056710,DELIB LIMITED,"5,500.00",13/06/2016
Commissioning,Commissioning,Consultants Fees,60057176,FULCRUM PIPELINES LTD,"11,012.94",29/06/2016
Commissioning,Commissioning,Consultants Fees,60057262,GATENBY SANDERSON,"5,250.00",21/06/2016
Commissioning,Commissioning,Consultants Fees,60051812,KAZOU CONSULTANCY LTD,413.12,21/06/2016
Commissioning,Commissioning,Consultants Fees,60056614,L G FUTURES,"1,995.00",23/06/2016
Commissioning,Commissioning,Consultants Fees,60056763,L G FUTURES,695,22/06/2016
Commissioning,Commissioning,Consultants Fees,60056936,MEDIA FIRST LTD,"1,595.00",20/06/2016
Commissioning,Commissioning,Consultants Fees,60055747,MURPHY SURVEYS LIMITED,"2,800.00",27/06/2016
Commissioning,Commissioning,Consultants Fees,60054678,MUTUAL VENTURES LTD,"63,693.14",07/06/2016
Commissioning,Commissioning,Consultants Fees,60056625,OPINION RESEARCH SERVICES,750,29/06/2016
Commissioning,Commissioning,Consultants Fees,60054683,PRECIOUS MOMENTS AND HEALTH LTD,"1,562.50",08/06/2016
Commissioning,Commissioning,Consultants Fees,80004325,REDACTED - PERSONAL DATA,171.99,17/06/2016
Commissioning,Commissioning,Consultants Fees,80004321,SOUTHAMPTON CITY COUNCIL,"1,293.70",17/06/2016
Commissioning,Commissioning,Consultants Fees,60056724,THOMPSON SOLICITORS,350,13/06/2016
Commissioning,Commissioning,Consultants Fees,60055488,UK POWER NETWORKS,"6,573.66",08/06/2016
Commissioning,Commissioning,Consultants Fees,60053710,VALUATION OFFICE AGENCY,"2,161.28",08/06/2016
Commissioning,Commissioning,Consultants Fees,60055770,WATES CONSTRUCTION LTD,"46,535.66",01/06/2016
Commissioning,Commissioning,Consultants Fees,60055602,WILLMOTT DIXON CONSTRUCTION LTD,"163,370.00",20/06/2016
Commissioning,Commissioning,Consultants Fees,60055638,WILLMOTT DIXON CONSTRUCTION LTD,"111,788.00",01/06/2016
Commissioning,Commissioning,Consultants Fees,60055675,WILLMOTT DIXON CONSTRUCTION LTD,"49,978.00",01/06/2016
Commissioning,Commissioning,Employee Expenses,60057343,COPTHALL SCHOOL (ACADEMY),"4,840.86",21/06/2016
Commissioning,Commissioning,Employee Expenses,60055375,JOBTARGET LTD T/AS YOURMEMBERSHIP,275,02/06/2016
Commissioning,Commissioning,Employee Expenses,60055735,TMP (UK) LTD,525.05,17/06/2016
Commissioning,Commissioning,Employee Expenses,60055976,TMP (UK) LTD,462,06/06/2016
Commissioning,Commissioning,Equipment and Materials Purcha,60056900,GALLIFORD TRY,"33,086.97",23/06/2016
Commissioning,Commissioning,Equipment and Materials Purcha,60056034,NISBETS PLC,59.24,07/06/2016
Commissioning,Commissioning,Equipment and Materials Purcha,60056054,NISBETS PLC,71.03,07/06/2016
Commissioning,Commissioning,Equipment and Materials Purcha,60055661,RGE SERVICES,"1,910.88",01/06/2016
Commissioning,Commissioning,Equipment and Materials Purcha,60056631,RGE SERVICES,99.41,16/06/2016
Commissioning,Commissioning,Equipment and Materials Purcha,60056158,WINDOW FLOWERS LTD,"8,330.00",07/06/2016
Commissioning,Commissioning,General Office Expenses,40001541,OFFICE DEPOT UK LTD,0.59,02/06/2016
Commissioning,Commissioning,Grant Payments,80004060,ART AGAINST KNIVES,"9,060.00",03/06/2016
Commissioning,Commissioning,Grant Payments,80004054,COMMUNITY BARNET,"9,999.00",03/06/2016
Commissioning,Commissioning,Grant Payments,80004055,COMMUNITY BARNET,"7,022.00",03/06/2016
Commissioning,Commissioning,Grant Payments,80003867,COMMUNITY FOCUS,"15,766.00",01/06/2016
Commissioning,Commissioning,Grant Payments,80004057,EAST BARNET COMMUNITY FESTIVAL,"1,600.00",03/06/2016
Commissioning,Commissioning,Grant Payments,80004514,EAST BARNET COMMUNITY FESTIVAL,"2,000.00",29/06/2016
Commissioning,Commissioning,Grant Payments,80004515,FRIERN BARNET CMMTY LIBRARY,"2,500.00",29/06/2016
Commissioning,Commissioning,Grant Payments,80004007,HEART REACH LIMITED,"1,950.00",02/06/2016
Commissioning,Commissioning,Grant Payments,80004064,HENDON GROVE ALLOTMENT SOCIETY,"4,250.00",07/06/2016
Commissioning,Commissioning,Grant Payments,80004053,LEAGUS DELANEY,"9,999.00",03/06/2016
Commissioning,Commissioning,Grant Payments,80004058,TES YOUTH CIC,"9,460.00",03/06/2016
Commissioning,Commissioning,Grant Payments,60057743,THE BARNETGROUP LIMITED,"33,460.95",27/06/2016
Commissioning,Commissioning,Health authorities - Third Par,60056869,BARNET & DISTRICT ATHLETIC CLUB,75,16/06/2016
Commissioning,Commissioning,It Strategy Pep Recharge,60056220,GENERAL DYNAMICS INFORMATION TECHNOLOGY,"5,775.28",16/06/2016
Commissioning,Commissioning,Joint Authorities - Third Part,EBX0121966,NORTH LONDON WASTE AUTHORITY,"904,617.00",24/06/2016
Commissioning,Commissioning,Other Agencies - Third Party P,60050927,FAMILY FUND TRADING LTD,"2,836.66",07/06/2016
Commissioning,Commissioning,Other Agencies - Third Party P,60051661,FAMILY FUND TRADING LTD,-422.18,24/06/2016
Commissioning,Commissioning,Other Agencies - Third Party P,60052708,FAMILY FUND TRADING LTD,-735.62,15/06/2016
Commissioning,Commissioning,Other Agencies - Third Party P,60053766,FAMILY FUND TRADING LTD,"1,533.33",13/06/2016
Commissioning,Commissioning,Other Agencies - Third Party P,60054308,FAMILY FUND TRADING LTD,"1,585.00",13/06/2016
Commissioning,Commissioning,Other Agencies - Third Party P,60055010,FAMILY FUND TRADING LTD,92,17/06/2016
Commissioning,Commissioning,Other Agencies - Third Party P,60055034,FAMILY FUND TRADING LTD,"-1,126.02",24/06/2016
Commissioning,Commissioning,Other Agencies - Third Party P,60055433,FAMILY FUND TRADING LTD,736.67,24/06/2016
Commissioning,Commissioning,Other Agencies - Third Party P,60055858,FAMILY FUND TRADING LTD,204.17,24/06/2016
Commissioning,Commissioning,Other Agencies - Third Party P,60056048,FAMILY FUND TRADING LTD,103,06/06/2016
Commissioning,Commissioning,Other Agencies - Third Party P,60056344,FAMILY FUND TRADING LTD,"3,455.00",24/06/2016
Commissioning,Commissioning,Other Agencies - Third Party P,60056791,FAMILY FUND TRADING LTD,"4,750.00",15/06/2016
Commissioning,Commissioning,Other Services,60056240,BLUE 9 SECURITY LIMITED,"3,308.63",09/06/2016
Commissioning,Commissioning,Other Services,60055769,ENVENTURE CONSULTANCY LIMITED,"7,036.40",02/06/2016
Commissioning,Commissioning,Other Services,60057383,LONDON BOROUGH OF EALING,"8,900.00",23/06/2016
Commissioning,Commissioning,Other Transfer Payments to Soc,60055635,LIQUID PERSONNEL LTD,"4,652.00",07/06/2016
Commissioning,Commissioning,Other Transfer Payments to Soc,60056042,LIQUID PERSONNEL LTD,"12,249.00",29/06/2016
Commissioning,Commissioning,Other Transfer Payments to Soc,60057314,TMP (UK) LTD,"2,931.44",24/06/2016
Commissioning,Commissioning,Printing-Contract,60053336,LETTERBOX DISTRIBUTION.COM,256.2,09/06/2016
Commissioning,Commissioning,Printing-Contract,60055924,LETTERBOX DISTRIBUTION.COM,"9,145.50",06/06/2016
Commissioning,Commissioning,Printing-Contract,40001516,OFFICE DEPOT UK LTD,0.27,02/06/2016
Commissioning,Commissioning,Printing-Contract,40001520,OFFICE DEPOT UK LTD,1.2,02/06/2016
Commissioning,Commissioning,Printing-Contract,40001622,OFFICE DEPOT UK LTD,0.81,02/06/2016
Commissioning,Commissioning,Professional Services,60056213,GENERAL DYNAMICS INFORMATION TECHNOLOGY,"5,456.80",08/06/2016
Commissioning,Commissioning,Professional Services,60056259,GENERAL DYNAMICS INFORMATION TECHNOLOGY,"5,876.08",16/06/2016
Commissioning,Commissioning,Professional Services,80004227,L G FUTURES,"1,278.57",24/06/2016
Commissioning,Commissioning,Professional Services,10013309,QUALITY FIELDWORK & RESEARCH,840,24/06/2016
Commissioning,Commissioning,Professional Services,60055678,REDACTED - PERSONAL DATA,995,02/06/2016
Commissioning,Commissioning,Publications,60057468,ZENITH RESOURCING,"1,170.00",23/06/2016
Commissioning,Commissioning,Publications,60057490,ZENITH RESOURCING,468,23/06/2016
Commissioning,Commissioning,Publications,60057505,ZENITH RESOURCING,936,23/06/2016
Commissioning,Commissioning,Publications,60057508,ZENITH RESOURCING,"1,053.00",23/06/2016
Commissioning,Commissioning,Publications,60057510,ZENITH RESOURCING,"1,170.00",23/06/2016
Commissioning,Commissioning,Publications,60057548,ZENITH RESOURCING,"1,170.00",29/06/2016
Commissioning,Commissioning,Software Licences & Support,60056545,ACCESS INTELLIGENCE MEDIA & COMM.LT,"4,620.00",23/06/2016
Commissioning,Commissioning,Software Licences & Support,60054506,DOTTED EYES LTD,759,02/06/2016
Commissioning,Commissioning,Subscriptions,60057066,PDP TRAINING,275,20/06/2016
Commissioning,Commissioning,Subscriptions,60057082,PDP TRAINING,"1,095.00",16/06/2016
Commissioning,Commissioning,Subscriptions,60055880,RUN A CLUB LTD,"3,666.67",06/06/2016
Commissioning,Commissioning,Training,60056802,CAPITA BUSINESS SERVICES LTD,54,29/06/2016
Commissioning,Commissioning,Training,60054944,DOD'S PARLIAMENTARY,295,07/06/2016
Commissioning,Commissioning,Training,60047820,KEEP BRITAIN TIDY,"7,140.00",07/06/2016
Commissioning,Commissioning,Training,60047824,KEEP BRITAIN TIDY,"1,000.00",08/06/2016
Commissioning,Commissioning,Transport Hire Charges,60056333,BARNET COMMUNITY TRANSPORT,440,13/06/2016
Commissioning,Commissioning,Ttl IT & Comms,60053239,BRITISH TELECOM PLC,116.19,14/06/2016
Commissioning,Commissioning,Venue Hire,60057168,BARNET & SOUTHGATE COLLEGE,430,20/06/2016
Corporate Accounting,Corporate Accounting,Other Agencies - Third Party P,60056783,THE BARNETGROUP LIMITED,"5,480,882.34",14/06/2016
Corporate Accounting,Corporate Accounting,Other Local Authorities - Thir,EBX0120143,GREATER LONDON AUTHORITY,"1,711,467.00",10/06/2016
Corporate Accounting,Corporate Accounting,Other Local Authorities - Thir,EBX0122211,GREATER LONDON AUTHORITY,"3,891,785.34",28/06/2016
Corporate Accounting,Corporate Accounting,Other Transfer Payments to Soc,60034170,CITIBANK NA LONDON,200,10/06/2016
Corporate Accounting,Corporate Accounting,Other Transfer Payments to Soc,60052473,CITIBANK NA LONDON,554.01,13/06/2016
Corporate Accounting,Corporate Accounting,Other Transfer Payments to Soc,60052537,CITIBANK NA LONDON,57.9,13/06/2016
Corporate Accounting,Corporate Accounting,Other Transfer Payments to Soc,60054520,CITIBANK NA LONDON,"5,424.45",10/06/2016
Corporate Accounting,Corporate Accounting,Other Transfer Payments to Soc,60054996,CITIBANK NA LONDON,205.1,28/06/2016
Corporate Accounting,Corporate Accounting,Other Transfer Payments to Soc,60055009,CITIBANK NA LONDON,300,17/06/2016
Corporate Accounting,Corporate Accounting,Other Transfer Payments to Soc,60055014,CITIBANK NA LONDON,"4,111.10",17/06/2016
Corporate Accounting,Corporate Accounting,Other Transfer Payments to Soc,60055027,CITIBANK NA LONDON,"2,781.65",28/06/2016
Corporate Accounting,Corporate Accounting,Other Transfer Payments to Soc,60056070,CITIBANK NA LONDON,"1,844.75",08/06/2016
Corporate Accounting,Corporate Accounting,Other Transfer Payments to Soc,60056095,CITIBANK NA LONDON,"1,793.75",08/06/2016
Corporate Accounting,Corporate Accounting,Other Transfer Payments to Soc,60056111,CITIBANK NA LONDON,200,08/06/2016
Corporate Accounting,Corporate Accounting,Other Transfer Payments to Soc,60056138,CITIBANK NA LONDON,48,08/06/2016
Corporate Accounting,Corporate Accounting,Other Transfer Payments to Soc,60056156,CITIBANK NA LONDON,380.24,08/06/2016
Corporate Accounting,Corporate Accounting,Other Transfer Payments to Soc,60056174,CITIBANK NA LONDON,"1,500.00",08/06/2016
Corporate Accounting,Corporate Accounting,Other Transfer Payments to Soc,60056180,CITIBANK NA LONDON,"1,650.15",08/06/2016
Corporate Accounting,Corporate Accounting,Other Transfer Payments to Soc,60056184,CITIBANK NA LONDON,57.9,08/06/2016
Corporate Accounting,Corporate Accounting,Other Transfer Payments to Soc,60056190,CITIBANK NA LONDON,327.1,08/06/2016
Corporate Accounting,Corporate Accounting,Other Transfer Payments to Soc,60056197,CITIBANK NA LONDON,72.9,08/06/2016
Corporate Accounting,Corporate Accounting,Other Transfer Payments to Soc,60056201,CITIBANK NA LONDON,"1,695.10",08/06/2016
Corporate Accounting,Corporate Accounting,Other Transfer Payments to Soc,60056210,CITIBANK NA LONDON,"3,298.65",08/06/2016
Corporate Accounting,Corporate Accounting,Other Transfer Payments to Soc,60056334,CITIBANK NA LONDON,920.5,10/06/2016
Corporate Accounting,Corporate Accounting,Other Transfer Payments to Soc,60056362,CITIBANK NA LONDON,"1,633.87",10/06/2016
Corporate Accounting,Corporate Accounting,Other Transfer Payments to Soc,60056363,CITIBANK NA LONDON,704.99,10/06/2016
Corporate Accounting,Corporate Accounting,Other Transfer Payments to Soc,60056367,CITIBANK NA LONDON,275.8,10/06/2016
Corporate Accounting,Corporate Accounting,Other Transfer Payments to Soc,60056378,CITIBANK NA LONDON,372.4,10/06/2016
Corporate Accounting,Corporate Accounting,Other Transfer Payments to Soc,60056399,CITIBANK NA LONDON,94,10/06/2016
Corporate Accounting,Corporate Accounting,Other Transfer Payments to Soc,60056417,CITIBANK NA LONDON,57.9,10/06/2016
Corporate Accounting,Corporate Accounting,Other Transfer Payments to Soc,60056437,CITIBANK NA LONDON,528.9,10/06/2016
Corporate Accounting,Corporate Accounting,Other Transfer Payments to Soc,60056445,CITIBANK NA LONDON,489.5,10/06/2016
Corporate Accounting,Corporate Accounting,Other Transfer Payments to Soc,60056448,CITIBANK NA LONDON,277.5,10/06/2016
Corporate Accounting,Corporate Accounting,Other Transfer Payments to Soc,60056940,CITIBANK NA LONDON,296.55,16/06/2016
Corporate Accounting,Corporate Accounting,Other Transfer Payments to Soc,60056942,CITIBANK NA LONDON,697.9,16/06/2016
Corporate Accounting,Corporate Accounting,Other Transfer Payments to Soc,60056945,CITIBANK NA LONDON,"24,379.87",16/06/2016
Corporate Accounting,Corporate Accounting,Other Transfer Payments to Soc,60056978,CITIBANK NA LONDON,"1,088.50",16/06/2016
Corporate Accounting,Corporate Accounting,Other Transfer Payments to Soc,60056989,CITIBANK NA LONDON,548.7,16/06/2016
Corporate Accounting,Corporate Accounting,Other Transfer Payments to Soc,60056994,CITIBANK NA LONDON,311,16/06/2016
Corporate Accounting,Corporate Accounting,Other Transfer Payments to Soc,60057016,CITIBANK NA LONDON,"2,788.60",16/06/2016
Corporate Accounting,Corporate Accounting,Other Transfer Payments to Soc,60057326,CITIBANK NA LONDON,833.4,22/06/2016
Corporate Accounting,Corporate Accounting,Other Transfer Payments to Soc,60057329,CITIBANK NA LONDON,204.1,22/06/2016
Corporate Accounting,Corporate Accounting,Other Transfer Payments to Soc,60057349,CITIBANK NA LONDON,50,22/06/2016
Corporate Accounting,Corporate Accounting,Other Transfer Payments to Soc,60057368,CITIBANK NA LONDON,803.7,22/06/2016
Corporate Accounting,Corporate Accounting,Other Transfer Payments to Soc,60057370,CITIBANK NA LONDON,477.9,22/06/2016
Corporate Accounting,Corporate Accounting,Other Transfer Payments to Soc,60057392,CITIBANK NA LONDON,265.8,22/06/2016
Delivery Units,Adults and Communities,Building Repairs & Maintenance,60056039,RNC ENTERPRISES LTD,124.5,06/06/2016
Delivery Units,Adults and Communities,Cleaning and domestic material,60045414,CHURCHILL CONTRACT SERVICES,409.43,09/06/2016
Delivery Units,Adults and Communities,Cleaning and domestic material,60045482,CHURCHILL CONTRACT SERVICES,395.25,09/06/2016
Delivery Units,Adults and Communities,Cleaning and domestic material,40001553,OFFICE DEPOT UK LTD,168.66,02/06/2016
Delivery Units,Adults and Communities,Cleaning and domestic material,10013266,SUPERCLEAN SERVICES WOTHORPE LTD,602.55,08/06/2016
Delivery Units,Adults and Communities,Cleaning and domestic material,10013267,SUPERCLEAN SERVICES WOTHORPE LTD,602.55,08/06/2016
Delivery Units,Adults and Communities,Cleaning and domestic material,10013268,SUPERCLEAN SERVICES WOTHORPE LTD,602.55,08/06/2016
Delivery Units,Adults and Communities,Cleaning and domestic material,60057341,SUPERCLEAN SERVICES WOTHORPE LTD,602.55,21/06/2016
Delivery Units,Adults and Communities,Consultants Fees,60057346,BARNET CITIZENS ADVICE BUREAU,"84,705.00",21/06/2016
Delivery Units,Adults and Communities,Equipment and Materials Purcha,60051175,BACK CARE SOLUTIONS LIMITED,137.5,01/06/2016
Delivery Units,Adults and Communities,Equipment and Materials Purcha,60027821,MEDEQUIP ASSISTIVE TECHNOLOGY LTD,761.4,20/06/2016
Delivery Units,Adults and Communities,Equipment and Materials Purcha,60052394,MEDEQUIP ASSISTIVE TECHNOLOGY LTD,995.1,20/06/2016
Delivery Units,Adults and Communities,Equipment and Materials Purcha,60052421,MEDEQUIP ASSISTIVE TECHNOLOGY LTD,"1,380.00",20/06/2016
Delivery Units,Adults and Communities,Equipment and Materials Purcha,60053510,MEDEQUIP ASSISTIVE TECHNOLOGY LTD,360,20/06/2016
Delivery Units,Adults and Communities,Equipment and Materials Purcha,60054999,PICKLES CHEMIST,200.77,17/06/2016
Delivery Units,Adults and Communities,Equipment Hire,60056992,INDEPENDENT LIVING CO,220,16/06/2016
Delivery Units,Adults and Communities,Equipment Hire,60056998,INDEPENDENT LIVING CO,120,16/06/2016
Delivery Units,Adults and Communities,Food Costs,60057296,MULLER MILK & INGREDIENTS,1.44,21/06/2016
Delivery Units,Adults and Communities,Food Costs,60057311,MULLER MILK & INGREDIENTS,1.44,21/06/2016
Delivery Units,Adults and Communities,Food Costs,60057333,MULLER MILK & INGREDIENTS,1.44,24/06/2016
Delivery Units,Adults and Communities,Food Costs,60057348,MULLER MILK & INGREDIENTS,1.44,21/06/2016
Delivery Units,Adults and Communities,Food Costs,60057354,MULLER MILK & INGREDIENTS,1.44,21/06/2016
Delivery Units,Adults and Communities,Food Costs,60057361,MULLER MILK & INGREDIENTS,1.44,21/06/2016
Delivery Units,Adults and Communities,Food Costs,60057372,MULLER MILK & INGREDIENTS,1.44,21/06/2016
Delivery Units,Adults and Communities,Food Costs,60057382,MULLER MILK & INGREDIENTS,1.44,21/06/2016
Delivery Units,Adults and Communities,Food Costs,60057394,MULLER MILK & INGREDIENTS,1.44,21/06/2016
Delivery Units,Adults and Communities,Food Costs,60057396,MULLER MILK & INGREDIENTS,1.44,21/06/2016
Delivery Units,Adults and Communities,Furniture-Purchase-Repair,60043448,NORTH LONDON LOCKSMITHS LTD,75,20/06/2016
Delivery Units,Adults and Communities,Furniture-Purchase-Repair,60043758,NORTH LONDON LOCKSMITHS LTD,75,20/06/2016
Delivery Units,Adults and Communities,Furniture-Purchase-Repair,60049568,NORTH LONDON LOCKSMITHS LTD,55,20/06/2016
Delivery Units,Adults and Communities,Furniture-Purchase-Repair,60056615,REDACTED - PERSONAL DATA,100,13/06/2016
Delivery Units,Adults and Communities,Gas,60055069,BRITISH GAS BUSINESS,"1,369.49",09/06/2016
Delivery Units,Adults and Communities,Gas,60055353,KENT COUNTY COUNCIL (KCS),208.36,01/06/2016
Delivery Units,Adults and Communities,General Office Expenses,60054313,BACK CARE SOLUTIONS LIMITED,"1,138.26",13/06/2016
Delivery Units,Adults and Communities,General Office Expenses,40001645,OFFICE DEPOT UK LTD,13.49,15/06/2016
Delivery Units,Adults and Communities,Other Agencies - Third Party P,30125047,AARON COURT CARE HOME,"2,144.91",22/06/2016
Delivery Units,Adults and Communities,Other Agencies - Third Party P,30124986,ABBEY RAVENSCROFT PARK NURSING HOME,"2,569.89",22/06/2016
Delivery Units,Adults and Communities,Other Agencies - Third Party P,30124994,ABBEY RAVENSCROFT PARK NURSING HOME,"2,569.89",22/06/2016
Delivery Units,Adults and Communities,Other Agencies - Third Party P,30124996,ABBEY RAVENSCROFT PARK NURSING HOME,"-1,800.00",22/06/2016
Delivery Units,Adults and Communities,Other Agencies - Third Party P,30124997,ABBEY RAVENSCROFT PARK NURSING HOME,"2,320.37",22/06/2016
Delivery Units,Adults and Communities,Other Agencies - Third Party P,30124998,ABBEY RAVENSCROFT PARK NURSING HOME,"2,569.89",22/06/2016
Delivery Units,Adults and Communities,Other Agencies - Third Party P,30124999,ABBEY RAVENSCROFT PARK NURSING HOME,"2,569.89",22/06/2016
Delivery Units,Adults and Communities,Other Agencies - Third Party P,30125000,ABBEY RAVENSCROFT PARK NURSING HOME,"2,569.89",22/06/2016
Delivery Units,Adults and Communities,Other Agencies - Third Party P,30125002,ABBEY RAVENSCROFT PARK NURSING HOME,"2,569.89",22/06/2016
Delivery Units,Adults and Communities,Other Agencies - Third Party P,30125003,ABBEY RAVENSCROFT PARK NURSING HOME,"2,569.89",22/06/2016
Delivery Units,Adults and Communities,Other Agencies - Third Party P,30125004,ABBEY RAVENSCROFT PARK NURSING HOME,"3,000.00",22/06/2016
Delivery Units,Adults and Communities,Other Agencies - Third Party P,30125005,ABBEY RAVENSCROFT PARK NURSING HOME,"3,000.00",22/06/2016
Delivery Units,Adults and Communities,Other Agencies - Third Party P,30125006,ABBEY RAVENSCROFT PARK NURSING HOME,"2,369.79",22/06/2016
Delivery Units,Adults and Communities,Other Agencies - Third Party P,30125007,ABBEY RAVENSCROFT PARK NURSING HOME,"2,892.86",22/06/2016
Delivery Units,Adults and Communities,Other Agencies - Third Party P,30125008,ABBEY RAVENSCROFT PARK NURSING HOME,"2,569.24",22/06/2016
Delivery Units,Adults and Communities,Other Agencies - Third Party P,30125009,ABBEY RAVENSCROFT PARK NURSING HOME,"3,000.00",22/06/2016
Delivery Units,Adults and Communities,Other Agencies - Third Party P,30125010,ABBEY RAVENSCROFT PARK NURSING HOME,"3,000.00",22/06/2016
Delivery Units,Adults and Communities,Other Agencies - Third Party P,30125011,ABBEY RAVENSCROFT PARK NURSING HOME,"3,000.00",22/06/2016
Delivery Units,Adults and Communities,Other Agencies - Third Party P,30125012,ABBEY RAVENSCROFT PARK NURSING HOME,"3,000.00",22/06/2016
Delivery Units,Adults and Communities,Other Agencies - Third Party P,30125013,ABBEY RAVENSCROFT PARK NURSING HOME,"3,000.00",22/06/2016
Delivery Units,Adults and Communities,Other Agencies - Third Party P,30125014,ABBEY RAVENSCROFT PARK NURSING HOME,"3,000.00",22/06/2016
Delivery Units,Adults and Communities,Other Agencies - Third Party P,30125015,ABBEY RAVENSCROFT PARK NURSING HOME,"3,000.00",22/06/2016
Delivery Units,Adults and Communities,Other Agencies - Third Party P,30125402,ABBEY RAVENSCROFT PARK NURSING HOME,"2,900.00",24/06/2016
Delivery Units,Adults and Communities,Other Agencies - Third Party P,30125403,ABBEY RAVENSCROFT PARK NURSING HOME,"3,100.00",24/06/2016
Delivery Units,Adults and Communities,Other Agencies - Third Party P,30125404,ABBEY RAVENSCROFT PARK NURSING HOME,"3,000.00",24/06/2016
Delivery Units,Adults and Communities,Other Agencies - Third Party P,30126500,ABBEY RAVENSCROFT PARK NURSING HOME,"2,300.00",29/06/2016
Delivery Units,Adults and Communities,Other Agencies - Third Party P,30126501,ABBEY RAVENSCROFT PARK NURSING HOME,"3,100.00",29/06/2016
Delivery Units,Adults and Communities,Other Agencies - Third Party P,30126502,ABBEY RAVENSCROFT PARK NURSING HOME,"3,000.00",29/06/2016
Delivery Units,Adults and Communities,Other Agencies - Third Party P,30126504,ABBEY RAVENSCROFT PARK NURSING HOME,"3,100.00",29/06/2016
Delivery Units,Adults and Communities,Other Agencies - Third Party P,30126505,ABBEY RAVENSCROFT PARK NURSING HOME,"2,570.70",29/06/2016
Delivery Units,Adults and Communities,Other Agencies - Third Party P,30126506,ABBEY RAVENSCROFT PARK NURSING HOME,"3,100.00",29/06/2016
Delivery Units,Adults and Communities,Other Agencies - Third Party P,30126507,ABBEY RAVENSCROFT PARK NURSING HOME,"3,000.00",29/06/2016
Delivery Units,Adults and Communities,Other Agencies - Third Party P,30126508,ABBEY RAVENSCROFT PARK NURSING HOME,"3,100.00",29/06/2016
Delivery Units,Adults and Communities,Other Agencies - Third Party P,30126509,ABBEY RAVENSCROFT PARK NURSING HOME,"3,000.00",29/06/2016
Delivery Units,Adults and Communities,Other Agencies - Third Party P,30126510,ABBEY RAVENSCROFT PARK NURSING HOME,"3,100.00",29/06/2016
Delivery Units,Adults and Communities,Other Agencies - Third Party P,30126512,ABBEY RAVENSCROFT PARK NURSING HOME,"1,700.00",29/06/2016
Delivery Units,Adults and Communities,Other Agencies - Third Party P,30126513,ABBEY RAVENSCROFT PARK NURSING HOME,"3,100.00",29/06/2016
Delivery Units,Adults and Communities,Other Agencies - Third Party P,30126514,ABBEY RAVENSCROFT PARK NURSING HOME,"3,100.00",29/06/2016
Delivery Units,Adults and Communities,Other Agencies - Third Party P,30126515,ABBEY RAVENSCROFT PARK NURSING HOME,"3,000.00",29/06/2016
Delivery Units,Adults and Communities,Other Agencies - Third Party P,30126516,ABBEY RAVENSCROFT PARK NURSING HOME,"3,000.00",29/06/2016
Delivery Units,Adults and Communities,Other Agencies - Third Party P,30126517,ABBEY RAVENSCROFT PARK NURSING HOME,"-1,741.44",29/06/2016
Delivery Units,Adults and Communities,Other Agencies - Third Party P,30123699,ACCEDO CARE LTD,"6,594.14",03/06/2016
Delivery Units,Adults and Communities,Other Agencies - Third Party P,30126453,ACCEDO CARE LTD,"6,381.43",29/06/2016
Delivery Units,Adults and Communities,Other Agencies - Third Party P,30124566,AGUDAS ISRAEL HOUSING ASSCTN LTD,"3,154.25",17/06/2016
Delivery Units,Adults and Communities,Other Agencies - Third Party P,30124828,ALDWYCK HOUSING GROUP,"2,176.89",22/06/2016
Delivery Units,Adults and Communities,Other Agencies - Third Party P,30124829,ALDWYCK HOUSING GROUP,"2,176.89",22/06/2016
Delivery Units,Adults and Communities,Other Agencies - Third Party P,30124830,ALDWYCK HOUSING GROUP,"2,176.89",22/06/2016
Delivery Units,Adults and Communities,Other Agencies - Third Party P,30124831,ALDWYCK HOUSING GROUP,"2,176.89",22/06/2016
Delivery Units,Adults and Communities,Other Agencies - Third Party P,30125307,ALDWYCK HOUSING GROUP,"2,249.45",24/06/2016
Delivery Units,Adults and Communities,Other Agencies - Third Party P,30125308,ALDWYCK HOUSING GROUP,22.38,24/06/2016
Delivery Units,Adults and Communities,Other Agencies - Third Party P,30125309,ALDWYCK HOUSING GROUP,"2,249.45",24/06/2016
Delivery Units,Adults and Communities,Other Agencies - Third Party P,30125310,ALDWYCK HOUSING GROUP,"1,814.07",24/06/2016
Delivery Units,Adults and Communities,Other Agencies - Third Party P,30124205,ANA HOMECARE LTD,-14.99,13/06/2016
Delivery Units,Adults and Communities,Other Agencies - Third Party P,30124245,ANA HOMECARE LTD,625.98,13/06/2016
Delivery Units,Adults and Communities,Other Agencies - Third Party P,30124246,ANA HOMECARE LTD,543.5,13/06/2016
Delivery Units,Adults and Communities,Other Agencies - Third Party P,30124247,ANA HOMECARE LTD,892.24,13/06/2016
Delivery Units,Adults and Communities,Other Agencies - Third Party P,30124248,ANA HOMECARE LTD,89.94,13/06/2016
Delivery Units,Adults and Communities,Other Agencies - Third Party P,30124249,ANA HOMECARE LTD,562.24,13/06/2016
Delivery Units,Adults and Communities,Other Agencies - Third Party P,30124250,ANA HOMECARE LTD,509.78,13/06/2016
Delivery Units,Adults and Communities,Other Agencies - Third Party P,30124251,ANA HOMECARE LTD,322.35,13/06/2016
Delivery Units,Adults and Communities,Other Agencies - Third Party P,30124252,ANA HOMECARE LTD,611,13/06/2016
Delivery Units,Adults and Communities,Other Agencies - Third Party P,30124253,ANA HOMECARE LTD,367.34,13/06/2016
Delivery Units,Adults and Communities,Other Agencies - Third Party P,30124254,ANA HOMECARE LTD,314.85,13/06/2016
Delivery Units,Adults and Communities,Other Agencies - Third Party P,30124255,ANA HOMECARE LTD,254.83,13/06/2016
Delivery Units,Adults and Communities,Other Agencies - Third Party P,30124256,ANA HOMECARE LTD,314.86,13/06/2016
Delivery Units,Adults and Communities,Other Agencies - Third Party P,30124257,ANA HOMECARE LTD,7.5,13/06/2016
Delivery Units,Adults and Communities,Other Agencies - Third Party P,30124258,ANA HOMECARE LTD,33.72,13/06/2016
Delivery Units,Adults and Communities,Other Agencies - Third Party P,30124259,ANA HOMECARE LTD,412.32,13/06/2016
Delivery Units,Adults and Communities,Other Agencies - Third Party P,30124260,ANA HOMECARE LTD,-7.5,13/06/2016
Delivery Units,Adults and Communities,Other Agencies - Third Party P,30124261,ANA HOMECARE LTD,-52.48,13/06/2016
Delivery Units,Adults and Communities,Other Agencies - Third Party P,30124262,ANA HOMECARE LTD,704.72,13/06/2016
Delivery Units,Adults and Communities,Other Agencies - Third Party P,30124263,ANA HOMECARE LTD,404.73,13/06/2016
Delivery Units,Adults and Communities,Other Agencies - Third Party P,30124264,ANA HOMECARE LTD,284.81,13/06/2016
Delivery Units,Adults and Communities,Other Agencies - Third Party P,30124265,ANA HOMECARE LTD,322.35,13/06/2016
Delivery Units,Adults and Communities,Other Agencies - Third Party P,30124266,ANA HOMECARE LTD,344.86,13/06/2016
Delivery Units,Adults and Communities,Other Agencies - Third Party P,30124267,ANA HOMECARE LTD,210,13/06/2016
Delivery Units,Adults and Communities,Other Agencies - Third Party P,30124268,ANA HOMECARE LTD,59.96,13/06/2016
Delivery Units,Adults and Communities,Other Agencies - Third Party P,30124269,ANA HOMECARE LTD,146.12,13/06/2016
Delivery Units,Adults and Communities,Other Agencies - Third Party P,30124270,ANA HOMECARE LTD,187.41,13/06/2016
Delivery Units,Adults and Communities,Other Agencies - Third Party P,30124271,ANA HOMECARE LTD,352.36,13/06/2016
Delivery Units,Adults and Communities,Other Agencies - Third Party P,30124272,ANA HOMECARE LTD,209.86,13/06/2016
Delivery Units,Adults and Communities,Other Agencies - Third Party P,30124273,ANA HOMECARE LTD,194.87,13/06/2016
Delivery Units,Adults and Communities,Other Agencies - Third Party P,30124274,ANA HOMECARE LTD,134.88,13/06/2016
Delivery Units,Adults and Communities,Other Agencies - Third Party P,30124275,ANA HOMECARE LTD,232.36,13/06/2016
Delivery Units,Adults and Communities,Other Agencies - Third Party P,30124276,ANA HOMECARE LTD,599.72,13/06/2016
Delivery Units,Adults and Communities,Other Agencies - Third Party P,30124277,ANA HOMECARE LTD,652.22,13/06/2016
Delivery Units,Adults and Communities,Other Agencies - Third Party P,30124278,ANA HOMECARE LTD,352.36,13/06/2016
Delivery Units,Adults and Communities,Other Agencies - Third Party P,30124279,ANA HOMECARE LTD,104.94,13/06/2016
Delivery Units,Adults and Communities,Other Agencies - Third Party P,30124280,ANA HOMECARE LTD,224.85,13/06/2016
Delivery Units,Adults and Communities,Other Agencies - Third Party P,30124281,ANA HOMECARE LTD,112.4,13/06/2016
Delivery Units,Adults and Communities,Other Agencies - Third Party P,30124282,ANA HOMECARE LTD,"1,409.60",13/06/2016
Delivery Units,Adults and Communities,Other Agencies - Third Party P,30124283,ANA HOMECARE LTD,933.42,13/06/2016
Delivery Units,Adults and Communities,Other Agencies - Third Party P,30124284,ANA HOMECARE LTD,352.36,13/06/2016
Delivery Units,Adults and Communities,Other Agencies - Third Party P,30124285,ANA HOMECARE LTD,179.88,13/06/2016
Delivery Units,Adults and Communities,Other Agencies - Third Party P,30124286,ANA HOMECARE LTD,352.36,13/06/2016
Delivery Units,Adults and Communities,Other Agencies - Third Party P,30124287,ANA HOMECARE LTD,179.88,13/06/2016
Delivery Units,Adults and Communities,Other Agencies - Third Party P,30124288,ANA HOMECARE LTD,352.36,13/06/2016
Delivery Units,Adults and Communities,Other Agencies - Third Party P,30124289,ANA HOMECARE LTD,179.88,13/06/2016
Delivery Units,Adults and Communities,Other Agencies - Third Party P,30124290,ANA HOMECARE LTD,232.36,13/06/2016
Delivery Units,Adults and Communities,Other Agencies - Third Party P,30124291,ANA HOMECARE LTD,153.66,13/06/2016
Delivery Units,Adults and Communities,Other Agencies - Third Party P,30124292,ANA HOMECARE LTD,-14.99,13/06/2016
Delivery Units,Adults and Communities,Other Agencies - Third Party P,30124444,ANA HOMECARE LTD,963.48,15/06/2016
Delivery Units,Adults and Communities,Other Agencies - Third Party P,30124445,ANA HOMECARE LTD,447.3,15/06/2016
Delivery Units,Adults and Communities,Other Agencies - Third Party P,30124446,ANA HOMECARE LTD,-97.5,15/06/2016
Delivery Units,Adults and Communities,Other Agencies - Third Party P,30124121,ANASTASIA LODGE,"3,107.14",08/06/2016
Delivery Units,Adults and Communities,Other Agencies - Third Party P,30124122,ANASTASIA LODGE,"3,000.00",08/06/2016
Delivery Units,Adults and Communities,Other Agencies - Third Party P,30124123,ANASTASIA LODGE,"3,000.00",15/06/2016
Delivery Units,Adults and Communities,Other Agencies - Third Party P,30124981,APPLE TREE COURT CARE HOME,"2,320.37",22/06/2016
Delivery Units,Adults and Communities,Other Agencies - Third Party P,30124982,APPLE TREE COURT CARE HOME,"2,244.13",22/06/2016
Delivery Units,Adults and Communities,Other Agencies - Third Party P,30124983,APPLE TREE COURT CARE HOME,"2,487.77",22/06/2016
Delivery Units,Adults and Communities,Other Agencies - Third Party P,30124984,APPLE TREE COURT CARE HOME,"2,487.77",22/06/2016
Delivery Units,Adults and Communities,Other Agencies - Third Party P,30124985,APPLE TREE COURT CARE HOME,"2,487.77",22/06/2016
Delivery Units,Adults and Communities,Other Agencies - Third Party P,30124987,APPLE TREE COURT CARE HOME,"2,487.77",22/06/2016
Delivery Units,Adults and Communities,Other Agencies - Third Party P,30124988,APPLE TREE COURT CARE HOME,"3,000.00",22/06/2016
Delivery Units,Adults and Communities,Other Agencies - Third Party P,30124989,APPLE TREE COURT CARE HOME,"2,571.43",22/06/2016
Delivery Units,Adults and Communities,Other Agencies - Third Party P,30124990,APPLE TREE COURT CARE HOME,"2,340.04",22/06/2016
Delivery Units,Adults and Communities,Other Agencies - Third Party P,30124991,APPLE TREE COURT CARE HOME,"2,487.77",22/06/2016
Delivery Units,Adults and Communities,Other Agencies - Third Party P,30124992,APPLE TREE COURT CARE HOME,"3,428.57",22/06/2016
Delivery Units,Adults and Communities,Other Agencies - Third Party P,30125258,APPLE TREE COURT CARE HOME,"1,624.26",24/06/2016
Delivery Units,Adults and Communities,Other Agencies - Third Party P,30126511,APPLE TREE COURT CARE HOME,"3,000.00",29/06/2016
Delivery Units,Adults and Communities,Other Agencies - Third Party P,30123472,AREA 51 EDUCATION LTD,"1,185.00",01/06/2016
Delivery Units,Adults and Communities,Other Agencies - Third Party P,30123473,AREA 51 EDUCATION LTD,"1,580.00",01/06/2016
Delivery Units,Adults and Communities,Other Agencies - Third Party P,30123474,AREA 51 EDUCATION LTD,"1,106.00",01/06/2016
Delivery Units,Adults and Communities,Other Agencies - Third Party P,30123475,AREA 51 EDUCATION LTD,632,01/06/2016
Delivery Units,Adults and Communities,Other Agencies - Third Party P,30123476,AREA 51 EDUCATION LTD,474,01/06/2016
Delivery Units,Adults and Communities,Other Agencies - Third Party P,30123477,AREA 51 EDUCATION LTD,948,01/06/2016
Delivery Units,Adults and Communities,Other Agencies - Third Party P,30123478,AREA 51 EDUCATION LTD,711,01/06/2016
Delivery Units,Adults and Communities,Other Agencies - Third Party P,30124683,AREA 51 EDUCATION LTD,553,21/06/2016
Delivery Units,Adults and Communities,Other Agencies - Third Party P,30124684,AREA 51 EDUCATION LTD,"1,501.00",21/06/2016
Delivery Units,Adults and Communities,Other Agencies - Third Party P,30124685,AREA 51 EDUCATION LTD,869,21/06/2016
Delivery Units,Adults and Communities,Other Agencies - Third Party P,30124686,AREA 51 EDUCATION LTD,553,21/06/2016
Delivery Units,Adults and Communities,Other Agencies - Third Party P,30124687,AREA 51 EDUCATION LTD,869,21/06/2016
Delivery Units,Adults and Communities,Other Agencies - Third Party P,30125421,ASHFIELDS RESIDENTIAL CARE HOME,"2,448.78",24/06/2016
Delivery Units,Adults and Communities,Other Agencies - Third Party P,30124493,ASHGALE HOUSE,"1,401.20",15/06/2016
Delivery Units,Adults and Communities,Other Agencies - Third Party P,30124608,ASHTON LODGE CARE CENTRE,"-1,541.93",22/06/2016
Delivery Units,Adults and Communities,Other Agencies - Third Party P,30125045,ASHTON LODGE CARE CENTRE,"2,569.89",22/06/2016
Delivery Units,Adults and Communities,Other Agencies - Third Party P,30125049,ASHTON LODGE CARE CENTRE,"2,569.89",22/06/2016
Delivery Units,Adults and Communities,Other Agencies - Third Party P,30125054,ASHTON LODGE CARE CENTRE,"2,369.79",22/06/2016
Delivery Units,Adults and Communities,Other Agencies - Third Party P,30125086,ASHTON LODGE CARE CENTRE,"2,176.89",22/06/2016
Delivery Units,Adults and Communities,Other Agencies - Third Party P,30125108,ASHTON LODGE CARE CENTRE,"2,569.89",22/06/2016
Delivery Units,Adults and Communities,Other Agencies - Third Party P,30125111,ASHTON LODGE CARE CENTRE,"2,320.37",22/06/2016
Delivery Units,Adults and Communities,Other Agencies - Third Party P,30125113,ASHTON LODGE CARE CENTRE,"2,571.43",22/06/2016
Delivery Units,Adults and Communities,Other Agencies - Third Party P,30125137,ASHTON LODGE CARE CENTRE,"2,369.79",22/06/2016
Delivery Units,Adults and Communities,Other Agencies - Third Party P,30125142,ASHTON LODGE CARE CENTRE,"2,421.43",22/06/2016
Delivery Units,Adults and Communities,Other Agencies - Third Party P,30125146,ASHTON LODGE CARE CENTRE,"2,569.89",22/06/2016
Delivery Units,Adults and Communities,Other Agencies - Third Party P,30125229,ASHTON LODGE CARE CENTRE,"2,369.79",22/06/2016
Delivery Units,Adults and Communities,Other Agencies - Third Party P,30125232,ASHTON LODGE CARE CENTRE,"3,162.86",22/06/2016
Delivery Units,Adults and Communities,Other Agencies - Third Party P,30125240,ASHTON LODGE CARE CENTRE,"2,320.37",22/06/2016
Delivery Units,Adults and Communities,Other Agencies - Third Party P,30125243,ASHTON LODGE CARE CENTRE,"2,369.79",22/06/2016
Delivery Units,Adults and Communities,Other Agencies - Third Party P,30125248,ASHTON LODGE CARE CENTRE,"3,805.71",22/06/2016
Delivery Units,Adults and Communities,Other Agencies - Third Party P,30125414,ASHTON LODGE CARE CENTRE,"2,569.89",24/06/2016
Delivery Units,Adults and Communities,Other Agencies - Third Party P,30126561,ASHTON LODGE CARE CENTRE,-789.93,29/06/2016
Delivery Units,Adults and Communities,Other Agencies - Third Party P,30125064,ASPEN VILLAGES LTD,"2,144.91",22/06/2016
Delivery Units,Adults and Communities,Other Agencies - Third Party P,30125065,ASPEN VILLAGES LTD,"4,714.29",22/06/2016
Delivery Units,Adults and Communities,Other Agencies - Third Party P,30125066,ASPEN VILLAGES LTD,"3,214.29",22/06/2016
Delivery Units,Adults and Communities,Other Agencies - Third Party P,30125068,ASPEN VILLAGES LTD,"3,428.57",22/06/2016
Delivery Units,Adults and Communities,Other Agencies - Third Party P,30125069,ASPEN VILLAGES LTD,"5,785.71",22/06/2016
Delivery Units,Adults and Communities,Other Agencies - Third Party P,30125070,ASPEN VILLAGES LTD,"2,340.04",22/06/2016
Delivery Units,Adults and Communities,Other Agencies - Third Party P,30125071,ASPEN VILLAGES LTD,"4,714.29",22/06/2016
Delivery Units,Adults and Communities,Other Agencies - Third Party P,30125072,ASPEN VILLAGES LTD,"3,642.86",22/06/2016
Delivery Units,Adults and Communities,Other Agencies - Third Party P,30123500,AUTUMN GARDENS,"2,262.04",01/06/2016
Delivery Units,Adults and Communities,Other Agencies - Third Party P,30123501,AUTUMN GARDENS,"2,900.00",01/06/2016
Delivery Units,Adults and Communities,Other Agencies - Third Party P,30123502,AUTUMN GARDENS,"2,982.86",01/06/2016
Delivery Units,Adults and Communities,Other Agencies - Third Party P,30123503,AUTUMN GARDENS,"4,971.42",01/06/2016
Delivery Units,Adults and Communities,Other Agencies - Third Party P,30123504,AUTUMN GARDENS,"3,272.85",01/06/2016
Delivery Units,Adults and Communities,Other Agencies - Third Party P,30123505,AUTUMN GARDENS,"4,062.86",01/06/2016
Delivery Units,Adults and Communities,Other Agencies - Third Party P,30123705,AUTUMN GARDENS,140,03/06/2016
Delivery Units,Adults and Communities,Other Agencies - Third Party P,30123706,AUTUMN GARDENS,210,03/06/2016
Delivery Units,Adults and Communities,Other Agencies - Third Party P,30124912,AUTUMN GARDENS,"3,160.00",22/06/2016
Delivery Units,Adults and Communities,Other Agencies - Third Party P,30124913,AUTUMN GARDENS,"4,800.00",22/06/2016
Delivery Units,Adults and Communities,Other Agencies - Third Party P,30124914,AUTUMN GARDENS,"2,880.00",22/06/2016
Delivery Units,Adults and Communities,Other Agencies - Third Party P,30124915,AUTUMN GARDENS,"2,800.00",22/06/2016
Delivery Units,Adults and Communities,Other Agencies - Third Party P,30124916,AUTUMN GARDENS,"2,184.04",22/06/2016
Delivery Units,Adults and Communities,Other Agencies - Third Party P,30124378,B & M CARE,"-3,200.00",22/06/2016
Delivery Units,Adults and Communities,Other Agencies - Third Party P,30124383,B & M CARE,157.99,22/06/2016
Delivery Units,Adults and Communities,Other Agencies - Third Party P,30124521,B & M CARE,850,22/06/2016
Delivery Units,Adults and Communities,Other Agencies - Third Party P,30125043,B & M CARE,-236.98,22/06/2016
Delivery Units,Adults and Communities,Other Agencies - Third Party P,30125078,B & M CARE,60.49,22/06/2016
Delivery Units,Adults and Communities,Other Agencies - Third Party P,30125079,B & M CARE,"2,176.89",22/06/2016
Delivery Units,Adults and Communities,Other Agencies - Third Party P,30125081,B & M CARE,"2,982.86",22/06/2016
Delivery Units,Adults and Communities,Other Agencies - Third Party P,30125082,B & M CARE,"2,369.79",22/06/2016
Delivery Units,Adults and Communities,Other Agencies - Third Party P,30125083,B & M CARE,"3,642.86",22/06/2016
Delivery Units,Adults and Communities,Other Agencies - Third Party P,30125084,B & M CARE,"3,642.86",22/06/2016
Delivery Units,Adults and Communities,Other Agencies - Third Party P,30125290,B & M CARE,"2,369.79",24/06/2016
Delivery Units,Adults and Communities,Other Agencies - Third Party P,30126564,B & M CARE,20,29/06/2016
Delivery Units,Adults and Communities,Other Agencies - Third Party P,30126565,B & M CARE,"3,642.86",29/06/2016
Delivery Units,Adults and Communities,Other Agencies - Third Party P,30123654,BARNET MENCAP,400,02/06/2016
Delivery Units,Adults and Communities,Other Agencies - Third Party P,30124638,BARNET MENCAP,"18,197.25",17/06/2016
Delivery Units,Adults and Communities,Other Agencies - Third Party P,30124639,BARNET MENCAP,"-4,405.95",17/06/2016
Delivery Units,Adults and Communities,Other Agencies - Third Party P,30123815,BAYTREE COMMUNITY CARE (LONDON) LTD,734.4,06/06/2016
Delivery Units,Adults and Communities,Other Agencies - Third Party P,30124133,BAYTREE COMMUNITY CARE (LONDON) LTD,"1,280.00",08/06/2016
Delivery Units,Adults and Communities,Other Agencies - Third Party P,30124134,BAYTREE COMMUNITY CARE (LONDON) LTD,"1,280.00",08/06/2016
Delivery Units,Adults and Communities,Other Agencies - Third Party P,30124135,BAYTREE COMMUNITY CARE (LONDON) LTD,"1,280.00",08/06/2016
Delivery Units,Adults and Communities,Other Agencies - Third Party P,30124568,BAYTREE COMMUNITY CARE (LONDON) LTD,"2,797.06",17/06/2016
Delivery Units,Adults and Communities,Other Agencies - Third Party P,30124569,BAYTREE COMMUNITY CARE (LONDON) LTD,"2,600.01",17/06/2016
Delivery Units,Adults and Communities,Other Agencies - Third Party P,30124570,BAYTREE COMMUNITY CARE (LONDON) LTD,"2,014.84",17/06/2016
Delivery Units,Adults and Communities,Other Agencies - Third Party P,30124571,BAYTREE COMMUNITY CARE (LONDON) LTD,"2,294.99",17/06/2016
Delivery Units,Adults and Communities,Other Agencies - Third Party P,30124572,BAYTREE COMMUNITY CARE (LONDON) LTD,"3,424.27",17/06/2016
Delivery Units,Adults and Communities,Other Agencies - Third Party P,30125280,BELMONT LODGE CARE CENTRE,"2,327.14",24/06/2016
Delivery Units,Adults and Communities,Other Agencies - Third Party P,30123495,BENSLOW MANAGEMENT COMPANY LIMITED,"2,418.04",01/06/2016
Delivery Units,Adults and Communities,Other Agencies - Third Party P,30124905,BENSLOW MANAGEMENT COMPANY LIMITED,"2,340.04",22/06/2016
Delivery Units,Adults and Communities,Other Agencies - Third Party P,30123731,BEXHILL CARE CENTRE,"2,604.00",03/06/2016
Delivery Units,Adults and Communities,Other Agencies - Third Party P,30123845,BIRCHWOOD GRANGE CARE HOME,"2,657.14",06/06/2016
Delivery Units,Adults and Communities,Other Agencies - Third Party P,30123846,BIRCHWOOD GRANGE CARE HOME,"2,571.43",06/06/2016
Delivery Units,Adults and Communities,Other Agencies - Third Party P,30125030,BIRCHWOOD GRANGE CARE HOME,"2,571.43",22/06/2016
Delivery Units,Adults and Communities,Other Agencies - Third Party P,30124206,BLUEBIRD CARE (BARNET),120,13/06/2016
Delivery Units,Adults and Communities,Other Agencies - Third Party P,30124859,BLUEBIRD CARE (BARNET),540.3,22/06/2016
Delivery Units,Adults and Communities,Other Agencies - Third Party P,30124860,BLUEBIRD CARE (BARNET),"1,107.60",22/06/2016
Delivery Units,Adults and Communities,Other Agencies - Third Party P,30124862,BLUEBIRD CARE (BARNET),240,22/06/2016
Delivery Units,Adults and Communities,Other Agencies - Third Party P,30124863,BLUEBIRD CARE (BARNET),312,22/06/2016
Delivery Units,Adults and Communities,Other Agencies - Third Party P,30123614,BROOKDALE HEALTHCARE,"3,759.36",02/06/2016
Delivery Units,Adults and Communities,Other Agencies - Third Party P,30124811,BROOKDALE HEALTHCARE,"9,000.00",22/06/2016
Delivery Units,Adults and Communities,Other Agencies - Third Party P,30124812,BROOKDALE HEALTHCARE,"9,300.00",22/06/2016
Delivery Units,Adults and Communities,Other Agencies - Third Party P,30124813,BROOKDALE HEALTHCARE,"9,672.90",22/06/2016
Delivery Units,Adults and Communities,Other Agencies - Third Party P,30124814,BROOKDALE HEALTHCARE,"7,554.90",22/06/2016
Delivery Units,Adults and Communities,Other Agencies - Third Party P,30126449,BROOKDALE HEALTHCARE,"3,759.36",29/06/2016
Delivery Units,Adults and Communities,Other Agencies - Third Party P,30126592,BRUNSWICK SUPPORTED LIVING SERVICES,"1,412.68",29/06/2016
Delivery Units,Adults and Communities,Other Agencies - Third Party P,30126593,BRUNSWICK SUPPORTED LIVING SERVICES,"1,942.84",29/06/2016
Delivery Units,Adults and Communities,Other Agencies - Third Party P,30126595,BRUNSWICK SUPPORTED LIVING SERVICES,"2,153.92",29/06/2016
Delivery Units,Adults and Communities,Other Agencies - Third Party P,30123575,BUPA CARE HOMES,507.94,01/06/2016
Delivery Units,Adults and Communities,Other Agencies - Third Party P,30123733,BUPA CARE HOMES,"1,047.26",03/06/2016
Delivery Units,Adults and Communities,Other Agencies - Third Party P,30124384,BUPA CARE HOMES,"1,901.72",13/06/2016
Delivery Units,Adults and Communities,Other Agencies - Third Party P,30124385,BUPA CARE HOMES,"2,249.45",13/06/2016
Delivery Units,Adults and Communities,Other Agencies - Third Party P,30124386,BUPA CARE HOMES,"2,655.55",13/06/2016
Delivery Units,Adults and Communities,Other Agencies - Third Party P,30124387,BUPA CARE HOMES,"2,159.55",13/06/2016
Delivery Units,Adults and Communities,Other Agencies - Third Party P,30124388,BUPA CARE HOMES,"1,753.45",13/06/2016
Delivery Units,Adults and Communities,Other Agencies - Third Party P,30124389,BUPA CARE HOMES,-368,13/06/2016
Delivery Units,Adults and Communities,Other Agencies - Third Party P,30124390,BUPA CARE HOMES,-464,13/06/2016
Delivery Units,Adults and Communities,Other Agencies - Third Party P,30124391,BUPA CARE HOMES,-496,13/06/2016
Delivery Units,Adults and Communities,Other Agencies - Third Party P,30124392,BUPA CARE HOMES,-480,13/06/2016
Delivery Units,Adults and Communities,Other Agencies - Third Party P,30124393,BUPA CARE HOMES,-368,13/06/2016
Delivery Units,Adults and Communities,Other Agencies - Third Party P,30124394,BUPA CARE HOMES,-480,13/06/2016
Delivery Units,Adults and Communities,Other Agencies - Third Party P,30124395,BUPA CARE HOMES,-176,13/06/2016
Delivery Units,Adults and Communities,Other Agencies - Third Party P,30124396,BUPA CARE HOMES,-480,13/06/2016
Delivery Units,Adults and Communities,Other Agencies - Third Party P,30124397,BUPA CARE HOMES,-496,13/06/2016
Delivery Units,Adults and Communities,Other Agencies - Third Party P,30124522,BUPA CARE HOMES,-74.8,24/06/2016
Delivery Units,Adults and Communities,Other Agencies - Third Party P,30124549,BUPA CARE HOMES,"2,570.70",15/06/2016
Delivery Units,Adults and Communities,Other Agencies - Third Party P,30124550,BUPA CARE HOMES,"2,407.86",15/06/2016
Delivery Units,Adults and Communities,Other Agencies - Third Party P,30125091,BUPA CARE HOMES,"2,144.91",22/06/2016
Delivery Units,Adults and Communities,Other Agencies - Third Party P,30125092,BUPA CARE HOMES,"2,048.57",22/06/2016
Delivery Units,Adults and Communities,Other Agencies - Third Party P,30125099,BUPA CARE HOMES,"2,318.93",22/06/2016
Delivery Units,Adults and Communities,Other Agencies - Third Party P,30125100,BUPA CARE HOMES,"2,924.05",22/06/2016
Delivery Units,Adults and Communities,Other Agencies - Third Party P,30125101,BUPA CARE HOMES,"2,302.06",22/06/2016
Delivery Units,Adults and Communities,Other Agencies - Third Party P,30125102,BUPA CARE HOMES,"2,318.93",22/06/2016
Delivery Units,Adults and Communities,Other Agencies - Third Party P,30125103,BUPA CARE HOMES,"3,153.69",22/06/2016
Delivery Units,Adults and Communities,Other Agencies - Third Party P,30125104,BUPA CARE HOMES,"3,214.29",22/06/2016
Delivery Units,Adults and Communities,Other Agencies - Third Party P,30125105,BUPA CARE HOMES,"2,340.04",22/06/2016
Delivery Units,Adults and Communities,Other Agencies - Third Party P,30125233,BUPA CARE HOMES,"2,239.37",21/06/2016
Delivery Units,Adults and Communities,Other Agencies - Third Party P,30125234,BUPA CARE HOMES,"2,487.77",21/06/2016
Delivery Units,Adults and Communities,Other Agencies - Third Party P,30125247,BUPA CARE HOMES,"4,686.43",21/06/2016
Delivery Units,Adults and Communities,Other Agencies - Third Party P,30125291,BUPA CARE HOMES,"2,318.93",24/06/2016
Delivery Units,Adults and Communities,Other Agencies - Third Party P,30125292,BUPA CARE HOMES,"2,318.93",24/06/2016
Delivery Units,Adults and Communities,Other Agencies - Third Party P,30125293,BUPA CARE HOMES,"2,878.57",24/06/2016
Delivery Units,Adults and Communities,Other Agencies - Third Party P,30125294,BUPA CARE HOMES,"4,428.57",24/06/2016
Delivery Units,Adults and Communities,Other Agencies - Third Party P,30125295,BUPA CARE HOMES,"7,500.00",24/06/2016
Delivery Units,Adults and Communities,Other Agencies - Third Party P,30125415,BUPA CARE HOMES,362.81,24/06/2016
Delivery Units,Adults and Communities,Other Agencies - Third Party P,30125416,BUPA CARE HOMES,507.94,24/06/2016
Delivery Units,Adults and Communities,Other Agencies - Third Party P,30125417,BUPA CARE HOMES,507.94,24/06/2016
Delivery Units,Adults and Communities,Other Agencies - Third Party P,30125418,BUPA CARE HOMES,507.94,24/06/2016
Delivery Units,Adults and Communities,Other Agencies - Third Party P,30126583,BUPA CARE HOMES,507.94,29/06/2016
Delivery Units,Adults and Communities,Other Agencies - Third Party P,30126584,BUPA CARE HOMES,507.94,29/06/2016
Delivery Units,Adults and Communities,Other Agencies - Third Party P,30126585,BUPA CARE HOMES,507.94,29/06/2016
Delivery Units,Adults and Communities,Other Agencies - Third Party P,30126586,BUPA CARE HOMES,507.94,29/06/2016
Delivery Units,Adults and Communities,Other Agencies - Third Party P,30126587,BUPA CARE HOMES,507.94,29/06/2016
Delivery Units,Adults and Communities,Other Agencies - Third Party P,30126588,BUPA CARE HOMES,507.94,29/06/2016
Delivery Units,Adults and Communities,Other Agencies - Third Party P,30126589,BUPA CARE HOMES,228.57,29/06/2016
Delivery Units,Adults and Communities,Other Agencies - Third Party P,30126590,BUPA CARE HOMES,"2,398.56",29/06/2016
Delivery Units,Adults and Communities,Other Agencies - Third Party P,30126591,BUPA CARE HOMES,"3,214.29",29/06/2016
Delivery Units,Adults and Communities,Other Agencies - Third Party P,30123561,BUPA CARE HOMES - BRUNSWICK COURT,"3,498.57",01/06/2016
Delivery Units,Adults and Communities,Other Agencies - Third Party P,30125035,BUPA CARE HOMES - BRUNSWICK COURT,"3,385.71",22/06/2016
Delivery Units,Adults and Communities,Other Agencies - Third Party P,30123835,BUPA NURSING HOMES LTD - ARKLEY,"2,165.68",06/06/2016
Delivery Units,Adults and Communities,Other Agencies - Third Party P,30123836,BUPA NURSING HOMES LTD - ARKLEY,"2,094.52",06/06/2016
Delivery Units,Adults and Communities,Other Agencies - Third Party P,30123837,BUPA NURSING HOMES LTD - ARKLEY,"2,094.52",06/06/2016
Delivery Units,Adults and Communities,Other Agencies - Third Party P,30123838,BUPA NURSING HOMES LTD - ARKLEY,"2,094.52",06/06/2016
Delivery Units,Adults and Communities,Other Agencies - Third Party P,30123839,BUPA NURSING HOMES LTD - ARKLEY,"1,553.92",06/06/2016
Delivery Units,Adults and Communities,Other Agencies - Third Party P,30123840,BUPA NURSING HOMES LTD - ARKLEY,"2,094.52",06/06/2016
Delivery Units,Adults and Communities,Other Agencies - Third Party P,30123841,BUPA NURSING HOMES LTD - ARKLEY,"2,321.92",06/06/2016
Delivery Units,Adults and Communities,Other Agencies - Third Party P,30123842,BUPA NURSING HOMES LTD - ARKLEY,"3,400.00",06/06/2016
Delivery Units,Adults and Communities,Other Agencies - Third Party P,30124374,BUPA NURSING HOMES LTD - ARKLEY,"2,010.99",13/06/2016
Delivery Units,Adults and Communities,Other Agencies - Third Party P,30125023,BUPA NURSING HOMES LTD - ARKLEY,"2,487.77",22/06/2016
Delivery Units,Adults and Communities,Other Agencies - Third Party P,30125024,BUPA NURSING HOMES LTD - ARKLEY,"2,571.43",22/06/2016
Delivery Units,Adults and Communities,Other Agencies - Third Party P,30125129,CAMBIAN BEECHES,"12,739.80",22/06/2016
Delivery Units,Adults and Communities,Other Agencies - Third Party P,30124565,CAMPHILL DEVON COMMUNITY LIMITED,"4,508.00",17/06/2016
Delivery Units,Adults and Communities,Other Agencies - Third Party P,30124497,CANDLE COURT NURSING HOME,"10,336.29",15/06/2016
Delivery Units,Adults and Communities,Other Agencies - Third Party P,30124498,CANDLE COURT NURSING HOME,"9,669.43",15/06/2016
Delivery Units,Adults and Communities,Other Agencies - Third Party P,30126475,CANDLE COURT NURSING HOME,"-4,860.00",29/06/2016
Delivery Units,Adults and Communities,Other Agencies - Third Party P,30126476,CANDLE COURT NURSING HOME,"10,002.86",29/06/2016
Delivery Units,Adults and Communities,Other Agencies - Third Party P,30126477,CANDLE COURT NURSING HOME,"3,642.86",29/06/2016
Delivery Units,Adults and Communities,Other Agencies - Third Party P,30126478,CANDLE COURT NURSING HOME,"2,569.89",29/06/2016
Delivery Units,Adults and Communities,Other Agencies - Third Party P,30123573,CARE ASSIST LIMITED,"4,207.14",01/06/2016
Delivery Units,Adults and Communities,Other Agencies - Third Party P,30123574,CARE ASSIST LIMITED,"4,207.14",01/06/2016
Delivery Units,Adults and Communities,Other Agencies - Third Party P,30125088,CARE ASSIST LIMITED,"4,071.43",22/06/2016
Delivery Units,Adults and Communities,Other Agencies - Third Party P,30125089,CARE ASSIST LIMITED,"4,071.43",22/06/2016
Delivery Units,Adults and Communities,Other Agencies - Third Party P,30123635,CARE WORLDWIDE (LONDON) LTD,"10,080.40",02/06/2016
Delivery Units,Adults and Communities,Other Agencies - Third Party P,30123636,CARE WORLDWIDE (LONDON) LTD,"2,680.88",02/06/2016
Delivery Units,Adults and Communities,Other Agencies - Third Party P,30123637,CARE WORLDWIDE (LONDON) LTD,"3,936.46",02/06/2016
Delivery Units,Adults and Communities,Other Agencies - Third Party P,30123638,CARE WORLDWIDE (LONDON) LTD,"4,246.53",02/06/2016
Delivery Units,Adults and Communities,Other Agencies - Third Party P,30123639,CARE WORLDWIDE (LONDON) LTD,"2,685.98",02/06/2016
Delivery Units,Adults and Communities,Other Agencies - Third Party P,30123640,CARE WORLDWIDE (LONDON) LTD,"4,400.13",02/06/2016
Delivery Units,Adults and Communities,Other Agencies - Third Party P,30123643,CARE WORLDWIDE (LONDON) LTD,"10,080.40",02/06/2016
Delivery Units,Adults and Communities,Other Agencies - Third Party P,30123644,CARE WORLDWIDE (LONDON) LTD,"2,680.88",02/06/2016
Delivery Units,Adults and Communities,Other Agencies - Third Party P,30123645,CARE WORLDWIDE (LONDON) LTD,"3,936.46",02/06/2016
Delivery Units,Adults and Communities,Other Agencies - Third Party P,30123646,CARE WORLDWIDE (LONDON) LTD,"4,246.53",02/06/2016
Delivery Units,Adults and Communities,Other Agencies - Third Party P,30123647,CARE WORLDWIDE (LONDON) LTD,"2,685.98",02/06/2016
Delivery Units,Adults and Communities,Other Agencies - Third Party P,30123648,CARE WORLDWIDE (LONDON) LTD,"1,696.60",02/06/2016
Delivery Units,Adults and Communities,Other Agencies - Third Party P,30123649,CARE WORLDWIDE (LONDON) LTD,"4,400.13",02/06/2016
Delivery Units,Adults and Communities,Other Agencies - Third Party P,30123593,CARETECH COMMUNITY SERVICES LTD,475.27,01/06/2016
Delivery Units,Adults and Communities,Other Agencies - Third Party P,30123594,CARETECH COMMUNITY SERVICES LTD,"4,627.86",01/06/2016
Delivery Units,Adults and Communities,Other Agencies - Third Party P,30123595,CARETECH COMMUNITY SERVICES LTD,"4,646.55",01/06/2016
Delivery Units,Adults and Communities,Other Agencies - Third Party P,30123596,CARETECH COMMUNITY SERVICES LTD,919.15,01/06/2016
Delivery Units,Adults and Communities,Other Agencies - Third Party P,30124604,CARETECH COMMUNITY SERVICES LTD,-70.83,22/06/2016
Delivery Units,Adults and Communities,Other Agencies - Third Party P,30124605,CARETECH COMMUNITY SERVICES LTD,-548.92,22/06/2016
Delivery Units,Adults and Communities,Other Agencies - Third Party P,30124606,CARETECH COMMUNITY SERVICES LTD,-548.92,22/06/2016
Delivery Units,Adults and Communities,Other Agencies - Third Party P,30124607,CARETECH COMMUNITY SERVICES LTD,-513.51,22/06/2016
Delivery Units,Adults and Communities,Other Agencies - Third Party P,30125163,CARETECH COMMUNITY SERVICES LTD,"2,589.74",22/06/2016
Delivery Units,Adults and Communities,Other Agencies - Third Party P,30125164,CARETECH COMMUNITY SERVICES LTD,"2,149.94",22/06/2016
Delivery Units,Adults and Communities,Other Agencies - Third Party P,30123707,CARING HOMES HEALTHCARE GROUP,198.47,03/06/2016
Delivery Units,Adults and Communities,Other Agencies - Third Party P,30123708,CARING HOMES HEALTHCARE GROUP,505.2,03/06/2016
Delivery Units,Adults and Communities,Other Agencies - Third Party P,30123709,CARING HOMES HEALTHCARE GROUP,505.2,03/06/2016
Delivery Units,Adults and Communities,Other Agencies - Third Party P,30123710,CARING HOMES HEALTHCARE GROUP,"3,200.00",03/06/2016
Delivery Units,Adults and Communities,Other Agencies - Third Party P,30126492,CARING HOMES HEALTHCARE GROUP,"3,200.00",29/06/2016
Delivery Units,Adults and Communities,Other Agencies - Third Party P,30124839,CARLTON COURT (TLC GROUP),"2,369.79",22/06/2016
Delivery Units,Adults and Communities,Other Agencies - Third Party P,30124840,CARLTON COURT (TLC GROUP),"3,642.86",22/06/2016
Delivery Units,Adults and Communities,Other Agencies - Third Party P,30124841,CARLTON COURT (TLC GROUP),"4,285.71",22/06/2016
Delivery Units,Adults and Communities,Other Agencies - Third Party P,30124842,CARLTON COURT (TLC GROUP),"2,369.79",22/06/2016
Delivery Units,Adults and Communities,Other Agencies - Third Party P,30124843,CARLTON COURT (TLC GROUP),"2,176.89",22/06/2016
Delivery Units,Adults and Communities,Other Agencies - Third Party P,30124844,CARLTON COURT (TLC GROUP),"2,176.89",22/06/2016
Delivery Units,Adults and Communities,Other Agencies - Third Party P,30124845,CARLTON COURT (TLC GROUP),"2,569.89",22/06/2016
Delivery Units,Adults and Communities,Other Agencies - Third Party P,30124846,CARLTON COURT (TLC GROUP),"2,569.89",22/06/2016
Delivery Units,Adults and Communities,Other Agencies - Third Party P,30124847,CARLTON COURT (TLC GROUP),"2,569.89",22/06/2016
Delivery Units,Adults and Communities,Other Agencies - Third Party P,30124849,CARLTON COURT (TLC GROUP),"2,569.89",22/06/2016
Delivery Units,Adults and Communities,Other Agencies - Third Party P,30124850,CARLTON COURT (TLC GROUP),"4,285.71",22/06/2016
Delivery Units,Adults and Communities,Other Agencies - Third Party P,30124851,CARLTON COURT (TLC GROUP),"3,600.90",22/06/2016
Delivery Units,Adults and Communities,Other Agencies - Third Party P,30124852,CARLTON COURT (TLC GROUP),"2,569.89",22/06/2016
Delivery Units,Adults and Communities,Other Agencies - Third Party P,30124853,CARLTON COURT (TLC GROUP),"2,320.37",22/06/2016
Delivery Units,Adults and Communities,Other Agencies - Third Party P,30125110,CARMEN LODGE RESIDENTIAL HOME,"2,651.10",22/06/2016
Delivery Units,Adults and Communities,Other Agencies - Third Party P,30124371,CARTREF CARE HOME,"4,063.52",13/06/2016
Delivery Units,Adults and Communities,Other Agencies - Third Party P,30124298,CATHERINE LODGE,"2,442.80",13/06/2016
Delivery Units,Adults and Communities,Other Agencies - Third Party P,30124564,CATHERINE LODGE,"2,184.04",17/06/2016
Delivery Units,Adults and Communities,Other Agencies - Third Party P,30126479,CATHERINE LODGE,"2,458.67",29/06/2016
Delivery Units,Adults and Communities,Other Agencies - Third Party P,30126480,CATHERINE LODGE,"3,000.00",29/06/2016
Delivery Units,Adults and Communities,Other Agencies - Third Party P,30123773,CDR CARE LTD,800,06/06/2016
Delivery Units,Adults and Communities,Other Agencies - Third Party P,30123774,CDR CARE LTD,700,06/06/2016
Delivery Units,Adults and Communities,Other Agencies - Third Party P,30123775,CDR CARE LTD,700,06/06/2016
Delivery Units,Adults and Communities,Other Agencies - Third Party P,30124430,CDR CARE LTD,"1,900.00",15/06/2016
Delivery Units,Adults and Communities,Other Agencies - Third Party P,30124431,CDR CARE LTD,"1,900.00",15/06/2016
Delivery Units,Adults and Communities,Other Agencies - Third Party P,30124164,CEDARS NURSING HOME,500.48,08/06/2016
Delivery Units,Adults and Communities,Other Agencies - Third Party P,30125037,CEDARS NURSING HOME,"2,483.01",22/06/2016
Delivery Units,Adults and Communities,Other Agencies - Third Party P,30125038,CEDARS NURSING HOME,"2,483.01",22/06/2016
Delivery Units,Adults and Communities,Other Agencies - Third Party P,30125039,CEDARS NURSING HOME,"2,277.34",22/06/2016
Delivery Units,Adults and Communities,Other Agencies - Third Party P,30125040,CEDARS NURSING HOME,"2,483.01",22/06/2016
Delivery Units,Adults and Communities,Other Agencies - Third Party P,30125041,CEDARS NURSING HOME,"2,239.37",22/06/2016
Delivery Units,Adults and Communities,Other Agencies - Third Party P,30125042,CEDARS NURSING HOME,"2,277.34",22/06/2016
Delivery Units,Adults and Communities,Other Agencies - Third Party P,30123784,CENTRAL MIDDLESEX SKILLS,"1,085.52",06/06/2016
Delivery Units,Adults and Communities,Other Agencies - Third Party P,30123785,CENTRAL MIDDLESEX SKILLS,"1,085.52",06/06/2016
Delivery Units,Adults and Communities,Other Agencies - Third Party P,30123786,CENTRAL MIDDLESEX SKILLS,814.14,06/06/2016
Delivery Units,Adults and Communities,Other Agencies - Third Party P,30123787,CENTRAL MIDDLESEX SKILLS,723.68,06/06/2016
Delivery Units,Adults and Communities,Other Agencies - Third Party P,30124898,CHATSWORTH CARE,"10,264.29",22/06/2016
Delivery Units,Adults and Communities,Other Agencies - Third Party P,30126481,CHEQUERS TRANSPORT LIMITED,420,29/06/2016
Delivery Units,Adults and Communities,Other Agencies - Third Party P,30126482,CHEQUERS TRANSPORT LIMITED,161.04,29/06/2016
Delivery Units,Adults and Communities,Other Agencies - Third Party P,30125413,CLARE HOUSE NURSING HOME,"2,094.52",24/06/2016
Delivery Units,Adults and Communities,Other Agencies - Third Party P,30124609,CLEARWATER CARE (HACKNEY) LTD,"5,356.00",17/06/2016
Delivery Units,Adults and Communities,Other Agencies - Third Party P,30125059,CLEARWATER CARE (HACKNEY) LTD,"5,356.00",22/06/2016
Delivery Units,Adults and Communities,Other Agencies - Third Party P,30124596,CLOVELLY HOUSE RESID. HOME LTD,"2,600.00",17/06/2016
Delivery Units,Adults and Communities,Other Agencies - Third Party P,30124597,CLOVELLY HOUSE RESID. HOME LTD,"2,600.00",17/06/2016
Delivery Units,Adults and Communities,Other Agencies - Third Party P,30124598,CLOVELLY HOUSE RESID. HOME LTD,"2,211.80",17/06/2016
Delivery Units,Adults and Communities,Other Agencies - Third Party P,30124599,CLOVELLY HOUSE RESID. HOME LTD,"1,900.40",17/06/2016
Delivery Units,Adults and Communities,Other Agencies - Third Party P,30124600,CLOVELLY HOUSE RESID. HOME LTD,"2,600.00",17/06/2016
Delivery Units,Adults and Communities,Other Agencies - Third Party P,30124601,CLOVELLY HOUSE RESID. HOME LTD,"2,211.80",17/06/2016
Delivery Units,Adults and Communities,Other Agencies - Third Party P,30124602,CLOVELLY HOUSE RESID. HOME LTD,"2,211.80",17/06/2016
Delivery Units,Adults and Communities,Other Agencies - Third Party P,30124603,CLOVELLY HOUSE RESID. HOME LTD,"2,211.80",17/06/2016
Delivery Units,Adults and Communities,Other Agencies - Third Party P,30123780,CMG HOMES LTD,"3,086.84",06/06/2016
Delivery Units,Adults and Communities,Other Agencies - Third Party P,30125317,CMG HOMES LTD,592.4,24/06/2016
Delivery Units,Adults and Communities,Other Agencies - Third Party P,30124867,COMPLETE CARE SERVICES LTD,"5,251.80",22/06/2016
Delivery Units,Adults and Communities,Other Agencies - Third Party P,30124130,DABB PAA,291.06,08/06/2016
Delivery Units,Adults and Communities,Other Agencies - Third Party P,30124448,DABB PAA,"1,479.06",15/06/2016
Delivery Units,Adults and Communities,Other Agencies - Third Party P,30124548,DANA CARE LIMITED,"9,582.86",15/06/2016
Delivery Units,Adults and Communities,Other Agencies - Third Party P,30123582,DELAMER HOUSE,"2,435.71",01/06/2016
Delivery Units,Adults and Communities,Other Agencies - Third Party P,30123522,DEVELOPMENT AND LEARNING OPPORTUNIT,"2,025.00",01/06/2016
Delivery Units,Adults and Communities,Other Agencies - Third Party P,30123523,DEVELOPMENT AND LEARNING OPPORTUNIT,652.4,01/06/2016
Delivery Units,Adults and Communities,Other Agencies - Third Party P,30123524,DEVELOPMENT AND LEARNING OPPORTUNIT,"1,056.00",01/06/2016
Delivery Units,Adults and Communities,Other Agencies - Third Party P,30123525,DEVELOPMENT AND LEARNING OPPORTUNIT,"1,875.00",01/06/2016
Delivery Units,Adults and Communities,Other Agencies - Third Party P,30123526,DEVELOPMENT AND LEARNING OPPORTUNIT,"1,053.00",01/06/2016
Delivery Units,Adults and Communities,Other Agencies - Third Party P,30123527,DEVELOPMENT AND LEARNING OPPORTUNIT,500,01/06/2016
Delivery Units,Adults and Communities,Other Agencies - Third Party P,30123529,DEVELOPMENT AND LEARNING OPPORTUNIT,306,01/06/2016
Delivery Units,Adults and Communities,Other Agencies - Third Party P,30124744,DEVELOPMENT AND LEARNING OPPORTUNIT,"1,056.00",21/06/2016
Delivery Units,Adults and Communities,Other Agencies - Third Party P,30124745,DEVELOPMENT AND LEARNING OPPORTUNIT,"1,875.00",21/06/2016
Delivery Units,Adults and Communities,Other Agencies - Third Party P,30124747,DEVELOPMENT AND LEARNING OPPORTUNIT,500,21/06/2016
Delivery Units,Adults and Communities,Other Agencies - Third Party P,30124749,DEVELOPMENT AND LEARNING OPPORTUNIT,306,21/06/2016
Delivery Units,Adults and Communities,Other Agencies - Third Party P,30126503,DEVELOPMENT AND LEARNING OPPORTUNIT,652.4,29/06/2016
Delivery Units,Adults and Communities,Other Agencies - Third Party P,30124761,DILLON CARE LTD,"3,900.00",21/06/2016
Delivery Units,Adults and Communities,Other Agencies - Third Party P,30124762,DILLON CARE LTD,"3,900.00",21/06/2016
Delivery Units,Adults and Communities,Other Agencies - Third Party P,30123589,DIMENSIONS UK,74.8,01/06/2016
Delivery Units,Adults and Communities,Other Agencies - Third Party P,30123898,DIMENSIONS UK,149.6,06/06/2016
Delivery Units,Adults and Communities,Other Agencies - Third Party P,30123899,DIMENSIONS UK,37.4,06/06/2016
Delivery Units,Adults and Communities,Other Agencies - Third Party P,30123900,DIMENSIONS UK,149.6,06/06/2016
Delivery Units,Adults and Communities,Other Agencies - Third Party P,30123901,DIMENSIONS UK,224.4,06/06/2016
Delivery Units,Adults and Communities,Other Agencies - Third Party P,30123902,DIMENSIONS UK,149.6,06/06/2016
Delivery Units,Adults and Communities,Other Agencies - Third Party P,30123903,DIMENSIONS UK,149.6,06/06/2016
Delivery Units,Adults and Communities,Other Agencies - Third Party P,30123904,DIMENSIONS UK,74.8,06/06/2016
Delivery Units,Adults and Communities,Other Agencies - Third Party P,30123905,DIMENSIONS UK,74.8,06/06/2016
Delivery Units,Adults and Communities,Other Agencies - Third Party P,30123906,DIMENSIONS UK,74.8,06/06/2016
Delivery Units,Adults and Communities,Other Agencies - Third Party P,30123907,DIMENSIONS UK,149.6,06/06/2016
Delivery Units,Adults and Communities,Other Agencies - Third Party P,30123908,DIMENSIONS UK,149.6,06/06/2016
Delivery Units,Adults and Communities,Other Agencies - Third Party P,30123909,DIMENSIONS UK,149.6,06/06/2016
Delivery Units,Adults and Communities,Other Agencies - Third Party P,30123910,DIMENSIONS UK,149.6,06/06/2016
Delivery Units,Adults and Communities,Other Agencies - Third Party P,30123911,DIMENSIONS UK,74.8,06/06/2016
Delivery Units,Adults and Communities,Other Agencies - Third Party P,30123912,DIMENSIONS UK,74.8,06/06/2016
Delivery Units,Adults and Communities,Other Agencies - Third Party P,30123913,DIMENSIONS UK,523.6,06/06/2016
Delivery Units,Adults and Communities,Other Agencies - Third Party P,30123914,DIMENSIONS UK,299.2,06/06/2016
Delivery Units,Adults and Communities,Other Agencies - Third Party P,30123915,DIMENSIONS UK,224.4,06/06/2016
Delivery Units,Adults and Communities,Other Agencies - Third Party P,30123916,DIMENSIONS UK,149.6,06/06/2016
Delivery Units,Adults and Communities,Other Agencies - Third Party P,30123917,DIMENSIONS UK,448.8,06/06/2016
Delivery Units,Adults and Communities,Other Agencies - Third Party P,30123918,DIMENSIONS UK,149.6,06/06/2016
Delivery Units,Adults and Communities,Other Agencies - Third Party P,30123919,DIMENSIONS UK,112.2,06/06/2016
Delivery Units,Adults and Communities,Other Agencies - Third Party P,30123920,DIMENSIONS UK,149.6,06/06/2016
Delivery Units,Adults and Communities,Other Agencies - Third Party P,30123921,DIMENSIONS UK,149.6,06/06/2016
Delivery Units,Adults and Communities,Other Agencies - Third Party P,30123922,DIMENSIONS UK,448.8,06/06/2016
Delivery Units,Adults and Communities,Other Agencies - Third Party P,30123923,DIMENSIONS UK,149.6,06/06/2016
Delivery Units,Adults and Communities,Other Agencies - Third Party P,30123924,DIMENSIONS UK,299.2,06/06/2016
Delivery Units,Adults and Communities,Other Agencies - Third Party P,30124491,EASTSIDE HOUSE RESIDENTIAL CARE HOM,"2,031.76",14/06/2016
Delivery Units,Adults and Communities,Other Agencies - Third Party P,30125255,ELIZA HOUSE,"2,369.78",24/06/2016
Delivery Units,Adults and Communities,Other Agencies - Third Party P,30124159,ELM PARK LODGE,"3,299.29",09/06/2016
Delivery Units,Adults and Communities,Other Agencies - Third Party P,30124168,ELM PARK LODGE,"3,484.80",09/06/2016
Delivery Units,Adults and Communities,Other Agencies - Third Party P,30124169,ELM PARK LODGE,"3,520.71",08/06/2016
Delivery Units,Adults and Communities,Other Agencies - Third Party P,30124173,ELM PARK LODGE,"3,432.14",09/06/2016
Delivery Units,Adults and Communities,Other Agencies - Third Party P,30124177,ELM PARK LODGE,"3,441.00",09/06/2016
Delivery Units,Adults and Communities,Other Agencies - Third Party P,30124178,ELM PARK LODGE,"2,103.31",09/06/2016
Delivery Units,Adults and Communities,Other Agencies - Third Party P,30124179,ELM PARK LODGE,"3,432.14",09/06/2016
Delivery Units,Adults and Communities,Other Agencies - Third Party P,30124180,ELM PARK LODGE,"2,161.85",09/06/2016
Delivery Units,Adults and Communities,Other Agencies - Third Party P,30124188,ELM PARK LODGE,"3,210.71",09/06/2016
Delivery Units,Adults and Communities,Other Agencies - Third Party P,30124189,ELM PARK LODGE,"3,432.14",09/06/2016
Delivery Units,Adults and Communities,Other Agencies - Third Party P,30124190,ELM PARK LODGE,"3,432.14",09/06/2016
Delivery Units,Adults and Communities,Other Agencies - Third Party P,30124197,ELM PARK LODGE,"3,455.61",09/06/2016
Delivery Units,Adults and Communities,Other Agencies - Third Party P,30124199,ELM PARK LODGE,"3,170.86",09/06/2016
Delivery Units,Adults and Communities,Other Agencies - Third Party P,30125288,ELM PARK LODGE,"3,432.14",24/06/2016
Delivery Units,Adults and Communities,Other Agencies - Third Party P,30126563,EMMAUS HOUSE,"2,211.80",29/06/2016
Delivery Units,Adults and Communities,Other Agencies - Third Party P,30123581,FAIRBURN HOUSE LTD,85.8,01/06/2016
Delivery Units,Adults and Communities,Other Agencies - Third Party P,30123823,FERNBANK NURSING HOME.,"1,284.90",06/06/2016
Delivery Units,Adults and Communities,Other Agencies - Third Party P,30123825,FERNBANK NURSING HOME.,"2,397.54",06/06/2016
Delivery Units,Adults and Communities,Other Agencies - Third Party P,30123826,FERNBANK NURSING HOME.,"2,397.54",06/06/2016
Delivery Units,Adults and Communities,Other Agencies - Third Party P,30123827,FERNBANK NURSING HOME.,"2,397.54",06/06/2016
Delivery Units,Adults and Communities,Other Agencies - Third Party P,30123828,FERNBANK NURSING HOME.,"2,397.54",06/06/2016
Delivery Units,Adults and Communities,Other Agencies - Third Party P,30123829,FERNBANK NURSING HOME.,"2,397.54",06/06/2016
Delivery Units,Adults and Communities,Other Agencies - Third Party P,30123830,FERNBANK NURSING HOME.,"2,397.54",06/06/2016
Delivery Units,Adults and Communities,Other Agencies - Third Party P,30123712,FINBOND LIMITED,"2,216.41",03/06/2016
Delivery Units,Adults and Communities,Other Agencies - Third Party P,30124961,FINBOND LIMITED,"2,571.43",22/06/2016
Delivery Units,Adults and Communities,Other Agencies - Third Party P,30124962,FINBOND LIMITED,"2,340.04",22/06/2016
Delivery Units,Adults and Communities,Other Agencies - Third Party P,30124963,FINBOND LIMITED,"2,352.86",22/06/2016
Delivery Units,Adults and Communities,Other Agencies - Third Party P,30124533,FLAGSWAN TWO LTD,"2,546.43",15/06/2016
Delivery Units,Adults and Communities,Other Agencies - Third Party P,30124523,FOUR SEASONS HEALTH CARE,"2,443.32",15/06/2016
Delivery Units,Adults and Communities,Other Agencies - Third Party P,30124524,FOUR SEASONS HEALTH CARE,"2,165.68",15/06/2016
Delivery Units,Adults and Communities,Other Agencies - Third Party P,30124525,FOUR SEASONS HEALTH CARE,"2,165.68",15/06/2016
Delivery Units,Adults and Communities,Other Agencies - Third Party P,30124526,FOUR SEASONS HEALTH CARE,"2,123.48",15/06/2016
Delivery Units,Adults and Communities,Other Agencies - Third Party P,30124527,FOUR SEASONS HEALTH CARE,"2,123.48",15/06/2016
Delivery Units,Adults and Communities,Other Agencies - Third Party P,30124528,FOUR SEASONS HEALTH CARE,"2,398.56",15/06/2016
Delivery Units,Adults and Communities,Other Agencies - Third Party P,30124529,FOUR SEASONS HEALTH CARE,"2,165.68",15/06/2016
Delivery Units,Adults and Communities,Other Agencies - Third Party P,30124530,FOUR SEASONS HEALTH CARE,"2,398.56",15/06/2016
Delivery Units,Adults and Communities,Other Agencies - Third Party P,30124625,FOUR SEASONS HEALTH CARE,"2,165.68",17/06/2016
Delivery Units,Adults and Communities,Other Agencies - Third Party P,30124626,FOUR SEASONS HEALTH CARE,"2,165.68",17/06/2016
Delivery Units,Adults and Communities,Other Agencies - Third Party P,30124627,FOUR SEASONS HEALTH CARE,"2,165.68",17/06/2016
Delivery Units,Adults and Communities,Other Agencies - Third Party P,30124628,FOUR SEASONS HEALTH CARE,"2,313.08",17/06/2016
Delivery Units,Adults and Communities,Other Agencies - Third Party P,30124629,FOUR SEASONS HEALTH CARE,"2,165.68",17/06/2016
Delivery Units,Adults and Communities,Other Agencies - Third Party P,30124630,FOUR SEASONS HEALTH CARE,"2,165.68",17/06/2016
Delivery Units,Adults and Communities,Other Agencies - Third Party P,30124631,FOUR SEASONS HEALTH CARE,"2,165.68",17/06/2016
Delivery Units,Adults and Communities,Other Agencies - Third Party P,30124632,FOUR SEASONS HEALTH CARE,"2,165.68",17/06/2016
Delivery Units,Adults and Communities,Other Agencies - Third Party P,30124300,FOUR SEASONS HEALTH CARE (NO.4) LTD,"2,004.00",13/06/2016
Delivery Units,Adults and Communities,Other Agencies - Third Party P,30123746,FREEWAYS TRUST LIMITED,829.8,03/06/2016
Delivery Units,Adults and Communities,Other Agencies - Third Party P,30122083,FREMANTLE TRUST,-111.84,01/06/2016
Delivery Units,Adults and Communities,Other Agencies - Third Party P,30123714,FREMANTLE TRUST,"3,052.00",03/06/2016
Delivery Units,Adults and Communities,Other Agencies - Third Party P,30123715,FREMANTLE TRUST,"2,908.00",03/06/2016
Delivery Units,Adults and Communities,Other Agencies - Third Party P,30123716,FREMANTLE TRUST,"3,000.00",03/06/2016
Delivery Units,Adults and Communities,Other Agencies - Third Party P,30123717,FREMANTLE TRUST,"3,052.00",03/06/2016
Delivery Units,Adults and Communities,Other Agencies - Third Party P,30123718,FREMANTLE TRUST,"2,908.00",03/06/2016
Delivery Units,Adults and Communities,Other Agencies - Third Party P,30123719,FREMANTLE TRUST,"3,000.00",03/06/2016
Delivery Units,Adults and Communities,Other Agencies - Third Party P,30123721,FREMANTLE TRUST,"3,052.00",03/06/2016
Delivery Units,Adults and Communities,Other Agencies - Third Party P,30123722,FREMANTLE TRUST,"3,052.00",03/06/2016
Delivery Units,Adults and Communities,Other Agencies - Third Party P,30123723,FREMANTLE TRUST,"1,308.00",03/06/2016
Delivery Units,Adults and Communities,Other Agencies - Third Party P,30123724,FREMANTLE TRUST,872,03/06/2016
Delivery Units,Adults and Communities,Other Agencies - Third Party P,30123725,FREMANTLE TRUST,"3,115.71",03/06/2016
Delivery Units,Adults and Communities,Other Agencies - Third Party P,30123726,FREMANTLE TRUST,"3,270.00",03/06/2016
Delivery Units,Adults and Communities,Other Agencies - Third Party P,30123727,FREMANTLE TRUST,"3,270.00",03/06/2016
Delivery Units,Adults and Communities,Other Agencies - Third Party P,30123728,FREMANTLE TRUST,"3,270.00",03/06/2016
Delivery Units,Adults and Communities,Other Agencies - Third Party P,30123729,FREMANTLE TRUST,"2,945.80",03/06/2016
Delivery Units,Adults and Communities,Other Agencies - Third Party P,30123730,FREMANTLE TRUST,"3,091.68",03/06/2016
Delivery Units,Adults and Communities,Other Agencies - Third Party P,30123739,FREMANTLE TRUST,"2,811.67",03/06/2016
Delivery Units,Adults and Communities,Other Agencies - Third Party P,30123740,FREMANTLE TRUST,"2,274.44",03/06/2016
Delivery Units,Adults and Communities,Other Agencies - Third Party P,30123741,FREMANTLE TRUST,"19,750.00",03/06/2016
Delivery Units,Adults and Communities,Other Agencies - Third Party P,30123742,FREMANTLE TRUST,"2,436.90",03/06/2016
Delivery Units,Adults and Communities,Other Agencies - Third Party P,30123743,FREMANTLE TRUST,"3,385.71",03/06/2016
Delivery Units,Adults and Communities,Other Agencies - Third Party P,30123744,FREMANTLE TRUST,"2,304.00",03/06/2016
Delivery Units,Adults and Communities,Other Agencies - Third Party P,30123745,FREMANTLE TRUST,"3,581.96",03/06/2016
Delivery Units,Adults and Communities,Other Agencies - Third Party P,30123867,FREMANTLE TRUST,383.04,06/06/2016
Delivery Units,Adults and Communities,Other Agencies - Third Party P,30123868,FREMANTLE TRUST,383.04,06/06/2016
Delivery Units,Adults and Communities,Other Agencies - Third Party P,30123869,FREMANTLE TRUST,926.6,06/06/2016
Delivery Units,Adults and Communities,Other Agencies - Third Party P,30123870,FREMANTLE TRUST,383.04,06/06/2016
Delivery Units,Adults and Communities,Other Agencies - Third Party P,30123871,FREMANTLE TRUST,383.04,06/06/2016
Delivery Units,Adults and Communities,Other Agencies - Third Party P,30123872,FREMANTLE TRUST,383.04,06/06/2016
Delivery Units,Adults and Communities,Other Agencies - Third Party P,30123873,FREMANTLE TRUST,410.4,06/06/2016
Delivery Units,Adults and Communities,Other Agencies - Third Party P,30123874,FREMANTLE TRUST,383.04,06/06/2016
Delivery Units,Adults and Communities,Other Agencies - Third Party P,30124157,FREMANTLE TRUST,"1,090.00",08/06/2016
Delivery Units,Adults and Communities,Other Agencies - Third Party P,30124158,FREMANTLE TRUST,"3,091.68",08/06/2016
Delivery Units,Adults and Communities,Other Agencies - Third Party P,30124516,FREMANTLE TRUST,"2,945.80",15/06/2016
Delivery Units,Adults and Communities,Other Agencies - Third Party P,30124517,FREMANTLE TRUST,662.5,15/06/2016
Delivery Units,Adults and Communities,Other Agencies - Third Party P,30124518,FREMANTLE TRUST,"3,091.68",15/06/2016
Delivery Units,Adults and Communities,Other Agencies - Third Party P,30124519,FREMANTLE TRUST,"3,540.00",15/06/2016
Delivery Units,Adults and Communities,Other Agencies - Third Party P,30124520,FREMANTLE TRUST,383.04,15/06/2016
Delivery Units,Adults and Communities,Other Agencies - Third Party P,30124532,FREMANTLE TRUST,"3,581.96",15/06/2016
Delivery Units,Adults and Communities,Other Agencies - Third Party P,30125052,FREMANTLE TRUST,"3,540.00",22/06/2016
Delivery Units,Adults and Communities,Other Agencies - Third Party P,30125302,FREMANTLE TRUST,"3,248.48",24/06/2016
Delivery Units,Adults and Communities,Other Agencies - Third Party P,30125303,FREMANTLE TRUST,"3,248.48",24/06/2016
Delivery Units,Adults and Communities,Other Agencies - Third Party P,30125419,FREMANTLE TRUST,"2,304.00",24/06/2016
Delivery Units,Adults and Communities,Other Agencies - Third Party P,30123489,FRIARY LODGE,"2,448.78",02/06/2016
Delivery Units,Adults and Communities,Other Agencies - Third Party P,30123490,FRIARY LODGE,"2,249.44",02/06/2016
Delivery Units,Adults and Communities,Other Agencies - Third Party P,30123496,FRIARY LODGE,"2,448.78",02/06/2016
Delivery Units,Adults and Communities,Other Agencies - Third Party P,30123507,FRIARY LODGE,"2,448.78",02/06/2016
Delivery Units,Adults and Communities,Other Agencies - Third Party P,30124375,FRIERN RESIDENTIAL CARE HOME,"2,103.31",13/06/2016
Delivery Units,Adults and Communities,Other Agencies - Third Party P,30124376,FRIERN RESIDENTIAL CARE HOME,"3,985.71",13/06/2016
Delivery Units,Adults and Communities,Other Agencies - Third Party P,30124399,FRIERN RESIDENTIAL CARE HOME,"3,100.00",13/06/2016
Delivery Units,Adults and Communities,Other Agencies - Third Party P,30126566,GENTLE HANDS CARE AGENCY,324,29/06/2016
Delivery Units,Adults and Communities,Other Agencies - Third Party P,30126567,GENTLE HANDS CARE AGENCY,"1,012.00",29/06/2016
Delivery Units,Adults and Communities,Other Agencies - Third Party P,30126569,GENTLE HANDS CARE AGENCY,216,29/06/2016
Delivery Units,Adults and Communities,Other Agencies - Third Party P,30126570,GENTLE HANDS CARE AGENCY,"1,400.00",29/06/2016
Delivery Units,Adults and Communities,Other Agencies - Third Party P,30126571,GENTLE HANDS CARE AGENCY,121.5,29/06/2016
Delivery Units,Adults and Communities,Other Agencies - Third Party P,30126572,GENTLE HANDS CARE AGENCY,468,29/06/2016
Delivery Units,Adults and Communities,Other Agencies - Third Party P,30126574,GENTLE HANDS CARE AGENCY,432,29/06/2016
Delivery Units,Adults and Communities,Other Agencies - Third Party P,30126575,GENTLE HANDS CARE AGENCY,"1,358.00",29/06/2016
Delivery Units,Adults and Communities,Other Agencies - Third Party P,30126576,GENTLE HANDS CARE AGENCY,189,29/06/2016
Delivery Units,Adults and Communities,Other Agencies - Third Party P,30126577,GENTLE HANDS CARE AGENCY,507,29/06/2016
Delivery Units,Adults and Communities,Other Agencies - Third Party P,30126578,GENTLE HANDS CARE AGENCY,429,29/06/2016
Delivery Units,Adults and Communities,Other Agencies - Third Party P,30126579,GENTLE HANDS CARE AGENCY,"1,400.00",29/06/2016
Delivery Units,Adults and Communities,Other Agencies - Third Party P,30123569,GENTLE HANDS CARE HOMES LIMITED,"4,394.00",01/06/2016
Delivery Units,Adults and Communities,Other Agencies - Third Party P,30123570,GENTLE HANDS CARE HOMES LIMITED,"4,394.00",01/06/2016
Delivery Units,Adults and Communities,Other Agencies - Third Party P,30123571,GENTLE HANDS CARE HOMES LIMITED,"4,394.00",01/06/2016
Delivery Units,Adults and Communities,Other Agencies - Third Party P,30123608,GENTLE HANDS CARE HOMES LIMITED,"1,080.00",01/06/2016
Delivery Units,Adults and Communities,Other Agencies - Third Party P,30123609,GENTLE HANDS CARE HOMES LIMITED,"1,080.00",01/06/2016
Delivery Units,Adults and Communities,Other Agencies - Third Party P,30123610,GENTLE HANDS CARE HOMES LIMITED,"1,080.00",01/06/2016
Delivery Units,Adults and Communities,Other Agencies - Third Party P,30124754,GENTLE HANDS CARE HOMES LIMITED,"4,394.00",21/06/2016
Delivery Units,Adults and Communities,Other Agencies - Third Party P,30124755,GENTLE HANDS CARE HOMES LIMITED,"4,500.00",21/06/2016
Delivery Units,Adults and Communities,Other Agencies - Third Party P,30124756,GENTLE HANDS CARE HOMES LIMITED,"4,500.00",21/06/2016
Delivery Units,Adults and Communities,Other Agencies - Third Party P,30124757,GENTLE HANDS CARE HOMES LIMITED,"3,600.00",21/06/2016
Delivery Units,Adults and Communities,Other Agencies - Third Party P,30124763,GENTLE HANDS CARE HOMES LIMITED,"1,080.00",21/06/2016
Delivery Units,Adults and Communities,Other Agencies - Third Party P,30126580,GENTLE HANDS CARE HOMES LIMITED,"3,419.00",29/06/2016
Delivery Units,Adults and Communities,Other Agencies - Third Party P,30126581,GENTLE HANDS CARE HOMES LIMITED,"3,419.00",29/06/2016
Delivery Units,Adults and Communities,Other Agencies - Third Party P,30126582,GENTLE HANDS CARE HOMES LIMITED,"3,419.00",29/06/2016
Delivery Units,Adults and Communities,Other Agencies - Third Party P,30125050,GLENHOLME PSYCHIATRIC AFTER CARE HO,"3,964.89",22/06/2016
Delivery Units,Adults and Communities,Other Agencies - Third Party P,30125143,GLENHOLME PSYCHIATRIC AFTER CARE HO,"3,857.57",22/06/2016
Delivery Units,Adults and Communities,Other Agencies - Third Party P,30125250,GLENHOLME PSYCHIATRIC AFTER CARE HO,"4,071.43",22/06/2016
Delivery Units,Adults and Communities,Other Agencies - Third Party P,30124402,GREEN TREES,"2,678.57",13/06/2016
Delivery Units,Adults and Communities,Other Agencies - Third Party P,30124403,GREEN TREES,"2,767.85",13/06/2016
Delivery Units,Adults and Communities,Other Agencies - Third Party P,30124404,GREEN TREES,"2,678.57",14/06/2016
Delivery Units,Adults and Communities,Other Agencies - Third Party P,30123572,HALLMARK CARE (KINGS LYNN) LTD,"2,890.31",01/06/2016
Delivery Units,Adults and Communities,Other Agencies - Third Party P,30125077,HALLMARK CARE (KINGS LYNN) LTD,"2,797.07",24/06/2016
Delivery Units,Adults and Communities,Other Agencies - Third Party P,30124185,HARDEN,"4,343.12",08/06/2016
Delivery Units,Adults and Communities,Other Agencies - Third Party P,30126597,HARDEN,"4,343.12",29/06/2016
Delivery Units,Adults and Communities,Other Agencies - Third Party P,30123499,HARTLEY CENTRE,"3,427.20",01/06/2016
Delivery Units,Adults and Communities,Other Agencies - Third Party P,30123634,HARTLEY CENTRE,"9,297.18",02/06/2016
Delivery Units,Adults and Communities,Other Agencies - Third Party P,30124621,HARTWIG CARE LIMITED,"1,039.96",17/06/2016
Delivery Units,Adults and Communities,Other Agencies - Third Party P,30124622,HARTWIG CARE LIMITED,965.79,17/06/2016
Delivery Units,Adults and Communities,Other Agencies - Third Party P,30124623,HARTWIG CARE LIMITED,"1,083.89",17/06/2016
Delivery Units,Adults and Communities,Other Agencies - Third Party P,30124624,HARTWIG CARE LIMITED,816.99,17/06/2016
Delivery Units,Adults and Communities,Other Agencies - Third Party P,30124109,HEADWAY EAST LONDON,376.08,21/06/2016
Delivery Units,Adults and Communities,Other Agencies - Third Party P,30123266,HENRY NIHILL HOUSE,"2,165.68",01/06/2016
Delivery Units,Adults and Communities,Other Agencies - Third Party P,30123268,HENRY NIHILL HOUSE,"2,398.56",01/06/2016
Delivery Units,Adults and Communities,Other Agencies - Third Party P,30124888,HENRY NIHILL HOUSE,"2,165.68",28/06/2016
Delivery Units,Adults and Communities,Other Agencies - Third Party P,30124889,HENRY NIHILL HOUSE,"2,398.56",28/06/2016
Delivery Units,Adults and Communities,Other Agencies - Third Party P,30124063,HFH HEALTHCARE LTD,"8,445.32",08/06/2016
Delivery Units,Adults and Communities,Other Agencies - Third Party P,30124714,HFH HEALTHCARE LTD,"8,858.12",21/06/2016
Delivery Units,Adults and Communities,Other Agencies - Third Party P,30123493,HILLGREEN CARE LTD,"7,093.24",01/06/2016
Delivery Units,Adults and Communities,Other Agencies - Third Party P,30123494,HILLGREEN CARE LTD,"6,864.42",01/06/2016
Delivery Units,Adults and Communities,Other Agencies - Third Party P,30124902,HILLGREEN CARE LTD,"7,093.24",22/06/2016
Delivery Units,Adults and Communities,Other Agencies - Third Party P,30125300,HILLSIDE CLUBHOUSE LTD,280,24/06/2016
Delivery Units,Adults and Communities,Other Agencies - Third Party P,20030382,HILTON LODGE LTD.,"2,400.00",08/06/2016
Delivery Units,Adults and Communities,Other Agencies - Third Party P,20030383,HILTON LODGE LTD.,84.85,08/06/2016
Delivery Units,Adults and Communities,Other Agencies - Third Party P,20030384,HILTON LODGE LTD.,"2,184.04",08/06/2016
Delivery Units,Adults and Communities,Other Agencies - Third Party P,30124181,HILTON LODGE LTD.,"2,184.04",09/06/2016
Delivery Units,Adults and Communities,Other Agencies - Third Party P,30124182,HILTON LODGE LTD.,"2,400.00",09/06/2016
Delivery Units,Adults and Communities,Other Agencies - Third Party P,30124183,HILTON LODGE LTD.,"2,256.04",09/06/2016
Delivery Units,Adults and Communities,Other Agencies - Third Party P,30124184,HILTON LODGE LTD.,"1,794.03",09/06/2016
Delivery Units,Adults and Communities,Other Agencies - Third Party P,30124186,HILTON LODGE LTD.,"2,184.04",09/06/2016
Delivery Units,Adults and Communities,Other Agencies - Third Party P,30124187,HILTON LODGE LTD.,"2,184.04",09/06/2016
Delivery Units,Adults and Communities,Other Agencies - Third Party P,30124198,HILTON LODGE LTD.,"2,184.04",09/06/2016
Delivery Units,Adults and Communities,Other Agencies - Third Party P,30124200,HILTON LODGE LTD.,"2,184.04",09/06/2016
Delivery Units,Adults and Communities,Other Agencies - Third Party P,30125287,HOLLY HOUSE CARE HOME,"3,001.73",24/06/2016
Delivery Units,Adults and Communities,Other Agencies - Third Party P,30124594,HONISTER RESIDENTIAL CARE LTD,"2,340.04",17/06/2016
Delivery Units,Adults and Communities,Other Agencies - Third Party P,60056449,HOUSING 21,634.56,13/06/2016
Delivery Units,Adults and Communities,Other Agencies - Third Party P,60056480,HOUSING 21,634.56,13/06/2016
Delivery Units,Adults and Communities,Other Agencies - Third Party P,60056532,HOUSING 21,634.56,13/06/2016
Delivery Units,Adults and Communities,Other Agencies - Third Party P,60056540,HOUSING 21,634.56,13/06/2016
Delivery Units,Adults and Communities,Other Agencies - Third Party P,60056558,HOUSING 21,634.56,13/06/2016
Delivery Units,Adults and Communities,Other Agencies - Third Party P,60056578,HOUSING 21,634.56,13/06/2016
Delivery Units,Adults and Communities,Other Agencies - Third Party P,60056600,HOUSING 21,634.56,13/06/2016
Delivery Units,Adults and Communities,Other Agencies - Third Party P,60057196,HOUSING 21,634.56,20/06/2016
Delivery Units,Adults and Communities,Other Agencies - Third Party P,30123137,HOUSING 21 (BARNET),-246,02/06/2016
Delivery Units,Adults and Communities,Other Agencies - Third Party P,30123138,HOUSING 21 (BARNET),-246,02/06/2016
Delivery Units,Adults and Communities,Other Agencies - Third Party P,30123563,HOUSING 21 (BARNET),-246,02/06/2016
Delivery Units,Adults and Communities,Other Agencies - Third Party P,30123564,HOUSING 21 (BARNET),-246,02/06/2016
Delivery Units,Adults and Communities,Other Agencies - Third Party P,30125235,HUSKARDS NEW CARE LTD,"2,145.00",22/06/2016
Delivery Units,Adults and Communities,Other Agencies - Third Party P,30123615,INDIVIDUALISED CARE LIMITED,"2,000.00",02/06/2016
Delivery Units,Adults and Communities,Other Agencies - Third Party P,30123616,INDIVIDUALISED CARE LIMITED,800,02/06/2016
Delivery Units,Adults and Communities,Other Agencies - Third Party P,30123617,INDIVIDUALISED CARE LIMITED,"1,000.00",02/06/2016
Delivery Units,Adults and Communities,Other Agencies - Third Party P,30123618,INDIVIDUALISED CARE LIMITED,148.75,02/06/2016
Delivery Units,Adults and Communities,Other Agencies - Third Party P,30123619,INDIVIDUALISED CARE LIMITED,256,02/06/2016
Delivery Units,Adults and Communities,Other Agencies - Third Party P,30123620,INDIVIDUALISED CARE LIMITED,600,02/06/2016
Delivery Units,Adults and Communities,Other Agencies - Third Party P,30123621,INDIVIDUALISED CARE LIMITED,255,02/06/2016
Delivery Units,Adults and Communities,Other Agencies - Third Party P,30123622,INDIVIDUALISED CARE LIMITED,224,02/06/2016
Delivery Units,Adults and Communities,Other Agencies - Third Party P,30123623,INDIVIDUALISED CARE LIMITED,700,02/06/2016
Delivery Units,Adults and Communities,Other Agencies - Third Party P,30123624,INDIVIDUALISED CARE LIMITED,"2,400.00",02/06/2016
Delivery Units,Adults and Communities,Other Agencies - Third Party P,30123625,INDIVIDUALISED CARE LIMITED,300,02/06/2016
Delivery Units,Adults and Communities,Other Agencies - Third Party P,30123626,INDIVIDUALISED CARE LIMITED,400,02/06/2016
Delivery Units,Adults and Communities,Other Agencies - Third Party P,30123702,INDIVIDUALISED CARE LIMITED,700,03/06/2016
Delivery Units,Adults and Communities,Other Agencies - Third Party P,30123703,INDIVIDUALISED CARE LIMITED,"1,400.00",03/06/2016
Delivery Units,Adults and Communities,Other Agencies - Third Party P,30123704,INDIVIDUALISED CARE LIMITED,700,03/06/2016
Delivery Units,Adults and Communities,Other Agencies - Third Party P,30123749,INDIVIDUALISED CARE LIMITED,84,06/06/2016
Delivery Units,Adults and Communities,Other Agencies - Third Party P,30123750,INDIVIDUALISED CARE LIMITED,168,06/06/2016
Delivery Units,Adults and Communities,Other Agencies - Third Party P,30123751,INDIVIDUALISED CARE LIMITED,280,06/06/2016
Delivery Units,Adults and Communities,Other Agencies - Third Party P,30123752,INDIVIDUALISED CARE LIMITED,315,06/06/2016
Delivery Units,Adults and Communities,Other Agencies - Third Party P,30123753,INDIVIDUALISED CARE LIMITED,473,06/06/2016
Delivery Units,Adults and Communities,Other Agencies - Third Party P,30123754,INDIVIDUALISED CARE LIMITED,300,06/06/2016
Delivery Units,Adults and Communities,Other Agencies - Third Party P,30123755,INDIVIDUALISED CARE LIMITED,140,06/06/2016
Delivery Units,Adults and Communities,Other Agencies - Third Party P,30123756,INDIVIDUALISED CARE LIMITED,244,06/06/2016
Delivery Units,Adults and Communities,Other Agencies - Third Party P,30124560,INDIVIDUALISED CARE LIMITED,"2,000.00",17/06/2016
Delivery Units,Adults and Communities,Other Agencies - Third Party P,30124561,INDIVIDUALISED CARE LIMITED,"2,000.00",17/06/2016
Delivery Units,Adults and Communities,Other Agencies - Third Party P,30124562,INDIVIDUALISED CARE LIMITED,82.5,17/06/2016
Delivery Units,Adults and Communities,Other Agencies - Third Party P,30125311,INDIVIDUALISED CARE LIMITED,"2,000.00",24/06/2016
Delivery Units,Adults and Communities,Other Agencies - Third Party P,30126596,ISLINGTON OUTLOOK (ST JOHNS),879.6,29/06/2016
Delivery Units,Adults and Communities,Other Agencies - Third Party P,30123486,JACARANDA HEALTHCARE,148.5,01/06/2016
Delivery Units,Adults and Communities,Other Agencies - Third Party P,30123487,JACARANDA HEALTHCARE,210,01/06/2016
Delivery Units,Adults and Communities,Other Agencies - Third Party P,30123757,JACARANDA HEALTHCARE,162,06/06/2016
Delivery Units,Adults and Communities,Other Agencies - Third Party P,30123758,JACARANDA HEALTHCARE,210,06/06/2016
Delivery Units,Adults and Communities,Other Agencies - Third Party P,30124042,JACARANDA HEALTHCARE,822.15,08/06/2016
Delivery Units,Adults and Communities,Other Agencies - Third Party P,30124044,JACARANDA HEALTHCARE,25.15,08/06/2016
Delivery Units,Adults and Communities,Other Agencies - Third Party P,30124045,JACARANDA HEALTHCARE,"1,324.40",08/06/2016
Delivery Units,Adults and Communities,Other Agencies - Third Party P,30124046,JACARANDA HEALTHCARE,424.7,08/06/2016
Delivery Units,Adults and Communities,Other Agencies - Third Party P,30124047,JACARANDA HEALTHCARE,513,08/06/2016
Delivery Units,Adults and Communities,Other Agencies - Third Party P,30124048,JACARANDA HEALTHCARE,756,08/06/2016
Delivery Units,Adults and Communities,Other Agencies - Third Party P,30124049,JACARANDA HEALTHCARE,801.85,08/06/2016
Delivery Units,Adults and Communities,Other Agencies - Third Party P,30124050,JACARANDA HEALTHCARE,"1,198.40",08/06/2016
Delivery Units,Adults and Communities,Other Agencies - Third Party P,30124051,JACARANDA HEALTHCARE,756,08/06/2016
Delivery Units,Adults and Communities,Other Agencies - Third Party P,30124052,JACARANDA HEALTHCARE,893.2,08/06/2016
Delivery Units,Adults and Communities,Other Agencies - Third Party P,30124053,JACARANDA HEALTHCARE,203,08/06/2016
Delivery Units,Adults and Communities,Other Agencies - Third Party P,30124056,JACARANDA HEALTHCARE,456.75,08/06/2016
Delivery Units,Adults and Communities,Other Agencies - Third Party P,30124116,JACARANDA HEALTHCARE,883.05,08/06/2016
Delivery Units,Adults and Communities,Other Agencies - Third Party P,30123769,JEMINI RESPONSE,"9,100.00",13/06/2016
Delivery Units,Adults and Communities,Other Agencies - Third Party P,30124479,JEMINI RESPONSE,"9,100.00",15/06/2016
Delivery Units,Adults and Communities,Other Agencies - Third Party P,30124809,JEMINI RESPONSE,"1,300.00",27/06/2016
Delivery Units,Adults and Communities,Other Agencies - Third Party P,30123521,JEWISH CARE,"3,200.00",01/06/2016
Delivery Units,Adults and Communities,Other Agencies - Third Party P,30124144,JEWISH CARE,"4,644.80",08/06/2016
Delivery Units,Adults and Communities,Other Agencies - Third Party P,30124145,JEWISH CARE,"4,644.80",08/06/2016
Delivery Units,Adults and Communities,Other Agencies - Third Party P,30124146,JEWISH CARE,"2,322.40",08/06/2016
Delivery Units,Adults and Communities,Other Agencies - Third Party P,30124147,JEWISH CARE,"2,322.40",08/06/2016
Delivery Units,Adults and Communities,Other Agencies - Third Party P,30124148,JEWISH CARE,"2,322.40",08/06/2016
Delivery Units,Adults and Communities,Other Agencies - Third Party P,30124149,JEWISH CARE,"2,322.40",08/06/2016
Delivery Units,Adults and Communities,Other Agencies - Third Party P,30124151,JEWISH CARE,"2,322.40",08/06/2016
Delivery Units,Adults and Communities,Other Agencies - Third Party P,30124152,JEWISH CARE,"2,322.40",08/06/2016
Delivery Units,Adults and Communities,Other Agencies - Third Party P,30124153,JEWISH CARE,"2,322.40",08/06/2016
Delivery Units,Adults and Communities,Other Agencies - Third Party P,30124154,JEWISH CARE,-497.66,08/06/2016
Delivery Units,Adults and Communities,Other Agencies - Third Party P,30124353,JEWISH CARE,248.83,13/06/2016
Delivery Units,Adults and Communities,Other Agencies - Third Party P,30124354,JEWISH CARE,829.43,13/06/2016
Delivery Units,Adults and Communities,Other Agencies - Third Party P,30124355,JEWISH CARE,248.83,13/06/2016
Delivery Units,Adults and Communities,Other Agencies - Third Party P,30124357,JEWISH CARE,"3,200.00",13/06/2016
Delivery Units,Adults and Communities,Other Agencies - Third Party P,30124364,JEWISH CARE,"2,060.70",13/06/2016
Delivery Units,Adults and Communities,Other Agencies - Third Party P,30124369,JEWISH CARE,"-2,361.93",13/06/2016
Delivery Units,Adults and Communities,Other Agencies - Third Party P,30124513,JEWISH CARE,"1,990.63",15/06/2016
Delivery Units,Adults and Communities,Other Agencies - Third Party P,30124586,JEWISH CARE,"2,273.96",17/06/2016
Delivery Units,Adults and Communities,Other Agencies - Third Party P,30124587,JEWISH CARE,"2,273.96",17/06/2016
Delivery Units,Adults and Communities,Other Agencies - Third Party P,30124588,JEWISH CARE,"4,547.92",17/06/2016
Delivery Units,Adults and Communities,Other Agencies - Third Party P,30124589,JEWISH CARE,"2,273.96",17/06/2016
Delivery Units,Adults and Communities,Other Agencies - Third Party P,30124590,JEWISH CARE,"2,273.96",17/06/2016
Delivery Units,Adults and Communities,Other Agencies - Third Party P,30124591,JEWISH CARE,"2,273.96",17/06/2016
Delivery Units,Adults and Communities,Other Agencies - Third Party P,30124592,JEWISH CARE,-974.55,17/06/2016
Delivery Units,Adults and Communities,Other Agencies - Third Party P,30124966,JEWISH CARE,359.78,22/06/2016
Delivery Units,Adults and Communities,Other Agencies - Third Party P,30124967,JEWISH CARE,"2,488.29",22/06/2016
Delivery Units,Adults and Communities,Other Agencies - Third Party P,30124968,JEWISH CARE,"7,001.63",22/06/2016
Delivery Units,Adults and Communities,Other Agencies - Third Party P,30124970,JEWISH CARE,"-3,321.40",22/06/2016
Delivery Units,Adults and Communities,Other Agencies - Third Party P,30124972,JEWISH CARE,"17,003.29",22/06/2016
Delivery Units,Adults and Communities,Other Agencies - Third Party P,30124688,JIGSAW CREATIVE CARE LIMITED,"12,087.04",21/06/2016
Delivery Units,Adults and Communities,Other Agencies - Third Party P,30124689,JIGSAW CREATIVE CARE LIMITED,"5,648.00",21/06/2016
Delivery Units,Adults and Communities,Other Agencies - Third Party P,30124690,JIGSAW CREATIVE CARE LIMITED,"11,132.00",21/06/2016
Delivery Units,Adults and Communities,Other Agencies - Third Party P,30124692,JIGSAW CREATIVE CARE LIMITED,"3,021.76",21/06/2016
Delivery Units,Adults and Communities,Other Agencies - Third Party P,30124693,JIGSAW CREATIVE CARE LIMITED,"1,412.00",21/06/2016
Delivery Units,Adults and Communities,Other Agencies - Third Party P,30124694,JIGSAW CREATIVE CARE LIMITED,"2,783.00",21/06/2016
Delivery Units,Adults and Communities,Other Agencies - Third Party P,30126465,JIGSAW CREATIVE CARE LIMITED,"3,021.76",29/06/2016
Delivery Units,Adults and Communities,Other Agencies - Third Party P,30126466,JIGSAW CREATIVE CARE LIMITED,"1,412.00",29/06/2016
Delivery Units,Adults and Communities,Other Agencies - Third Party P,30126467,JIGSAW CREATIVE CARE LIMITED,"2,783.00",29/06/2016
Delivery Units,Adults and Communities,Other Agencies - Third Party P,30126485,KARE PLUS BARNET,69.5,29/06/2016
Delivery Units,Adults and Communities,Other Agencies - Third Party P,30126486,KARE PLUS BARNET,69.5,29/06/2016
Delivery Units,Adults and Communities,Other Agencies - Third Party P,30126487,KARE PLUS BARNET,83.4,29/06/2016
Delivery Units,Adults and Communities,Other Agencies - Third Party P,30124810,KEMBLE HOUSE,"7,928.70",22/06/2016
Delivery Units,Adults and Communities,Other Agencies - Third Party P,30124815,KEMBLE HOUSE,"9,368.10",22/06/2016
Delivery Units,Adults and Communities,Other Agencies - Third Party P,30124817,KEMBLE HOUSE,"3,231.30",22/06/2016
Delivery Units,Adults and Communities,Other Agencies - Third Party P,30124760,KILCULLEN HOMES (UK) LLP,"1,569.48",21/06/2016
Delivery Units,Adults and Communities,Other Agencies - Third Party P,30123791,KISHARON DAY SCHOOL,"1,464.03",06/06/2016
Delivery Units,Adults and Communities,Other Agencies - Third Party P,30123792,KISHARON DAY SCHOOL,"4,260.72",06/06/2016
Delivery Units,Adults and Communities,Other Agencies - Third Party P,30123793,KISHARON DAY SCHOOL,"2,144.10",06/06/2016
Delivery Units,Adults and Communities,Other Agencies - Third Party P,30123794,KISHARON DAY SCHOOL,"2,284.24",06/06/2016
Delivery Units,Adults and Communities,Other Agencies - Third Party P,30123795,KISHARON DAY SCHOOL,686.88,06/06/2016
Delivery Units,Adults and Communities,Other Agencies - Third Party P,30123796,KISHARON DAY SCHOOL,"1,373.49",06/06/2016
Delivery Units,Adults and Communities,Other Agencies - Third Party P,30123797,KISHARON DAY SCHOOL,794.08,06/06/2016
Delivery Units,Adults and Communities,Other Agencies - Third Party P,30123798,KISHARON DAY SCHOOL,381.54,06/06/2016
Delivery Units,Adults and Communities,Other Agencies - Third Party P,30123799,KISHARON DAY SCHOOL,"1,373.49",06/06/2016
Delivery Units,Adults and Communities,Other Agencies - Third Party P,30123800,KISHARON DAY SCHOOL,397.11,06/06/2016
Delivery Units,Adults and Communities,Other Agencies - Third Party P,30123801,KISHARON DAY SCHOOL,"1,679.87",06/06/2016
Delivery Units,Adults and Communities,Other Agencies - Third Party P,30123802,KISHARON DAY SCHOOL,"1,241.16",06/06/2016
Delivery Units,Adults and Communities,Other Agencies - Third Party P,30123803,KISHARON DAY SCHOOL,"1,369.23",06/06/2016
Delivery Units,Adults and Communities,Other Agencies - Third Party P,30123804,KISHARON DAY SCHOOL,"1,373.68",06/06/2016
Delivery Units,Adults and Communities,Other Agencies - Third Party P,30123805,KISHARON DAY SCHOOL,733.72,06/06/2016
Delivery Units,Adults and Communities,Other Agencies - Third Party P,30123807,KISHARON DAY SCHOOL,"1,275.96",06/06/2016
Delivery Units,Adults and Communities,Other Agencies - Third Party P,30123812,KISHARON DAY SCHOOL,"1,914.00",06/06/2016
Delivery Units,Adults and Communities,Other Agencies - Third Party P,30124306,KISHARON DAY SCHOOL,"1,595.00",13/06/2016
Delivery Units,Adults and Communities,Other Agencies - Third Party P,30123488,KOLBE HOUSE SOCIETY,"2,320.00",13/06/2016
Delivery Units,Adults and Communities,Other Agencies - Third Party P,30123759,KOLBE HOUSE SOCIETY,"18,228.57",06/06/2016
Delivery Units,Adults and Communities,Other Agencies - Third Party P,30123760,KOLBE HOUSE SOCIETY,"2,320.00",06/06/2016
Delivery Units,Adults and Communities,Other Agencies - Third Party P,30124432,LANGDON COMMUNITY LTD,225,15/06/2016
Delivery Units,Adults and Communities,Other Agencies - Third Party P,30124434,LANGDON COMMUNITY LTD,"1,641.60",15/06/2016
Delivery Units,Adults and Communities,Other Agencies - Third Party P,30124435,LANGDON COMMUNITY LTD,"3,411.48",15/06/2016
Delivery Units,Adults and Communities,Other Agencies - Third Party P,30124436,LANGDON COMMUNITY LTD,"2,097.60",15/06/2016
Delivery Units,Adults and Communities,Other Agencies - Third Party P,30124437,LANGDON COMMUNITY LTD,"1,772.32",15/06/2016
Delivery Units,Adults and Communities,Other Agencies - Third Party P,30124439,LANGDON COMMUNITY LTD,243.2,15/06/2016
Delivery Units,Adults and Communities,Other Agencies - Third Party P,30124440,LANGDON COMMUNITY LTD,"1,064.00",15/06/2016
Delivery Units,Adults and Communities,Other Agencies - Third Party P,30124441,LANGDON COMMUNITY LTD,956.36,15/06/2016
Delivery Units,Adults and Communities,Other Agencies - Third Party P,30124442,LANGDON COMMUNITY LTD,180,15/06/2016
Delivery Units,Adults and Communities,Other Agencies - Third Party P,30124443,LANGDON COMMUNITY LTD,180,15/06/2016
Delivery Units,Adults and Communities,Other Agencies - Third Party P,30124672,LANGDON COMMUNITY LTD,"4,594.04",21/06/2016
Delivery Units,Adults and Communities,Other Agencies - Third Party P,30124673,LANGDON COMMUNITY LTD,"2,403.92",21/06/2016
Delivery Units,Adults and Communities,Other Agencies - Third Party P,30124674,LANGDON COMMUNITY LTD,"1,763.20",21/06/2016
Delivery Units,Adults and Communities,Other Agencies - Third Party P,30124675,LANGDON COMMUNITY LTD,"1,315.12",21/06/2016
Delivery Units,Adults and Communities,Other Agencies - Third Party P,30124676,LANGDON COMMUNITY LTD,608,21/06/2016
Delivery Units,Adults and Communities,Other Agencies - Third Party P,30124678,LANGDON COMMUNITY LTD,425.6,21/06/2016
Delivery Units,Adults and Communities,Other Agencies - Third Party P,30124679,LANGDON COMMUNITY LTD,"1,276.80",21/06/2016
Delivery Units,Adults and Communities,Other Agencies - Third Party P,30124680,LANGDON COMMUNITY LTD,851.2,21/06/2016
Delivery Units,Adults and Communities,Other Agencies - Third Party P,30124681,LANGDON COMMUNITY LTD,"4,594.04",21/06/2016
Delivery Units,Adults and Communities,Other Agencies - Third Party P,30124682,LANGDON COMMUNITY LTD,-408.59,21/06/2016
Delivery Units,Adults and Communities,Other Agencies - Third Party P,30126462,LANGDON COMMUNITY LTD,852.87,29/06/2016
Delivery Units,Adults and Communities,Other Agencies - Third Party P,30124401,LEEMING BAR CARE HOME,"2,107.69",13/06/2016
Delivery Units,Adults and Communities,Other Agencies - Third Party P,30123580,LEO BAECK HOUSING ASSOC. LTD,"2,249.36",01/06/2016
Delivery Units,Adults and Communities,Other Agencies - Third Party P,30125046,LEO BAECK HOUSING ASSOC. LTD,"2,369.70",22/06/2016
Delivery Units,Adults and Communities,Other Agencies - Third Party P,30125119,LEO BAECK HOUSING ASSOC. LTD,"2,176.80",22/06/2016
Delivery Units,Adults and Communities,Other Agencies - Third Party P,30125121,LEO BAECK HOUSING ASSOC. LTD,"2,369.79",22/06/2016
Delivery Units,Adults and Communities,Other Agencies - Third Party P,30125122,LEO BAECK HOUSING ASSOC. LTD,"2,176.80",22/06/2016
Delivery Units,Adults and Communities,Other Agencies - Third Party P,30125158,LEO BAECK HOUSING ASSOC. LTD,"2,252.14",22/06/2016
Delivery Units,Adults and Communities,Other Agencies - Third Party P,30125245,LEO BAECK HOUSING ASSOC. LTD,"2,176.80",22/06/2016
Delivery Units,Adults and Communities,Other Agencies - Third Party P,30125251,LEO BAECK HOUSING ASSOC. LTD,"2,176.80",22/06/2016
Delivery Units,Adults and Communities,Other Agencies - Third Party P,30125208,LEWIS.W.HAMMERSON MEMORIAL HOME,"2,176.89",22/06/2016
Delivery Units,Adults and Communities,Other Agencies - Third Party P,30125211,LEWIS.W.HAMMERSON MEMORIAL HOME,"2,176.89",22/06/2016
Delivery Units,Adults and Communities,Other Agencies - Third Party P,30125212,LEWIS.W.HAMMERSON MEMORIAL HOME,"2,176.89",22/06/2016
Delivery Units,Adults and Communities,Other Agencies - Third Party P,30123655,LIFEWAYS,748.41,02/06/2016
Delivery Units,Adults and Communities,Other Agencies - Third Party P,30123656,LIFEWAYS,"2,993.64",02/06/2016
Delivery Units,Adults and Communities,Other Agencies - Third Party P,30123657,LIFEWAYS,"3,152.36",02/06/2016
Delivery Units,Adults and Communities,Other Agencies - Third Party P,30123848,LIFEWAYS,"3,145.24",06/06/2016
Delivery Units,Adults and Communities,Other Agencies - Third Party P,30123849,LIFEWAYS,"6,930.00",06/06/2016
Delivery Units,Adults and Communities,Other Agencies - Third Party P,30123851,LIFEWAYS,"5,037.40",06/06/2016
Delivery Units,Adults and Communities,Other Agencies - Third Party P,30123852,LIFEWAYS,"5,943.00",06/06/2016
Delivery Units,Adults and Communities,Other Agencies - Third Party P,30123858,LIFEWAYS,"3,656.00",06/06/2016
Delivery Units,Adults and Communities,Other Agencies - Third Party P,30123859,LIFEWAYS,"5,766.44",06/06/2016
Delivery Units,Adults and Communities,Other Agencies - Third Party P,30123860,LIFEWAYS,"2,377.20",06/06/2016
Delivery Units,Adults and Communities,Other Agencies - Third Party P,30123861,LIFEWAYS,"4,828.24",06/06/2016
Delivery Units,Adults and Communities,Other Agencies - Third Party P,30123865,LIFEWAYS,"5,275.20",06/06/2016
Delivery Units,Adults and Communities,Other Agencies - Third Party P,30126559,LIFEWAYS,"2,993.64",29/06/2016
Delivery Units,Adults and Communities,Other Agencies - Third Party P,30126562,LIFEWAYS,"2,993.64",29/06/2016
Delivery Units,Adults and Communities,Other Agencies - Third Party P,30125031,LIVABILITY,"2,400.00",22/06/2016
Delivery Units,Adults and Communities,Other Agencies - Third Party P,30125033,LIVABILITY,"3,424.00",22/06/2016
Delivery Units,Adults and Communities,Other Agencies - Third Party P,30124892,LORRAINES CARE HOME LTD,"1,820.00",22/06/2016
Delivery Units,Adults and Communities,Other Agencies - Third Party P,30125131,M D HOMES,"3,428.57",22/06/2016
Delivery Units,Adults and Communities,Other Agencies - Third Party P,30124642,MACINTYRE CARE,750.4,17/06/2016
Delivery Units,Adults and Communities,Other Agencies - Third Party P,30124195,MADELAYNE COURT,"2,216.41",08/06/2016
Delivery Units,Adults and Communities,Other Agencies - Third Party P,30124037,MAISON MOTI LTD,"2,500.00",08/06/2016
Delivery Units,Adults and Communities,Other Agencies - Third Party P,30124038,MAISON MOTI LTD,"2,380.00",08/06/2016
Delivery Units,Adults and Communities,Other Agencies - Third Party P,30124040,MAISON MOTI LTD,"2,200.00",08/06/2016
Delivery Units,Adults and Communities,Other Agencies - Third Party P,30124041,MAISON MOTI LTD,"2,200.00",08/06/2016
Delivery Units,Adults and Communities,Other Agencies - Third Party P,30124057,MAISON MOTI LTD,"2,500.00",08/06/2016
Delivery Units,Adults and Communities,Other Agencies - Third Party P,30124058,MAISON MOTI LTD,"2,500.00",08/06/2016
Delivery Units,Adults and Communities,Other Agencies - Third Party P,30124059,MAISON MOTI LTD,"2,500.00",08/06/2016
Delivery Units,Adults and Communities,Other Agencies - Third Party P,30124060,MAISON MOTI LTD,535.71,08/06/2016
Delivery Units,Adults and Communities,Other Agencies - Third Party P,30124061,MAISON MOTI LTD,"2,500.00",08/06/2016
Delivery Units,Adults and Communities,Other Agencies - Third Party P,30124062,MAISON MOTI LTD,958.57,08/06/2016
Delivery Units,Adults and Communities,Other Agencies - Third Party P,30124064,MAISON MOTI LTD,"1,026.00",08/06/2016
Delivery Units,Adults and Communities,Other Agencies - Third Party P,30124068,MAISON MOTI LTD,"2,440.00",08/06/2016
Delivery Units,Adults and Communities,Other Agencies - Third Party P,30124110,MAISON MOTI LTD,"1,571.43",08/06/2016
Delivery Units,Adults and Communities,Other Agencies - Third Party P,30124118,MAISON MOTI LTD,"3,764.29",08/06/2016
Delivery Units,Adults and Communities,Other Agencies - Third Party P,30124119,MAISON MOTI LTD,"3,764.29",08/06/2016
Delivery Units,Adults and Communities,Other Agencies - Third Party P,30124120,MAISON MOTI LTD,"3,609.29",08/06/2016
Delivery Units,Adults and Communities,Other Agencies - Third Party P,30124124,MAISON MOTI LTD,"3,764.29",08/06/2016
Delivery Units,Adults and Communities,Other Agencies - Third Party P,30124127,MAISON MOTI LTD,"2,500.00",08/06/2016
Delivery Units,Adults and Communities,Other Agencies - Third Party P,30123891,MARRILYNE LODGE,"2,554.16",06/06/2016
Delivery Units,Adults and Communities,Other Agencies - Third Party P,30125149,MAYFIELD ADULT SERVICES,"9,557.14",22/06/2016
Delivery Units,Adults and Communities,Other Agencies - Third Party P,30125306,MAYFIELD ADULT SERVICES,"9,875.71",24/06/2016
Delivery Units,Adults and Communities,Other Agencies - Third Party P,30125027,MEERA NURSING HOME LIMITED,"2,320.37",22/06/2016
Delivery Units,Adults and Communities,Other Agencies - Third Party P,30125056,MEERA NURSING HOME LIMITED,"2,320.37",22/06/2016
Delivery Units,Adults and Communities,Other Agencies - Third Party P,30125085,MEERA NURSING HOME LIMITED,"2,320.37",22/06/2016
Delivery Units,Adults and Communities,Other Agencies - Third Party P,30125120,MEERA NURSING HOME LIMITED,"2,320.37",22/06/2016
Delivery Units,Adults and Communities,Other Agencies - Third Party P,30125148,MEERA NURSING HOME LIMITED,"2,320.37",22/06/2016
Delivery Units,Adults and Communities,Other Agencies - Third Party P,30125159,MEERA NURSING HOME LIMITED,"2,320.37",22/06/2016
Delivery Units,Adults and Communities,Other Agencies - Third Party P,30125162,MEERA NURSING HOME LIMITED,"2,320.37",22/06/2016
Delivery Units,Adults and Communities,Other Agencies - Third Party P,30125207,MEERA NURSING HOME LIMITED,"2,320.37",22/06/2016
Delivery Units,Adults and Communities,Other Agencies - Third Party P,30125420,MEERA NURSING HOME LIMITED,"2,397.72",24/06/2016
Delivery Units,Adults and Communities,Other Agencies - Third Party P,30125144,METHODIST HOMES FOR THE AGED,"2,001.92",22/06/2016
Delivery Units,Adults and Communities,Other Agencies - Third Party P,30125156,METHODIST HOMES FOR THE AGED,"2,500.00",22/06/2016
Delivery Units,Adults and Communities,Other Agencies - Third Party P,30125249,METHODIST HOMES FOR THE AGED,"1,816.72",22/06/2016
Delivery Units,Adults and Communities,Other Agencies - Third Party P,30124136,METRO RADIO CARS,163.35,08/06/2016
Delivery Units,Adults and Communities,Other Agencies - Third Party P,30123833,ML HOMES LTD,"1,780.80",03/06/2016
Delivery Units,Adults and Communities,Other Agencies - Third Party P,30123834,ML HOMES LTD,"1,740.00",03/06/2016
Delivery Units,Adults and Communities,Other Agencies - Third Party P,30123843,ML HOMES LTD,"2,118.36",03/06/2016
Delivery Units,Adults and Communities,Other Agencies - Third Party P,30123844,ML HOMES LTD,"1,433.56",03/06/2016
Delivery Units,Adults and Communities,Other Agencies - Third Party P,30123847,ML HOMES LTD,"1,751.16",03/06/2016
Delivery Units,Adults and Communities,Other Agencies - Third Party P,30123875,ML HOMES LTD,"2,118.36",03/06/2016
Delivery Units,Adults and Communities,Other Agencies - Third Party P,30123879,ML HOMES LTD,"1,417.24",03/06/2016
Delivery Units,Adults and Communities,Other Agencies - Third Party P,30123880,ML HOMES LTD,"1,428.68",03/06/2016
Delivery Units,Adults and Communities,Other Agencies - Third Party P,30123881,ML HOMES LTD,"1,765.80",03/06/2016
Delivery Units,Adults and Communities,Other Agencies - Third Party P,30123888,ML HOMES LTD,"1,751.16",03/06/2016
Delivery Units,Adults and Communities,Other Agencies - Third Party P,30123894,ML HOMES LTD,"1,767.40",03/06/2016
Delivery Units,Adults and Communities,Other Agencies - Third Party P,30123925,ML HOMES LTD,"1,780.00",03/06/2016
Delivery Units,Adults and Communities,Other Agencies - Third Party P,30123926,ML HOMES LTD,"1,780.80",03/06/2016
Delivery Units,Adults and Communities,Other Agencies - Third Party P,30123876,MOREWAYS HEALTHCARE,"2,907.00",06/06/2016
Delivery Units,Adults and Communities,Other Agencies - Third Party P,30123890,MOREWAYS HEALTHCARE,"1,800.00",06/06/2016
Delivery Units,Adults and Communities,Other Agencies - Third Party P,30124398,MOREWAYS HEALTHCARE,"2,600.00",13/06/2016
Delivery Units,Adults and Communities,Other Agencies - Third Party P,30124406,MOREWAYS HEALTHCARE,"2,824.00",13/06/2016
Delivery Units,Adults and Communities,Other Agencies - Third Party P,30124425,MOREWAYS HEALTHCARE,"2,200.00",13/06/2016
Delivery Units,Adults and Communities,Other Agencies - Third Party P,30124751,MOREWAYS HEALTHCARE,"2,600.00",21/06/2016
Delivery Units,Adults and Communities,Other Agencies - Third Party P,30123927,NAVJYOT CARE & SUPPORT LIMITED,"2,597.03",06/06/2016
Delivery Units,Adults and Communities,Other Agencies - Third Party P,30123566,NAZARETH HOUSE,"2,031.76",08/06/2016
Delivery Units,Adults and Communities,Other Agencies - Third Party P,30123567,NAZARETH HOUSE,"-2,764.75",08/06/2016
Delivery Units,Adults and Communities,Other Agencies - Third Party P,30124172,NAZARETH HOUSE,"3,317.70",08/06/2016
Delivery Units,Adults and Communities,Other Agencies - Third Party P,30124610,NAZARETH HOUSE,"2,031.76",17/06/2016
Delivery Units,Adults and Communities,Other Agencies - Third Party P,30124611,NAZARETH HOUSE,"3,036.00",17/06/2016
Delivery Units,Adults and Communities,Other Agencies - Third Party P,30124612,NAZARETH HOUSE,"2,031.76",17/06/2016
Delivery Units,Adults and Communities,Other Agencies - Third Party P,30124613,NAZARETH HOUSE,"2,031.76",17/06/2016
Delivery Units,Adults and Communities,Other Agencies - Third Party P,30124614,NAZARETH HOUSE,"2,031.76",17/06/2016
Delivery Units,Adults and Communities,Other Agencies - Third Party P,30124615,NAZARETH HOUSE,"2,650.40",17/06/2016
Delivery Units,Adults and Communities,Other Agencies - Third Party P,30124617,NAZARETH HOUSE,"2,031.76",17/06/2016
Delivery Units,Adults and Communities,Other Agencies - Third Party P,30124618,NAZARETH HOUSE,"2,211.80",17/06/2016
Delivery Units,Adults and Communities,Other Agencies - Third Party P,30124619,NAZARETH HOUSE,"2,031.76",17/06/2016
Delivery Units,Adults and Communities,Other Agencies - Third Party P,30124620,NAZARETH HOUSE,"2,031.76",17/06/2016
Delivery Units,Adults and Communities,Other Agencies - Third Party P,30125090,NAZARETH HOUSE,"2,144.91",22/06/2016
Delivery Units,Adults and Communities,Other Agencies - Third Party P,30125252,NAZARETH HOUSE,"2,031.76",22/06/2016
Delivery Units,Adults and Communities,Other Agencies - Third Party P,30124104,NEEM TREE CARE CENTRE,"2,699.21",08/06/2016
Delivery Units,Adults and Communities,Other Agencies - Third Party P,30124105,NEEM TREE CARE CENTRE,"2,912.54",08/06/2016
Delivery Units,Adults and Communities,Other Agencies - Third Party P,30124106,NEEM TREE CARE CENTRE,"2,697.00",08/06/2016
Delivery Units,Adults and Communities,Other Agencies - Third Party P,30126458,NEEM TREE CARE CENTRE,"2,612.14",29/06/2016
Delivery Units,Adults and Communities,Other Agencies - Third Party P,30126459,NEEM TREE CARE CENTRE,"2,610.00",29/06/2016
Delivery Units,Adults and Communities,Other Agencies - Third Party P,30124373,NEXT STEP SUPPORT LIMITED,"2,240.00",13/06/2016
Delivery Units,Adults and Communities,Other Agencies - Third Party P,30124426,NEXT STEP SUPPORT LIMITED,"2,000.00",13/06/2016
Delivery Units,Adults and Communities,Other Agencies - Third Party P,30125160,NIGHTINGALES RESIDENTIAL CARE HOME,"3,218.79",22/06/2016
Delivery Units,Adults and Communities,Other Agencies - Third Party P,30125161,NIGHTINGALES RESIDENTIAL CARE HOME,"3,218.79",22/06/2016
Delivery Units,Adults and Communities,Other Agencies - Third Party P,30123597,NORWOOD RAVENSWOOD SCHOOLS LTD,"-2,350.11",01/06/2016
Delivery Units,Adults and Communities,Other Agencies - Third Party P,30123598,NORWOOD RAVENSWOOD SCHOOLS LTD,-832.88,01/06/2016
Delivery Units,Adults and Communities,Other Agencies - Third Party P,30123663,NORWOOD RAVENSWOOD SCHOOLS LTD,182.4,02/06/2016
Delivery Units,Adults and Communities,Other Agencies - Third Party P,30123665,NORWOOD RAVENSWOOD SCHOOLS LTD,"1,520.00",02/06/2016
Delivery Units,Adults and Communities,Other Agencies - Third Party P,30123666,NORWOOD RAVENSWOOD SCHOOLS LTD,729.6,02/06/2016
Delivery Units,Adults and Communities,Other Agencies - Third Party P,30123667,NORWOOD RAVENSWOOD SCHOOLS LTD,304,02/06/2016
Delivery Units,Adults and Communities,Other Agencies - Third Party P,30123668,NORWOOD RAVENSWOOD SCHOOLS LTD,790.4,02/06/2016
Delivery Units,Adults and Communities,Other Agencies - Third Party P,30123669,NORWOOD RAVENSWOOD SCHOOLS LTD,243.2,02/06/2016
Delivery Units,Adults and Communities,Other Agencies - Third Party P,30123670,NORWOOD RAVENSWOOD SCHOOLS LTD,486.4,02/06/2016
Delivery Units,Adults and Communities,Other Agencies - Third Party P,30123674,NORWOOD RAVENSWOOD SCHOOLS LTD,"1,021.44",02/06/2016
Delivery Units,Adults and Communities,Other Agencies - Third Party P,30123680,NORWOOD RAVENSWOOD SCHOOLS LTD,"1,021.44",02/06/2016
Delivery Units,Adults and Communities,Other Agencies - Third Party P,30123685,NORWOOD RAVENSWOOD SCHOOLS LTD,121.6,02/06/2016
Delivery Units,Adults and Communities,Other Agencies - Third Party P,30123686,NORWOOD RAVENSWOOD SCHOOLS LTD,820.8,02/06/2016
Delivery Units,Adults and Communities,Other Agencies - Third Party P,30123689,NORWOOD RAVENSWOOD SCHOOLS LTD,364.8,02/06/2016
Delivery Units,Adults and Communities,Other Agencies - Third Party P,30125213,NORWOOD RAVENSWOOD SCHOOLS LTD,"1,592.28",22/06/2016
Delivery Units,Adults and Communities,Other Agencies - Third Party P,30125228,NORWOOD RAVENSWOOD SCHOOLS LTD,"5,540.00",22/06/2016
Delivery Units,Adults and Communities,Other Agencies - Third Party P,30124563,NOUVITA LTD,"4,898.19",17/06/2016
Delivery Units,Adults and Communities,Other Agencies - Third Party P,30124471,ONE STEP (SUPPORT) LTD,"1,339.80",15/06/2016
Delivery Units,Adults and Communities,Other Agencies - Third Party P,30124474,ONE STEP (SUPPORT) LTD,"3,395.80",15/06/2016
Delivery Units,Adults and Communities,Other Agencies - Third Party P,30124475,ONE STEP (SUPPORT) LTD,"2,618.20",15/06/2016
Delivery Units,Adults and Communities,Other Agencies - Third Party P,30124476,ONE STEP (SUPPORT) LTD,638,15/06/2016
Delivery Units,Adults and Communities,Other Agencies - Third Party P,30124477,ONE STEP (SUPPORT) LTD,638,15/06/2016
Delivery Units,Adults and Communities,Other Agencies - Third Party P,30124478,ONE STEP (SUPPORT) LTD,"5,431.16",15/06/2016
Delivery Units,Adults and Communities,Other Agencies - Third Party P,30123602,ORIGIN HOUSING LIMITED,"1,728.00",01/06/2016
Delivery Units,Adults and Communities,Other Agencies - Third Party P,30123603,ORIGIN HOUSING LIMITED,576,01/06/2016
Delivery Units,Adults and Communities,Other Agencies - Third Party P,30123605,ORIGIN HOUSING LIMITED,"1,065.60",01/06/2016
Delivery Units,Adults and Communities,Other Agencies - Third Party P,30123562,PILLARCARE,"6,328.00",01/06/2016
Delivery Units,Adults and Communities,Other Agencies - Third Party P,30123892,PILLARCARE,"6,554.00",06/06/2016
Delivery Units,Adults and Communities,Other Agencies - Third Party P,30125053,PLATINUM HEALTH RESOURCES LTD,957.89,23/06/2016
Delivery Units,Adults and Communities,Other Agencies - Third Party P,30125073,PLATINUM HEALTH RESOURCES LTD,"3,767.53",22/06/2016
Delivery Units,Adults and Communities,Other Agencies - Third Party P,30125087,PLATINUM HEALTH RESOURCES LTD,"3,642.86",22/06/2016
Delivery Units,Adults and Communities,Other Agencies - Third Party P,30125128,PLATINUM HEALTH RESOURCES LTD,"3,642.86",22/06/2016
Delivery Units,Adults and Communities,Other Agencies - Third Party P,30121481,PRACTICAL CARE,493.5,07/06/2016
Delivery Units,Adults and Communities,Other Agencies - Third Party P,30126455,PRT BARNET CARERS CENTRE,"2,315.65",29/06/2016
Delivery Units,Adults and Communities,Other Agencies - Third Party P,30126456,PRT BARNET CARERS CENTRE,"1,073.00",29/06/2016
Delivery Units,Adults and Communities,Other Agencies - Third Party P,30126457,PRT BARNET CARERS CENTRE,"2,274.44",29/06/2016
Delivery Units,Adults and Communities,Other Agencies - Third Party P,30125256,QUANTUM CARE LIMITED,"2,364.81",24/06/2016
Delivery Units,Adults and Communities,Other Agencies - Third Party P,30125257,QUANTUM CARE LIMITED,"2,212.24",24/06/2016
Delivery Units,Adults and Communities,Other Agencies - Third Party P,30125259,R.M.B.I,"2,176.89",24/06/2016
Delivery Units,Adults and Communities,Other Agencies - Third Party P,30124296,RAPKYNS CARE CENTRE,"4,285.71",13/06/2016
Delivery Units,Adults and Communities,Other Agencies - Third Party P,30124894,RAPKYNS CARE CENTRE,"6,188.57",22/06/2016
Delivery Units,Adults and Communities,Other Agencies - Third Party P,30124895,RAPKYNS CARE CENTRE,"6,428.57",22/06/2016
Delivery Units,Adults and Communities,Other Agencies - Third Party P,30124904,RIDGEWAY NURSING HOME,"2,357.10",22/06/2016
Delivery Units,Adults and Communities,Other Agencies - Third Party P,30124416,RIDGEWAY RESIDENTIAL HOME,"1,960.36",13/06/2016
Delivery Units,Adults and Communities,Other Agencies - Third Party P,30124636,RIDGEWAY RESIDENTIAL HOME,"2,095.56",17/06/2016
Delivery Units,Adults and Communities,Other Agencies - Third Party P,30123866,ROLAND COMMUNITY CARE LTD,"2,150.64",06/06/2016
Delivery Units,Adults and Communities,Other Agencies - Third Party P,30123889,ROLAND COMMUNITY CARE LTD,"2,820.36",06/06/2016
Delivery Units,Adults and Communities,Other Agencies - Third Party P,30125305,ROLAND RESIDENTIAL CARE HOMES,"3,729.32",24/06/2016
Delivery Units,Adults and Communities,Other Agencies - Third Party P,30125277,ROLAND RESIDENTIAL CARE HOMES LTD,"3,214.84",24/06/2016
Delivery Units,Adults and Communities,Other Agencies - Third Party P,30125296,ROLAND RESIDENTIAL CARE HOMES LTD,"4,182.98",24/06/2016
Delivery Units,Adults and Communities,Other Agencies - Third Party P,30125297,ROLAND RESIDENTIAL CARE HOMES LTD,"4,435.47",24/06/2016
Delivery Units,Adults and Communities,Other Agencies - Third Party P,30125301,ROLAND RESIDENTIAL CARE HOMES LTD,"3,415.91",24/06/2016
Delivery Units,Adults and Communities,Other Agencies - Third Party P,30123588,ROSEACRES CARE HOME LIMITED,"2,418.04",01/06/2016
Delivery Units,Adults and Communities,Other Agencies - Third Party P,30124408,ROSEACRES CARE HOME LIMITED,"2,028.04",13/06/2016
Delivery Units,Adults and Communities,Other Agencies - Third Party P,30124409,ROSEACRES CARE HOME LIMITED,631.94,13/06/2016
Delivery Units,Adults and Communities,Other Agencies - Third Party P,30124410,ROSEACRES CARE HOME LIMITED,"1,105.90",13/06/2016
Delivery Units,Adults and Communities,Other Agencies - Third Party P,30124411,ROSEACRES CARE HOME LIMITED,"2,527.77",13/06/2016
Delivery Units,Adults and Communities,Other Agencies - Third Party P,30124412,ROSEACRES CARE HOME LIMITED,"2,448.78",13/06/2016
Delivery Units,Adults and Communities,Other Agencies - Third Party P,30124413,ROSEACRES CARE HOME LIMITED,"2,290.79",13/06/2016
Delivery Units,Adults and Communities,Other Agencies - Third Party P,30124414,ROSEACRES CARE HOME LIMITED,"2,448.78",13/06/2016
Delivery Units,Adults and Communities,Other Agencies - Third Party P,30124415,ROSEACRES CARE HOME LIMITED,"2,369.79",13/06/2016
Delivery Units,Adults and Communities,Other Agencies - Third Party P,30124534,ROSEACRES CARE HOME LIMITED,"2,448.78",15/06/2016
Delivery Units,Adults and Communities,Other Agencies - Third Party P,30124535,ROSEACRES CARE HOME LIMITED,"2,448.78",15/06/2016
Delivery Units,Adults and Communities,Other Agencies - Third Party P,30124536,ROSEACRES CARE HOME LIMITED,"2,448.78",15/06/2016
Delivery Units,Adults and Communities,Other Agencies - Third Party P,30124537,ROSEACRES CARE HOME LIMITED,"2,448.78",15/06/2016
Delivery Units,Adults and Communities,Other Agencies - Third Party P,30124538,ROSEACRES CARE HOME LIMITED,"2,249.45",15/06/2016
Delivery Units,Adults and Communities,Other Agencies - Third Party P,30124539,ROSEACRES CARE HOME LIMITED,"2,369.79",15/06/2016
Delivery Units,Adults and Communities,Other Agencies - Third Party P,30124540,ROSEACRES CARE HOME LIMITED,"2,448.78",15/06/2016
Delivery Units,Adults and Communities,Other Agencies - Third Party P,30124541,ROSEACRES CARE HOME LIMITED,"2,448.78",15/06/2016
Delivery Units,Adults and Communities,Other Agencies - Third Party P,30124542,ROSEACRES CARE HOME LIMITED,"2,448.78",15/06/2016
Delivery Units,Adults and Communities,Other Agencies - Third Party P,30124543,ROSEACRES CARE HOME LIMITED,"2,448.78",15/06/2016
Delivery Units,Adults and Communities,Other Agencies - Third Party P,30124544,ROSEACRES CARE HOME LIMITED,"2,448.78",15/06/2016
Delivery Units,Adults and Communities,Other Agencies - Third Party P,30124545,ROSEACRES CARE HOME LIMITED,"2,448.78",15/06/2016
Delivery Units,Adults and Communities,Other Agencies - Third Party P,30124546,ROSEACRES CARE HOME LIMITED,"2,448.78",15/06/2016
Delivery Units,Adults and Communities,Other Agencies - Third Party P,30125152,ROSEACRES CARE HOME LIMITED,"2,448.78",22/06/2016
Delivery Units,Adults and Communities,Other Agencies - Third Party P,30125153,ROSEACRES CARE HOME LIMITED,"3,317.70",22/06/2016
Delivery Units,Adults and Communities,Other Agencies - Third Party P,30126598,ROSEACRES CARE HOME LIMITED,"2,448.78",29/06/2016
Delivery Units,Adults and Communities,Other Agencies - Third Party P,30126599,ROSEACRES CARE HOME LIMITED,"1,026.91",29/06/2016
Delivery Units,Adults and Communities,Other Agencies - Third Party P,30125117,ROWAN HOUSE,"4,279.63",22/06/2016
Delivery Units,Adults and Communities,Other Agencies - Third Party P,30123771,ROYAL MENCAP SOCIETY,"1,722.60",06/06/2016
Delivery Units,Adults and Communities,Other Agencies - Third Party P,30123772,ROYAL MENCAP SOCIETY,"1,595.00",06/06/2016
Delivery Units,Adults and Communities,Other Agencies - Third Party P,30123491,SAGE NURSING HOME,"1,082.90",01/06/2016
